Workbook

Sheet Integración de PAA
M64: Versión 4 - 31/01/2021

Sheet Plan Acción
D4: PLAN DE ACCION ANUAL FINDETER 2021
B10: Perspectiva Estratégica | C10: Objetivo Estratégico | D10: Dependencia | E10: Código Proyecto SIGEP | F10: Nombre de la tarea | G10: Descripción | H10: Presupuesto | I10: Responsable de tarea | J10: Fecha Inicio | K10: Fecha Fin | L10: Fuente de Financiación | M10: Indicador (Si Aplica) | N10: Fórmula | O10: Meta 2021 | P10: Observaciones | Q10: Seguimiento SPI Trimestre 4 | R10: Avance planeado - Trimestre 1 | S10: Avance planeado - Trimestre 12 | T10: Avance planeado - Trimestre 13 | U10: Avance planeado - Trimestre 14 | V10: Avance ejecutado - Trimestre 1 | W10: Avance ejecutado - Trimestre 2 | X10: Avance ejecutado - Trimestre 3 | Y10: Avance ejecutado - Trimestre 4
B11: Perspectiva Capacidades | C11: 11.Gestionar eficientemente nuestra comunicación corporativa | D11: Gerencia de Comunicaciones, Mercadeo y Responsabilidad Social | E11: VC-GC-Ecosistema Digital | F11: Ecosistema Digital | G11: Implementar una red de elementos o componentes que le permitirá a la entidad contar con tácticas digitales para conseguir trafico de usuarios en el sitio web, mayor interacción con los prospectos, clientes y adquirir ventas a través de estrategias de marketing por internet. | H11: 263731452 | I11: Ingrid Catalina Giraldo – Vicepresidenta de Operaciones | J11: 2021-02-15 | K11: 2022-02-28 | L11: Findeter | M11: Cumplimiento del Cronograma (SPI) | N11: % Avance Real / % Avance Programado | O11: 0.95 | Q11: =IFERROR(Seg_Plan_Accion[[#This Row],[Avance ejecutado - Trimestre 4]]/#REF!,"N/A") -> N/A | R11: 0.5144 | S11: 0.1856 | T11: 0.19 | U11: 0.11 | V11: 0.483
B12: Perspectiva Gestión Integral | C12: 6. Aumentar la efectividad de la gestión comercial | D12: Vicepresidencia Comercial | E12: VC-GE-ME-Oficina Virtual | F12: Oficina Virtual | G12: Construir y entregar a la Entidad un canal digital que le permita comercializar sus productos y ofrecer a sus clientes alternativas de interacción con la entidad, adicionales a la oficina tradicional. | H12: 0 | I12: Ingrid Catalina Giraldo – Vicepresidenta de Operaciones | J12: 2021-01-22 | K12: 2021-12-17 | L12: Findeter | M12: Cumplimiento del Cronograma (SPI) | N12: % Avance Real / % Avance Programado | O12: 0.95 | Q12: =IFERROR(Seg_Plan_Accion[[#This Row],[Avance ejecutado - Trimestre 4]]/#REF!,"N/A") -> N/A | R12: 1 | S12: 0 | T12: 0 | U12: 0 | V12: 1
B13: Perspectiva Capacidades | C13: 16.Consolidar y promover la transformación digital de nuestra Entidad | D13: Vicepresidencia de Operaciones - Dirección de Tecnología | E13: VO-DT-Arquitec Empresa Core Tecnica y Fra | F13: Arquitectura empresarial Core Financiera y Técnica | G13: Identificar las capacidades estratégicas y de negocio que permitan definir claramente las capacidades de TI necesarias para atender los deseos y expectativas de clientes, usuarios e interesados de FINDETER desde un marco de buenas prácticas llamadas “Arquitectura Empresarial”. | H13: 102000030 | I13: Ingrid Catalina Giraldo – Vicepresidenta de Operaciones | J13: 2021-02-12 | K13: 2021-09-30 | L13: Findeter | M13: Cumplimiento del Cronograma (SPI) | N13: % Avance Real / % Avance Programado | O13: 0.95 | Q13: =IFERROR(Seg_Plan_Accion[[#This Row],[Avance ejecutado - Trimestre 4]]/#REF!,"N/A") -> N/A | R13: 0.98 | S13: 0.02 | T13: 0 | U13: 0 | V13: 0.98
B14: Perspectiva Capacidades | C14: 16.Consolidar y promover la transformación digital de nuestra Entidad | D14: Presidencia | E14: PR-Gobierno de Datos Fase III | F14: Gobierno de Datos Fase III | G14: Ejercer la autoridad y el control (Planificación, seguimiento y aplicación) a través de la gestión de los activos de datos en estado de completitud, validez, consistencia, oportunidad y precisión para tomar decisiones correctas del negocio, servir a los clientes y cumplir los objetivos empresariales. | H14: 212000000 | I14: Ingrid Catalina Giraldo – Vicepresidenta de Operaciones | J14: 2021-03-31 | K14: 2021-12-31 | L14: Findeter | M14: Cumplimiento del Cronograma (SPI) | N14: % Avance Real / % Avance Programado | O14: 0.95 | Q14: =IFERROR(Seg_Plan_Accion[[#This Row],[Avance ejecutado - Trimestre 4]]/#REF!,"N/A") -> N/A | R14: 1 | S14: 0 | T14: 0 | U14: 0 | V14: 1
B15: Perspectiva Capacidades | C15: 16.Consolidar y promover la transformación digital de nuestra Entidad | D15: Vicepresidencia de Operaciones - Dirección de Tecnología | E15: VC-IN-Estrategia de analitica de datos | F15: Estrategia de Analitica de Datos (BA) | G15: Dotar a FINDETER de una estrategia y solución que realice la analítica de los datos estructurados que se generan en todas las dependencias de la entidad para que soporten la toma de decisiones estratégicas. | H15: 328440000 | I15: Ingrid Catalina Giraldo – Vicepresidenta de Operaciones | J15: 2021-03-31 | K15: 2021-12-31 | L15: Findeter | M15: Cumplimiento del Cronograma (SPI) | N15: % Avance Real / % Avance Programado | O15: 0.95 | Q15: 0 | R15: 0.54 | S15: 0.17 | T15: 0.19 | U15: 0.08 | V15: 0.52
B16: Perspectiva Gestión Integral | C16: 7.Contar con una planificación territorial pertinente y de impacto; | D16: Vicepresidencia Financiera | E16: VF-BN-Estrategia Consecución y Uso Recursos Cooperación | F16: Estrategia para consecución y uso de recursos de cooperación | G16: El proyecto consiste en Construcción de una estrategia para la consecución de recursos de cooperación internacional, de acuerdo con las necesidades de los territorios y el enfoque de las áreas de Findeter | H16: 0 | I16: María Elena Mesa - Asesora Presidencia | J16: 2021-01-25 | K16: 2021-12-31 | L16: Findeter | M16: Cumplimiento del Cronograma (SPI) | N16: % Avance Real / % Avance Programado | O16: 0.95 | Q16: =IFERROR(Seg_Plan_Accion[[#This Row],[Avance ejecutado - Trimestre 4]]/#REF!,"N/A") -> N/A | R16: 1 | S16: 0 | T16: 0 | U16: 0 | V16: 0.97
B17: Perspectiva Capacidades | C17: 13.Fortalecer la gestión de los recursos financieros propios y de terceros; | D17: Vicepresidencia Financiera | E17: VF-DT-Implementación Derivados Estandarizados | F17: Implementación Derivados Estandarizados | G17: El proyecto se realizará principalmente para: - Diversificar las estrategias de inversión aplicables al portafolio propio de inversiones - Cubrir un riesgo de mercado asociado al movimiento de una tasa de interés (Cobertura) - Obtener rendimientos financieros a través de apalancamiento (Especulación) El proyecto consiste en realizar el alistamiento que permita ejecutar operaciones en instrumentos financieros denominados Derivados Estandarizados | H17: 0 | I17: Richard Martínez - Vicepresidente Financiero | J17: 2019-11-15 | K17: 2020-09-30 | L17: Findeter | M17: Cumplimiento del Cronograma (SPI) | N17: % Avance Real / % Avance Programado | O17: 0.95 | Q17: =IFERROR(Seg_Plan_Accion[[#This Row],[Avance ejecutado - Trimestre 4]]/#REF!,"N/A") -> N/A | R17: 1 | S17: 0 | T17: 0 | U17: 0 | V17: 1
B18: Perspectiva Capacidades | C18: 16.Consolidar y promover la transformación digital de nuestra Entidad | D18: Vicepresidencia de Operaciones - Dirección de Tecnología | E18: VO-DT-Optimiza capacidad tecnológica | F18: Optimización de las capacidades tecnológicas | G18: El proyecto es un compendio de actividades alineadas con el plan estratégico de tecnología (PETI) que principalmente actualizan las capacidades de la infraestructura tecnológica y la seguridad de la entidad. | H18: 38580038 | I18: Ingrid Catalina Giraldo – Vicepresidenta de Operaciones | J18: 2020-01-27 | K18: 2021-05-28 | L18: Findeter | M18: Cumplimiento del Cronograma (SPI) | N18: % Avance Real / % Avance Programado | O18: 0.95 | Q18: =IFERROR(Seg_Plan_Accion[[#This Row],[Avance ejecutado - Trimestre 4]]/#REF!,"N/A") -> N/A | R18: 0.9628 | S18: 0.0372 | T18: 0 | U18: 0 | V18: 0.97
B19: Perspectiva Gestión Integral | C19: 10.Incrementar la efectividad en la ejecución de los proyectos de asistencia técnica | D19: Vicepresidencia de Planeación - Gerencia de Planeación y Gestión | E19: VP-GP-Madura Gerencia Proyectos | F19: Maduración de Gerencia de Proyectos | G19: Implementar Plan de Maduración de Gerencia de Proyectos | H19: 0 | I19: Leonardo Fabio Ramos - Vicepresidente de Riesgos | J19: 2021-01-04 | K19: 2021-09-30 | L19: Findeter | M19: Cumplimiento del Cronograma (SPI) | N19: % Avance Real / % Avance Programado | O19: 0.95 | Q19: =IFERROR(Seg_Plan_Accion[[#This Row],[Avance ejecutado - Trimestre 4]]/#REF!,"N/A") -> N/A | R19: 0.27 | S19: 0.45 | T19: 0.27 | U19: 0.01 | V19: 0.26
B20: Perspectiva Capacidades | C20: 15. Fortalecer la gestión y administración de riesgosconsolidados para generar un adecuado ambiente de control | D20: Vicepresidencia de Riesgos | E20: VR-Certifica ISO27001 Redesc-CreDir | F20: Certificación ISO 27001 y 27002 Alcance: Redescuento y Crédito Directo | G20: Certificación ISO 27001 y 27002 Alcance: Redescuento y Crédito Directo | H20: 40000000 | I20: Ingrid Catalina Giraldo – Vicepresidenta de Operaciones | J20: 2021-04-30 | K20: 2022-03-31 | L20: Findeter | M20: Cumplimiento del Cronograma (SPI) | N20: % Avance Real / % Avance Programado | O20: 0.95 | Q20: =IFERROR(Seg_Plan_Accion[[#This Row],[Avance ejecutado - Trimestre 4]]/#REF!,"N/A") -> N/A | R20: 0 | S20: 0.3 | T20: 0.3 | U20: 0.3 | V20: 0
B21: Perspectiva Capacidades | C21: 16.Consolidar y promover la transformación digital de nuestra Entidad | D21: Vicepresidencia de Operaciones - Dirección de Tecnología | E21: VP-GP-Gestion Cambio Cultura mas Digital | F21: Estrategia de Transformación Digital | G21: Incluye el talento humano capacitado, el diseño de centros de excelencia y una estrategia para que FINDETER pueda identificar y capturar las oportunidades del mercado desde lo digital. También incluye un programa de gestión del cambio a lo digital y una propuesta de Academia Digital para FINDETER. | H21: 282000000 | I21: Laura Mercedes Peña Rodriguez - Vicepresidenta de Planeación | J21: 2021-01-15 | K21: 2022-09-30 | L21: Findeter | M21: Cumplimiento del Cronograma (SPI) | N21: % Avance Real / % Avance Programado | O21: 0.95 | Q21: =IFERROR(Seg_Plan_Accion[[#This Row],[Avance ejecutado - Trimestre 4]]/#REF!,"N/A") -> N/A | R21: 0.1551 | S21: 0.0749 | T21: 0.28 | U21: 0.23 | V21: 0.1649
B22: Perspectiva Capacidades | C22: 14.Consolidar nuestros procesos de acuerdo con la Estrategia Corporativa; 16.Consolidar y promover la transformación digital de nuestra Entidad; | D22: Vicepresidencia de Planeación - Gerencia de Planeación y Gestión | E22: VP-GP-Automatizacion y Optimizacion Procesos | F22: Automatización y Optimización de Procesos BPM | G22: Orientar y rediseñar los procesos a entornos completamente digitales, incluyendo elementos como autenticación, firmas electrónica y digital, flujo, gestión, archivo y transferencia de documentos creados desde digital. | H22: 0 | I22: Ingrid Catalina Giraldo – Vicepresidenta de Operaciones | J22: 2021-02-15 | K22: 2022-02-28 | L22: Findeter | M22: Cumplimiento del Cronograma (SPI) | N22: % Avance Real / % Avance Programado | O22: 0.95 | Q22: =IFERROR(Seg_Plan_Accion[[#This Row],[Avance ejecutado - Trimestre 4]]/#REF!,"N/A") -> N/A | R22: 0.0965 | S22: 0.1435 | T22: 0.16 | U22: 0.51 | V22: 0.109
B23: CAPACIDADES | C23: 16.Consolidar y promover la transformación digital de nuestra Entidad | D23: Vicepresidencia de Operaciones - Dirección de Tecnología | E23: VO-DT-Robot Process Automation RPA | F23: Robot Process Automation RPA | G23: Este proyecto esta orientado a impulsar la transformación digital en la Entidad, incrementando la eficiencia operativa de esta, por medio del empleo de tecnologías de robotización de actividades, las cuales permiten eliminar tareas manuales y repetitivas dentro de procesos clave de negocio, así como reducir el riesgo por falla humana en el desarrollo de los mismos. | H23: 175000000 | I23: Ingrid Catalina Giraldo – Vicepresidenta de Operaciones | J23: 2021-01-22 | K23: 2021-12-17 | L23: Findeter | M23: Cumplimiento del Cronograma (SPI) | N23: % Avance Real / % Avance Programado | O23: 0.95 | Q23: =IFERROR(Seg_Plan_Accion[[#This Row],[Avance ejecutado - Trimestre 4]]/#REF!,"N/A") -> N/A | R23: 0.111 | S23: 0.389 | T23: 0.36 | U23: 0.14 | V23: 0.115
B24: CAPACIDADES | C24: 16.Consolidar y promover la transformación digital de nuestra Entidad | D24: Vicepresidencia de Operaciones - Dirección de Tecnología | E24: VO-DT-Uso y Apropiación Fase 2021 | F24: Uso y apropiación 2021 | G24: El presente proyecto en su fase 2021 el objetivo es dejar 7 servicios de IT , con el módulo de uso y apropiación | H24: 67152000 | I24: Ingrid Catalina Giraldo – Vicepresidenta de Operaciones | J24: 2021-02-12 | K24: 2021-09-30 | L24: Findeter | M24: Cumplimiento del Cronograma (SPI) | N24: % Avance Real / % Avance Programado | O24: 0.95 | Q24: =IFERROR(Seg_Plan_Accion[[#This Row],[Avance ejecutado - Trimestre 4]]/#REF!,"N/A") -> N/A | R24: 0.0297 | S24: 0.7403 | T24: 0.23 | U24: 0 | V24: 0.03049
B25: CAPACIDADES | C25: 16.Consolidar y promover la transformación digital de nuestra Entidad | D25: Vicepresidencia de Operaciones - Dirección de Tecnología | E25: VO-DT-Nuevas Formas de Trabajo en Digital Fase II | F25: Nuevas Formas de Trabajo Digital Fase II | G25: El proyecto consiste en promover el uso de herramientas tecnológicas, para fomentar el trabajo digital que facilite a la organización, comunicación, envío y recepción de la información no estructurada del negocio al interior de la Entidad y con externos cumpliendo con los protocolos de seguridad. | H25: 0 | I25: Ingrid Catalina Giraldo – Vicepresidenta de Operaciones | J25: 2021-03-31 | K25: 2021-12-31 | L25: Findeter | M25: Cumplimiento del Cronograma (SPI) | N25: % Avance Real / % Avance Programado | O25: 0.95 | Q25: =IFERROR(Seg_Plan_Accion[[#This Row],[Avance ejecutado - Trimestre 4]]/#REF!,"N/A") -> N/A | R25: 0 | S25: 0.33 | T25: 0.33 | U25: 0.34 | V25: 0
B26: GESTIÓN INTEGRAL | C26: 9. Aumentar la financiaciónde operaciones y proyectos en sectores financiables | D26: Vicepresidencia de Operaciones - Dirección de Tecnología | E26: VO-DC-Credito Directo fase 2 | F26: Servicios de crédito directo fase 2 | G26: Fortalecer la solución tecnológica que soporta el proceso de Crédito Directo para Entes Territoriales. | H26: 300000000 | I26: Ingrid Catalina Giraldo – Vicepresidenta de Operaciones | J26: 2021-03-31 | K26: 2021-12-31 | L26: Findeter | M26: Cumplimiento del Cronograma (SPI) | N26: % Avance Real / % Avance Programado | O26: 0.95 | Q26: =IFERROR(Seg_Plan_Accion[[#This Row],[Avance ejecutado - Trimestre 4]]/#REF!,"N/A") -> N/A | R26: 0 | S26: 0.33 | T26: 0.33 | U26: 0.34 | V26: 0
B27: CAPACIDADES | C27: 16.Consolidar y promover la transformación digital de nuestra Entidad | D27: Vicepresidencia de Operaciones - Dirección de Tecnología | E27: VO-DT-Optimiza capacidad tecno f2 | F27: Segunda fase optimización de las capacidades tecnológicas | G27: Programa qu eincluye la actualización de switches, Optimización de la planta telefónica, modelamiento dela arquitectura (App/Intra) vs CMDB y la gestión de Identidades | H27: 597781864 | I27: María Elena Mesa - Asesora Presidencia | J27: 2021-01-25 | K27: 2021-12-31 | L27: Findeter | M27: Cumplimiento del Cronograma (SPI) | N27: % Avance Real / % Avance Programado | O27: 0.95 | Q27: =IFERROR(Seg_Plan_Accion[[#This Row],[Avance ejecutado - Trimestre 4]]/#REF!,"N/A") -> N/A | R27: 0.1843 | S27: 0.5057 | T27: 0.22 | U27: 0.09 | V27: 0.187
B28: CAPACIDADES | C28: 16.Consolidar y promover la transformación digital de nuestra Entidad | D28: Presidencia | E28: PR-Gobierno de Datos Fase IV | F28: Gobierno de Datos Fase IV | G28: Implementar las herramientas de control para el Gobierno de Datos Fase IV dentro de los cinco procesos con la participación de la VP Comercial, VP de Desarrollo Territorial, VP Financiera, VP de Operaciones y VP Técnica como generadoras de información y por otro lado, la VP de Planeación como consolidadora de la información. La primera fase consistirá en la incorporación y actualización en el SGI de la entidad, incluyendo el diagrama, la caracterización del proceso y la propuesta de documentación del mismo. La segunda fase se enfocará en implementar el proceso de calidad de datos, definiendo los indicadores de calidad y como resultado sería la normalización de los datos en los sistemas de información. La tercera fase deberá implementar una herramienta par construir el master data de Findeter y producir las directrices de integración. Existe una tarea transversal que es muy importante que es la divulgación del uso y apropiación del gobierno de datos por parte de las vicepresidencias. | H28: 290430000 | Q28: =IFERROR(Seg_Plan_Accion[[#This Row],[Avance ejecutado - Trimestre 4]]/#REF!,"N/A") -> N/A | R28: =SUM(R11:R27)/ROWS(R11:R27)+0 -> 0.4614 | S28: =SUM(S11:S27)/ROWS(S11:S27)+R28 -> 0.6776470588 | T28: =SUM(T11:T27)/ROWS(T11:T27)+S28 -> 0.8458823529 | U28: =SUM(U11:U27)/ROWS(U11:U27)+T28 -> 0.9723529412 | V28: =SUM(V11:V27)/ROWS(V11:V27)+0 -> 0.4581994118 | W28: =SUM(W11:W27)/ROWS(W11:W27)+V28 -> 0.4581994118 | X28: =SUM(X11:X27)/ROWS(X11:X27)+W28 -> 0.4581994118 | Y28: =SUM(Y11:Y27)/ROWS(Y11:Y27)+X28 -> 0.4581994118
H29: =SUBTOTAL(109,H11:H28) -> 2697115384 | Q29: =IFERROR(Seg_Plan_Accion[[#This Row],[Avance ejecutado - Trimestre 4]]/#REF!,"N/A") -> N/A

Sheet Pinar
D3: PLAN INSTITUCIONAL DE ARCHIVOS - PINAR FINDETER 2021
B12: Dependencia | C12: Nombre de la tarea | D12: Descripción | E12: Política de Gestión y Desempeño | F12: Responsable de tarea | G12: Fecha Inicio | H12: Fecha Fin | I12: Fuente de Financiación
B13: Jefatura de Servicios Generales | C13: Revisar y ajustar estandares de publicación de los instrumentos de gestión de información pública. (Matriz ITA 2021) | D13: Revisar y ajustar documentos de gestión documental que se requiere publicar en virtud de la Ley de transparencia | E13: Gestión Documental | F13: Colaborador Jefatura de Servicios Generales Claudia Yovanna Moreno | G13: 44197 | H13: 44377 | I13: Funcionamiento
B14: Jefatura de Servicios Generales | C14: Capacitar Procesos Archivisticos | D14: Se realizaran capacitaciones a trabajadores nuevos y retroalimentar a trabajadores antiguos en los procesos archivísticos. | E14: Gestión Documental | F14: Colaborador Jefatura de Servicios Generales Claudia Yovanna Moreno | G14: 44228 | H14: 44560 | I14: Funcionamiento
B15: Jefatura de Servicios Generales | C15: Actualizar las Tablas de Retención Documental | D15: continuar con las entrevistas por las dependencia con los jefes para actualizar las Tablas de Retención Documental según la nueva estructura organizacional de la entidad. | E15: Gestión Documental | F15: Colaborador Jefatura de Servicios Generales Claudia Yovanna Moreno | G15: 44197 | H15: 44530 | I15: Funcionamiento

Sheet PAdquisiciones
F5: PLAN ANUAL DE ADQUISICIONES FINDETER 2021
B12: Vicepresidencia | C12: Dependencia | D12: Rubro | F12: Área | H12: Centro de Costo | J12: Producto | L12: Descripción de los Bienes o Servicios a Contratar | M12: Fecha Estimada de Contratacion Reprogramada | N12: Valor Presupuestal
D13: Código | E13: Nombre | F13: Código | G13: Nombre | H13: Código | I13: Nombre | J13: Código | K13: Nombre
B14: Operaciones | C14: D. Tecnologia | D14: 203050310 | E14: Mantenimiento de Software | F14: 800 | G14: Vicepresidencia de Operaciones | H14: 810 | I14: Direccion de Tecnologia | J14: 642 | K14: Otras Asesorias | L14: Biblioteca Virtual Biteca - Soporte y Mantenimiento de Aplicativo. | M14: 2020-12-31 | N14: 35000000
B15: Comercial | C15: J. Mercadeo | D15: 203051003 | E15: Impresos y Publicaciones | F15: 400 | G15: Vicepresidencia Comercial | H15: 461 | I15: Jefatura de Mercadeo | J15: 667 | K15: Impresos y Publicaciones | L15: Impresos Publicaciones (Libros, Informes) | M15: 2020-12-31 | N15: 70000000
B16: S. General | C16: J. Servicios G | D16: 203050307 | E16: Mantenimiento de Edificios y Locales | F16: 400 | G16: Vicepresidencia Comercial | H16: 454 | I16: Regional Noroccidental | J16: 111 | K16: Mantenimiento Inmuebles | L16: Mantenimiento Preventivo y Correctivo para los equipos de aire acondicionado de la Oficina de Medellin. | M16: 2020-12-31 | N16: 3559890
B17: Operaciones | C17: D. Tecnologia | D17: 203050310 | E17: Mantenimiento de Software | F17: 800 | G17: Vicepresidencia de Operaciones | H17: 810 | I17: Direccion de Tecnologia | J17: 411 | K17: Mantenimiento de Licenciamiento de Mcaffee Antivirus | L17: Soporte y Mantenimiento del Antivirus Corporativo End Point | M17: 2020-12-31 | N17: 12000000
B18: Comercial | C18: J. Mercadeo | D18: 203030105 | E18: Otras Asesorias | F18: 400 | G18: Vicepresidencia Comercial | H18: 461 | I18: Jefatura de Mercadeo | J18: 642 | K18: Otras Asesorias | L18: Estudio de Satisfaccion y Servicio al Cliente externo e Interno | M18: 2020-12-31 | N18: 89771869
B19: S. General | C19: J. Servicios G | D19: 203050305 | E19: Mantenimiento de Vehiculos | F19: 200 | G19: Secretaria General | H19: 245 | I19: Jefatura de Servicios Generales | J19: 746 | K19: Mantenimiento Vehiculos | L19: Distoyota - Mantenimiento de Vehiculo Toyota Presidencia | M19: 2020-12-31 | N19: 5000000
B20: Operaciones | C20: D. Tecnologia | D20: 203030105 | E20: Otras Asesorias | F20: 800 | G20: Vicepresidencia de Operaciones | H20: 810 | I20: Direccion de Tecnologia | J20: 418 | K20: Servicio Especializado Mesa Ayuda | L20: Servicio Especializado de Mesa de Servicios Especializados | M20: 2020-12-31 | N20: 524384448
B21: Operaciones | C21: D. Tecnologia | D21: 204010108 | E21: Compra de Software | F21: 800 | G21: Vicepresidencia de Operaciones | H21: 810 | I21: Direccion de Tecnologia | J21: 38 | K21: Licenciamiento Microsoft | L21: Licenciamiento Software Ax, Crm, Servidores y Ofimática. Licenciamiento de Microsoft. | M21: 2020-12-31 | N21: 1287077197
B22: Operaciones | C22: D. Tecnologia | D22: 203030105 | E22: Otras Asesorias | F22: 800 | G22: Vicepresidencia de Operaciones | H22: 810 | I22: Direccion de Tecnologia | J22: 935 | K22: Implementacion Proyectos Peti | L22: Proyecto Analítica de Datos | M22: 2020-12-31 | N22: 214084235
B23: S. General | C23: J. Servicios G | D23: 203050405 | E23: Otros Gastos Locales y Edificios | F23: 200 | G23: Secretaria General | H23: 245 | I23: Jefatura de Servicios Generales | J23: 726 | K23: Adecuacion Edificio | L23: Adecuaciones Regionales | M23: 2020-12-31 | N23: 175221860
B24: Presidencia | C24: O. de Cumplimiento | D24: 203030105 | E24: Otras Asesorias | F24: 100 | G24: Presidencia | H24: 130 | I24: Oficial de Cumplimiento | J24: 642 | K24: Otras Asesorias | L24: Adecuación del Sarlaft a las Nuevas Disposiciones Normativas de la Superfinanciera. | M24: 2020-12-31 | N24: 40000000
B25: S. General | C25: J. Servicios G | D25: 203030105 | E25: Otras Asesorias | F25: 200 | G25: Secretaria General | H25: 245 | I25: Jefatura de Servicios Generales | J25: 298 | K25: Administracion. Inventario y Conciliacion Activos Fijos | L25: Administración del Inventario, Conciliación y Gestión de los Activos de la Entidad Bajo las Normas Niif y los Bienes Muebles que están en Condición de Arrendamiento, así como los Avalúos de Inmuebles que Requiera Findeter, Mediante el Uso de Una Solución Tecnológica que Facilite la Gestión y Automatización del Proceso | M25: 2020-12-31 | N25: 185000000
B26: S. General | C26: J. Servicios G | D26: 203050101 | E26: Equipo de Computo, Comunicacion y Multifuncionales | F26: 200 | G26: Secretaria General | H26: 245 | I26: Jefatura de Servicios Generales | J26: 938 | K26: Automatizacion Delmanejo de Activos | L26: Administración del Inventario, Conciliación y Gestión de los Activos de la Entidad Bajo las Normas Niif y los Bienes Muebles que están en Condición de Arrendamiento, así como los Avalúos de Inmuebles que Requiera Findeter, Mediante el Uso de Una Solución Tecnológica que Facilite la Gestión y Automatización del Proceso | M26: 2020-12-31 | N26: 232000000
B27: Operaciones | C27: D. Tecnologia | D27: 203050309 | E27: Mantenimiento de Hardware | F27: 800 | G27: Vicepresidencia de Operaciones | H27: 810 | I27: Direccion de Tecnologia | J27: 113 | K27: Mantenimiento Hardware | L27: Mantenimiento equipos Redes Lan y Wifi Nivel Central | M27: 2020-12-31 | N27: 24519517
B28: S. General | C28: J. Servicios G | D28: 203050305 | E28: Mantenimiento de Vehiculos | F28: 200 | G28: Secretaria General | H28: 245 | I28: Jefatura de Servicios Generales | J28: 746 | K28: Mantenimiento Vehiculos | L28: Sanautos - Mantenimiento de Vehiculo Renault Secretaria General | M28: 2020-12-31 | N28: =1000000+1000000 -> 2000000
B29: Operaciones | C29: D. Tecnologia | D29: 203050310 | E29: Mantenimiento de Software | F29: 800 | G29: Vicepresidencia de Operaciones | H29: 810 | I29: Direccion de Tecnologia | J29: 711 | K29: Soporte y Mantenimiento Herramienta de Bi | L29: Tableros de Inteligencia de Negocios - Bi (Qlik) | M29: 2020-12-31 | N29: 20081250
B30: Comercial | C30: VP Comercial | D30: 203050705 | E30: Libros, Periodicos y Suscripciones | F30: 400 | G30: Vicepresidencia Comercial | H30: 400 | I30: Vicepresidencia Comercial | J30: 290 | K30: Suscripcion Consulta Informacion Comercial En Linea | L30: Servicio de Consulta de Información Comercial en Línea con el Fin de Obtener datos Estadísticos, Potencialidad de Clientes, y Análisis Sectorial del Mercado Colombiano de Interés para Findeter, que Sirva de Insumo para las Estrategias y en la Toma de Decisiones para el área Comercial. Isi Emerging Markets Colombia Sas | M30: 2020-12-31 | N30: 23581189
B31: S. General | C31: D. Juridica | D31: 203030103 | E31: Asesorias Juridicas | F31: 200 | G31: Secretaria General | H31: 210 | I31: Direccion Juridica | J31: 58 | K31: Contratacion de Abogados y Otros Servicios de Carácter Legal | L31: Actualizacion del Normograma de Findeter de acuerdo a las Disposiciones Legales Vigentes - Avance Juridico | M31: 2020-12-31 | N31: 58850000
B32: S. General | C32: J. Servicios G | D32: 203050105 | E32: Archivos Tecnicos | F32: 200 | G32: Secretaria General | H32: 245 | I32: Jefatura de Servicios Generales | J32: 3 | K32: Contrato Archivo de Gestion | L32: Recepción, Administración, Custodia, Organización, Reprografía, Conservación y demás Actividades Derivadas de la Función Archivística | M32: 2020-12-31 | N32: 1289404434
B33: Presidencia | C33: O. Control I | D33: 203030105 | E33: Otras Asesorias | F33: 100 | G33: Presidencia | H33: 125 | I33: Jefatura Oficina Control Interno | J33: 65 | K33: Tercerizacion Oficina de Control Interno Evaluacion y Seguim | L33: Tercerización de la Oci de Getión. Desempeñar los Roles de: Evaluación y Asesoría en temas Relacionados con Auditoria Interna de Gestión. contrato Vigente Ernst Young. | M33: 2020-12-31 | N33: 174691994
B34: Operaciones | C34: D. Tecnologia | D34: 203050310 | E34: Mantenimiento de Software | F34: 800 | G34: Vicepresidencia de Operaciones | H34: 810 | I34: Direccion de Tecnologia | J34: 119 | K34: Mantenimiento Aplicativo Financianet | L34: Sonda de Colombia Soporte Core Financiero - Soporte, Mantenimiento y Desarrollos, del Aplicativo Financianet. | M34: 2020-12-31 | N34: 155803120
B35: Operaciones | C35: D. Tecnologia | D35: 203050101 | E35: Equipo de Computo, Comunicacion y Multifuncionales | F35: 800 | G35: Vicepresidencia de Operaciones | H35: 810 | I35: Direccion de Tecnologia | J35: 20 | K35: Telefonia Ip Licencias y Aparatos Telefonicos | L35: Arrendamiento de equipos de Telefonia sobre Ip | M35: 2020-12-31 | N35: 123189472
B36: S. General | C36: J. Talento H | D36: 203010602 | E36: Capacitacion | F36: 200 | G36: Secretaria General | H36: 260 | I36: Jefatura de Talento Humano | J36: 26 | K36: Programa de Formacion Findeter | L36: Capacitación en el Idioma Inglés para los Trabajadores (Beneficiarios Convención Colectiva y Directivos) | M36: 2020-12-31 | N36: 74253500
B37: Operaciones | C37: D. Tecnologia | D37: 203050101 | E37: Equipo de Computo, Comunicacion y Multifuncionales | F37: 800 | G37: Vicepresidencia de Operaciones | H37: 810 | I37: Direccion de Tecnologia | J37: 716 | K37: Arrendamiento Equipos Computo | L37: Arrendamiento equipos de Computo y Portatiles | M37: 2020-12-31 | N37: 240000000
B38: S. General | C38: J. Servicios G | D38: 203050102 | E38: Locales, Oficinas, Parqueaderos y Otros | F38: 500 | G38: Vicepresidencia Tecnica | H38: 500 | I38: Vicepresidencia Tecnica | J38: 6 | K38: Arredamiento Inmuebles | L38: Arrendamiento Santa Marta | M38: 2020-12-31 | N38: 7811788
B39: Operaciones | C39: D. Tecnologia | D39: 203050310 | E39: Mantenimiento de Software | F39: 800 | G39: Vicepresidencia de Operaciones | H39: 810 | I39: Direccion de Tecnologia | J39: 90 | K39: Servicios de Fabrica y Sofware Para El Desarrollo de Aplicac | L39: Fabrica de Software (Mantenimiento y Desarrollos) | M39: 2020-12-31 | N39: 277196400
B40: S. General | C40: J. Servicios G | D40: 203050102 | E40: Locales, Oficinas, Parqueaderos y Otros | F40: 500 | G40: Vicepresidencia Tecnica | H40: 504 | I40: Sanandres945 | J40: 6 | K40: Arredamiento Inmuebles | L40: Arrendamiento San Andres | M40: 2020-12-31 | N40: 56925730
B41: S. General | C41: J. Servicios G | D41: 203050307 | E41: Mantenimiento de Edificios y Locales | F41: 200 | G41: Secretaria General | H41: 205 | I41: Gerencia de Gestion Humana y Administrativa | J41: 111 | K41: Mantenimiento Inmuebles | L41: Mantenimiento equipos aire acondicionado Bogota | M41: 2020-12-31 | N41: 9092552
B42: S. General | C42: J. Servicios G | D42: 203050307 | E42: Mantenimiento de Edificios y Locales | F42: 200 | G42: Secretaria General | H42: 205 | I42: Gerencia de Gestion Humana y Administrativa | J42: 111 | K42: Mantenimiento Inmuebles | L42: Mantenimiento Ascensor Sede Central | M42: 2020-12-31 | N42: 1332800
B43: S. General | C43: J. Servicios G | D43: 203050307 | E43: Mantenimiento de Edificios y Locales | F43: 400 | G43: Vicepresidencia Comercial | H43: 456 | I43: Regional Pacifico | J43: 111 | K43: Mantenimiento Inmuebles | L43: Mantenimiento equipos aire acondicionado Cali | M43: 2020-12-31 | N43: 2302650
B44: S. General | C44: J. Servicios G | D44: 203050307 | E44: Mantenimiento de Edificios y Locales | F44: 200 | G44: Secretaria General | H44: 205 | I44: Gerencia de Gestion Humana y Administrativa | J44: 102 | K44: Mantenimiento Preventivo y Correctivo Planta Electrica | L44: Mantenimiento Planta Electrica Cummins | M44: 2020-12-31 | N44: 3018910
B45: S. General | C45: J. Servicios G | D45: 203050502 | E45: Servicios de Vigilancia y Sistemas de Seguridad | F45: 800 | G45: Vicepresidencia de Operaciones | H45: 810 | I45: Direccion de Tecnologia | J45: 183 | K45: Servicio Monitoreo de Alarmas | L45: Servicio de Monitoreo de Alarma Dirección de Operaciones de acuerdo a las Disposiciones de Riesgos | M45: 2020-12-31 | N45: 640500
B46: S. General | C46: J. Servicios G | D46: 203050502 | E46: Servicios de Vigilancia y Sistemas de Seguridad | F46: 800 | G46: Vicepresidencia de Operaciones | H46: 820 | I46: Direccion de Operaciones | J46: 183 | K46: Servicio Monitoreo de Alarmas | L46: Servicio de Monitoreo de Alarma Dirección de Operaciones de acuerdo a las Disposiciones de Riesgos | M46: 2020-12-31 | N46: 640500
B47: S. General | C47: J. Servicios G | D47: 203050502 | E47: Servicios de Vigilancia y Sistemas de Seguridad | F47: 800 | G47: Vicepresidencia de Operaciones | H47: 820 | I47: Direccion de Operaciones | J47: 183 | K47: Servicio Monitoreo de Alarmas | L47: Servicio de Monitoreo de Alarma Dirección de Operaciones de acuerdo a las Disposiciones de Riesgos | M47: 2020-12-31 | N47: 19322
B48: S. General | C48: J. Talento H | D48: 203010602 | E48: Capacitacion | F48: 300 | G48: Vicepresidencia Financiera | H48: 315 | I48: Direccion de Tesoreria | J48: 26 | K48: Programa de Formacion Findeter | L48: Gastos Autorregulador del Mercado Valores | M48: 2020-12-31 | N48: 9000000
B49: S. General | C49: J. Servicios G | D49: 203050307 | E49: Mantenimiento de Edificios y Locales | F49: 400 | G49: Vicepresidencia Comercial | H49: 452 | I49: Zona Nororiental | J49: 111 | K49: Mantenimiento Inmuebles | L49: Mantenimiento equipos aire acondicionado Bucaramanga | M49: 2020-12-31 | N49: 587900
B50: Operaciones | C50: D. Tecnologia | D50: 203050309 | E50: Mantenimiento de Hardware | F50: 800 | G50: Vicepresidencia de Operaciones | H50: 810 | I50: Direccion de Tecnologia | J50: 760 | K50: Soporte y Mantenimiento de La Solucion Integral Procesamient | L50: Soporte y Mantenimiento de Firewall | M50: 2020-12-31 | N50: 952000
B51: S. General | C51: J. Servicios G | D51: 203050307 | E51: Mantenimiento de Edificios y Locales | F51: 200 | G51: Secretaria General | H51: 245 | I51: Jefatura de Servicios Generales | J51: 104 | K51: Revision y Recarga de Extintores | L51: Recarga de Extintores Calle 103 y 104 | M51: 2020-12-31 | N51: 3572874
B52: Operaciones | C52: D. Tecnologia | D52: 203050502 | E52: Servicios de Vigilancia y Sistemas de Seguridad | F52: 800 | G52: Vicepresidencia de Operaciones | H52: 810 | I52: Direccion de Tecnologia | J52: 183 | K52: Servicio Monitoreo de Alarmas | L52: Control de Acceso a la Red Nac - Soporte y Mantenimiento. | M52: 2020-12-31 | N52: 34149674
B53: S. General | C53: J. Servicios G | D53: 203050307 | E53: Mantenimiento de Edificios y Locales | F53: 200 | G53: Secretaria General | H53: 245 | I53: Jefatura de Servicios Generales | J53: 101 | K53: Mantenimiento Pisos Madera y Marmol | L53: Mantenimiento Marmol Lobby | M53: 2020-12-31 | N53: 3036880
B54: Comercial | C54: J. Mercadeo | D54: 203051002 | E54: Promocion y Divulgacion | F54: 400 | G54: Vicepresidencia Comercial | H54: 461 | I54: Jefatura de Mercadeo | J54: 168 | K54: Servicio y Atencion de Reuniones. Eventos Comerciales E Inst | L54: Contratación de Servicios de Catering para Atender Reuniones a Domicilio o en los Lugares Contratados (Ej: Hoteles a Nivel Nal., Club de Banqueros, entre Otros) | M54: 2020-12-31 | N54: 5000000
B55: Comercial | C55: J. Mercadeo | D55: 203051002 | E55: Promocion y Divulgacion | F55: 400 | G55: Vicepresidencia Comercial | H55: 461 | I55: Jefatura de Mercadeo | J55: 168 | K55: Servicio y Atencion de Reuniones. Eventos Comerciales E Inst | L55: Contratación de Servicios de Catering para Atender Reuniones a Domicilio o en los Lugares Contratados (Ej: Hoteles a Nivel Nal., Club de Banqueros, entre Otros) | M55: 2020-12-31 | N55: 2500000
B56: Operaciones | C56: D. Tecnologia | D56: 203050310 | E56: Mantenimiento de Software | F56: 800 | G56: Vicepresidencia de Operaciones | H56: 810 | I56: Direccion de Tecnologia | J56: 118 | K56: Soporte. Mantenimiento y Actualizacion Finac | L56: Finac: (Soporte, Mantenimiento y Desarrollos) Sistema de Riesgo de Mercado y Liquidez | M56: 2020-12-31 | N56: 53380440
B57: Comercial | C57: J. Mercadeo | D57: 203051002 | E57: Promocion y Divulgacion | F57: 400 | G57: Vicepresidencia Comercial | H57: 461 | I57: Jefatura de Mercadeo | J57: 168 | K57: Servicio y Atencion de Reuniones. Eventos Comerciales E Inst | L57: Contratación de Servicios de Catering para Atender Reuniones a Domicilio o en los Lugares Contratados (Ej: Hoteles a Nivel Nal., Club de Banqueros, entre Otros) | M57: 2020-12-31 | N57: 2500000
B58: Operaciones | C58: D. Tecnologia | D58: 203050101 | E58: Equipo de Computo, Comunicacion y Multifuncionales | F58: 800 | G58: Vicepresidencia de Operaciones | H58: 810 | I58: Direccion de Tecnologia | J58: 753 | K58: Servicio Canales de Comunicación Con Terceros | L58: Canales para Master Trader (Cao) Aplicaciones Bvc | M58: 2020-12-31 | N58: 16494641
B59: Operaciones | C59: D. Tecnologia | D59: 203050310 | E59: Mantenimiento de Software | F59: 700 | G59: Vicepresidencia de Credito y Riesgos | H59: 702 | I59: Coordinacion de Riesgos No Financieros | J59: 917 | K59: Soporte, Mantenimiento y Actualizacion Aplicativo Wrm | L59: Mantenimiento de Aplicativo Wrm | M59: 2020-12-31 | N59: 80185663
B60: Comercial | C60: J. Mercadeo | D60: 203051002 | E60: Promocion y Divulgacion | F60: 400 | G60: Vicepresidencia Comercial | H60: 461 | I60: Jefatura de Mercadeo | J60: 164 | K60: Elaboracion de Elementos Promocionales | L60: Elaboración de elementos Promocionales | M60: 2020-12-31 | N60: 6999600
B61: Comercial | C61: G. Comunicaciones | D61: 203030105 | E61: Otras Asesorias | F61: 400 | G61: Vicepresidencia Comercial | H61: 460 | I61: Gerencia de Comunicaciones, Mercadeo y Responsabilidad Socia | J61: 291 | K61: Servicio Monitoreo de Medios | L61: Asesorias Servicio de Monitero de Medios de Comunicación | M61: 2020-12-31 | N61: 9966590
B62: S. General | C62: J. Servicios G | D62: 203050307 | E62: Mantenimiento de Edificios y Locales | F62: 400 | G62: Vicepresidencia Comercial | H62: 491 | I62: Regional Noroccidental | J62: 111 | K62: Mantenimiento Inmuebles | L62: Mantenimiento equipos aire acondicionado Medellin | M62: 2020-12-31 | N62: 4133752
B63: S. General | C63: J. Servicios G | D63: 203050307 | E63: Mantenimiento de Edificios y Locales | F63: 400 | G63: Vicepresidencia Comercial | H63: 493 | I63: Regional Caribe | J63: 111 | K63: Mantenimiento Inmuebles | L63: Mantenimiento equipos aire acondicionado Barranquilla | M63: 2020-12-31 | N63: 2585080
B64: S. General | C64: J. Servicios G | D64: 203050307 | E64: Mantenimiento de Edificios y Locales | F64: 400 | G64: Vicepresidencia Comercial | H64: 483 | I64: Zona Eje Cafetero | J64: 111 | K64: Mantenimiento Inmuebles | L64: Mantenimiento equipos aire acondicionado Pereira | M64: 2020-12-31 | N64: 1987100
B65: Operaciones | C65: D. Tecnologia | D65: 203050310 | E65: Mantenimiento de Software | F65: 800 | G65: Vicepresidencia de Operaciones | H65: 810 | I65: Direccion de Tecnologia | J65: 121 | K65: Soporte y Mantenimiento Para La Solucion Crm | L65: Mantenimiento de Sistema de Gestión de Relación con el Cliente (Crm) | M65: 2020-12-31 | N65: 97104000
B66: S. General | C66: D. Juridica | D66: 203030103 | E66: Asesorias Juridicas | F66: 200 | G66: Secretaria General | H66: 210 | I66: Direccion Juridica | J66: 58 | K66: Contratacion de Abogados y Otros Servicios de Carácter Legal | L66: Prestar el Servicio de Vigilancia Y/O Control de los procesos Donde Findeter sea Demandante o Demandado, los Cuales se Adelantan en los Diferetes Despachos Judiciales del Pais - Lupa | M66: 2020-12-31 | N66: 10720000
B67: Operaciones | C67: D. Tecnologia | D67: 203050711 | E67: Otros Gastos de Oficina | F67: 800 | G67: Vicepresidencia de Operaciones | H67: 810 | I67: Direccion de Tecnologia | J67: 145 | K67: Firmas Digitales Certicamara Tecnologia | L67: Certicamara: Renovación, Adquisición Firmas Digitales para Representantes Legales y Diferentes Actores | M67: 2020-12-31 | N67: 3000000
B68: Operaciones | C68: D. Tecnologia | D68: 203050309 | E68: Mantenimiento de Hardware | F68: 800 | G68: Vicepresidencia de Operaciones | H68: 810 | I68: Direccion de Tecnologia | J68: 935 | K68: Implementacion Proyectos Peti | L68: Proyecto: Solucion de Almacenamiento para Comunicaciones | M68: 2020-12-31 | N68: 199920
B69: S. General | C69: J. Servicios G | D69: 203050307 | E69: Mantenimiento de Edificios y Locales | F69: 400 | G69: Vicepresidencia Comercial | H69: 482 | I69: Regional Centro | J69: 111 | K69: Mantenimiento Inmuebles | L69: Mantenimiento equipos aire acondicionado Neiva | M69: 2020-12-31 | N69: 2642000
B70: S. General | C70: J. Servicios G | D70: 203050501 | E70: Servicio de Aseo y Cafeteria | F70: 200 | G70: Secretaria General | H70: 245 | I70: Jefatura de Servicios Generales | J70: 187 | K70: Servicio de Aseo. Cafeteria y Mantenimiento | L70: Servicio de Instalación Mantenimiento, Desinfección Desincrustación, y Aromatización de Todos los Baños de Finedter en sus Sedes de la Calle 103 y 104 | M70: 2020-12-31 | N70: 26517960
B71: S. General | C71: J. Servicios G | D71: 203050502 | E71: Servicios de Vigilancia y Sistemas de Seguridad | F71: 400 | G71: Vicepresidencia Comercial | H71: 492 | I71: Regional Nororiental | J71: 183 | K71: Servicio Monitoreo de Alarmas | L71: Servicio de Monitoreo de Alarma Bucaramanga de acuerdo a las Disposiciones de Riesgos | M71: 2020-12-31 | N71: 1152000
B72: S. General | C72: J. Servicios G | D72: 203050502 | E72: Servicios de Vigilancia y Sistemas de Seguridad | F72: 400 | G72: Vicepresidencia Comercial | H72: 493 | I72: Regional Caribe | J72: 183 | K72: Servicio Monitoreo de Alarmas | L72: Servicio de Monitoreo de Alarma Barranquilla de acuerdo a las Disposiciones de Riesgos | M72: 2020-12-31 | N72: 1152000
B73: S. General | C73: J. Talento H | D73: 203010602 | E73: Capacitacion | F73: 400 | G73: Vicepresidencia Comercial | H73: 492 | I73: Regional Nororiental | J73: 26 | K73: Programa de Formacion Findeter | L73: Maestría en Gestión Pública Gerente Regional Jose Gabriel Mestre- U Andes | M73: 2020-12-31 | N73: 28340400
B74: Operaciones | C74: D. Tecnologia | D74: 203030105 | E74: Otras Asesorias | F74: 800 | G74: Vicepresidencia de Operaciones | H74: 810 | I74: Direccion de Tecnologia | J74: 935 | K74: Implementacion Proyectos Peti | L74: Proyecto Migración a Ipv6 | M74: 2020-12-31 | N74: 38580038
B75: Operaciones | C75: D. Tecnologia | D75: 203030105 | E75: Otras Asesorias | F75: 800 | G75: Vicepresidencia de Operaciones | H75: 810 | I75: Direccion de Tecnologia | J75: 935 | K75: Implementacion Proyectos Peti | L75: Proyecto: Uso y Apropiacion de TI 2020 (Estretegia Consultoria) | M75: 2020-12-31 | N75: 7152000
B76: S. General | C76: J. Servicios G | D76: 203050307 | E76: Mantenimiento de Edificios y Locales | F76: 200 | G76: Secretaria General | H76: 245 | I76: Jefatura de Servicios Generales | J76: 427 | K76: Mantenimiento de Cortinas | L76: Mantenimiento de Cortinas Sede 103 y 104 Findeter | M76: 2020-12-31 | N76: 7122950
B77: S. General | C77: J. Servicios G | D77: 203050307 | E77: Mantenimiento de Edificios y Locales | F77: 500 | G77: Vicepresidencia Tecnica | H77: 504 | I77: Sanandres945 | J77: 111 | K77: Mantenimiento Inmuebles | L77: Mantenimiento equipos aire acondicionado San Andres | M77: 2020-12-31 | N77: 3500000
B78: S. General | C78: J. Servicios G | D78: 203050711 | E78: Otros Gastos de Oficina | F78: 200 | G78: Secretaria General | H78: 245 | I78: Jefatura de Servicios Generales | J78: 146 | K78: Otros Gastos de Oficina Findeter General | L78: Suministrar elementos Básicos para Botiquines para Brindar los Primeros Auxilios, y Atención de Cualquier Situación de Emergencia o Acontecimientos Inesperados que se Puedan Presentar en las Instalaciones de Findeter a Nivel Nacional | M78: 2020-12-31 | N78: 883575
B79: Operaciones | C79: D. Tecnologia | D79: 203050101 | E79: Equipo de Computo, Comunicacion y Multifuncionales | F79: 800 | G79: Vicepresidencia de Operaciones | H79: 810 | I79: Direccion de Tecnologia | J79: 410 | K79: Ups | L79: Arrendamiento de Ups | M79: 2020-12-31 | N79: 17751089
B80: Operaciones | C80: D. Tecnologia | D80: 203050309 | E80: Mantenimiento de Hardware | F80: 800 | G80: Vicepresidencia de Operaciones | H80: 810 | I80: Direccion de Tecnologia | J80: 410 | K80: Ups | L80: Mantenimiento y Soporte de Ups | M80: 2020-12-31 | N80: 47188633
B81: Operaciones | C81: D. Tecnologia | D81: 203050101 | E81: Equipo de Computo, Comunicacion y Multifuncionales | F81: 800 | G81: Vicepresidencia de Operaciones | H81: 820 | I81: Direccion de Operaciones | J81: 753 | K81: Servicio Canales de Comunicación Con Terceros | L81: Servicio Canales de Comunicación con Terceros (Sebra-Bvc-Superf) | M81: 2020-12-31 | N81: 57323372
B82: S. General | C82: J. Servicios G | D82: 203050307 | E82: Mantenimiento de Edificios y Locales | F82: 200 | G82: Secretaria General | H82: 245 | I82: Jefatura de Servicios Generales | J82: 103 | K82: Mantenimiento Equipos de Bombeo y Contra Incendios | L82: Mantenimiento, Preventivo y Correctivo de los equipos de Bombeo de Agua | M82: 2020-12-31 | N82: 17750003
B83: S. General | C83: J. Servicios G | D83: 203050307 | E83: Mantenimiento de Edificios y Locales | F83: 200 | G83: Secretaria General | H83: 245 | I83: Jefatura de Servicios Generales | J83: 734 | K83: Mantenimiento Edificio | L83: Servicio de Mantenimiento del Edificio que Requiera Pago a un externo y que el Personal de Mantenimiento no Pueda Atender, Tales como Arreglo del Piso, Puerta Parqueadero, Cieloraso y Demas | M83: 2020-12-31 | N83: 8594344
B84: S. General | C84: J. Servicios G | D84: 203050401 | E84: Arreglos Ornamentales | F84: 200 | G84: Secretaria General | H84: 245 | I84: Jefatura de Servicios Generales | J84: 1 | K84: Arreglos Ornamentales | L84: Arreglos Ornamentales del Edificio | M84: 2020-12-31 | N84: 4536000
B85: Operaciones | C85: D. Tecnologia | D85: 203050906 | E85: Servicio de Conectividad | F85: 700 | G85: Vicepresidencia de Credito y Riesgos | H85: 702 | I85: Coordinacion de Riesgos No Financieros | J85: 181 | K85: Conectividad Tercerizacion | L85: Centro Alterno de Operaciones-Cao con la Conexión de Sebra, Deceval, Superfinanciera. | M85: 2020-12-31 | N85: 26655670
B86: S. General | C86: J. Servicios G | D86: 203050307 | E86: Mantenimiento de Edificios y Locales | F86: 200 | G86: Secretaria General | H86: 245 | I86: Jefatura de Servicios Generales | J86: 734 | K86: Mantenimiento Edificio | L86: Servicio de Mantenimiento del Edificio que Requiera Pago a un externo y que el Personal de Mantenimiento no Pueda Atender, Tales como Arreglo del Piso, Puerta Parqueadero, Cieloraso y Demas | M86: 2020-12-31 | N86: 1856800
B87: Operaciones | C87: D. Tecnologia | D87: 203050310 | E87: Mantenimiento de Software | F87: 800 | G87: Vicepresidencia de Operaciones | H87: 810 | I87: Direccion de Tecnologia | J87: 767 | K87: Mantenimiento Software | L87: Isolucion - Soporte y Mantenimiento de Aplicativo Sistema de Gestión Integrado (Sgi) | M87: 2020-12-31 | N87: 20409116
B88: S. General | C88: J. Servicios G | D88: 203050307 | E88: Mantenimiento de Edificios y Locales | F88: 200 | G88: Secretaria General | H88: 245 | I88: Jefatura de Servicios Generales | J88: 99 | K88: Lavado Ventaneria y Sellamiento | L88: Mantenimiento Impermeabilizacion Cubierta y Lavado de Vidrios de Fachadas | M88: 2020-12-31 | N88: 14503026
B89: Operaciones | C89: D. Tecnologia | D89: 203050309 | E89: Mantenimiento de Hardware | F89: 800 | G89: Vicepresidencia de Operaciones | H89: 810 | I89: Direccion de Tecnologia | J89: 113 | K89: Mantenimiento Hardware | L89: Mantenimiento equipos Red Wifi Regionales | M89: 2020-12-31 | N89: 16090001
B90: S. General | C90: J. Servicios G | D90: 203050307 | E90: Mantenimiento de Edificios y Locales | F90: 200 | G90: Secretaria General | H90: 245 | I90: Jefatura de Servicios Generales | J90: 105 | K90: Suministro Combustible Acpm | L90: Suministro de Acpm para la Planta de Energia | M90: 2020-12-31 | N90: 7934800
B91: S. General | C91: J. Talento H | D91: 203030105 | E91: Otras Asesorias | F91: 200 | G91: Secretaria General | H91: 260 | I91: Jefatura de Talento Humano | J91: 76 | K91: Mediciones de Clima Cultura Cazatalentos entre Otras | L91: Contratación Administración Herramienta de Gestión del Desarrollo y Aplicación de las Evaluaciones, Informes y Retroalimentación (Kpis, Evaluación 360). | M91: 2020-12-31 | N91: 10802538
B92: S. General | C92: J. Talento H | D92: 203010607 | E92: Salud Ocupacional | F92: 200 | G92: Secretaria General | H92: 260 | I92: Jefatura de Talento Humano | J92: 180 | K92: Salud Ocupacional | L92: Examenes Medicos Ocupacionales Periodicos, Ingreso, Retiro, Post Incapacidad y otros que se Requieran. | M92: 2020-12-31 | N92: 8653952
B93: Operaciones | C93: D. Tecnologia | D93: 203050310 | E93: Mantenimiento de Software | F93: 800 | G93: Vicepresidencia de Operaciones | H93: 810 | I93: Direccion de Tecnologia | J93: 120 | K93: Soporte Desarrollo Mantenimiento Para La Pagina Web E Intran | L93: Nexura Soporte y Mantenimiento Página Web e Intranet | M93: 2020-12-31 | N93: 57120000
B94: S. General | C94: D. Juridica | D94: 203030103 | E94: Asesorias Juridicas | F94: 200 | G94: Secretaria General | H94: 210 | I94: Direccion Juridica | J94: 58 | K94: Contratacion de Abogados y Otros Servicios de Carácter Legal | L94: Asesoria Juridica en Derecho Administrativo y Contractual, en lo Relacionado con la Actividad Y/O Gestión Misional en Aquellos Aspectos que se Consideren de Especial Complejidad. Suarez Beltran Sas | M94: 2020-12-31 | N94: 5000000
B95: S. General | C95: J. Talento H | D95: 203010602 | E95: Capacitacion | F95: 300 | G95: Vicepresidencia Financiera | H95: 355 | I95: Gerencia de Banca de Inversion | J95: 26 | K95: Programa de Formacion Findeter | L95: Maestria en Administración - Mba Lucia Tarazona | M95: 2020-12-31 | N95: 37608505
B96: Operaciones | C96: D. Tecnologia | D96: 203050310 | E96: Mantenimiento de Software | F96: 800 | G96: Vicepresidencia de Operaciones | H96: 810 | I96: Direccion de Tecnologia | J96: 117 | K96: Soporte. Mantenimiento y Actualizacion Alfyn y Proformas | L96: Alfyn - Soporte y Mantenimiento Portafolio de Inversiones de Renta Fija y Cuentas Bancarias | M96: 2020-12-31 | N96: 50870644
B97: Operaciones | C97: D. Tecnologia | D97: 203050309 | E97: Mantenimiento de Hardware | F97: 800 | G97: Vicepresidencia de Operaciones | H97: 810 | I97: Direccion de Tecnologia | J97: 113 | K97: Mantenimiento Hardware | L97: Mantenimiento equipos Redes Lan y Wifi Nivel Central | M97: 2020-12-31 | N97: 27059083
B98: S. General | C98: J. Servicios G | D98: 203050102 | E98: Locales, Oficinas, Parqueaderos y Otros | F98: 500 | G98: Vicepresidencia Tecnica | H98: 500 | I98: Vicepresidencia Tecnica | J98: 6 | K98: Arredamiento Inmuebles | L98: Arrendandamiento Piso 6 Ii Calle 104 | M98: 2020-12-31 | N98: 34321440
B99: Financiera | C99: D. Banca Int. | D99: 203020201 | E99: Gastos de Viaje A Terceros Nacionales | F99: 300 | G99: Vicepresidencia Financiera | H99: 345 | I99: Jefatura de Banca Internacional | J99: 48 | K99: Gastos de Viaje Asesorias | L99: Desplazamiento Auditores Externos contrato 0001 de 2018 | M99: 2020-12-31 | N99: 23152500
B100: Financiera | C100: D. Banca Int. | D100: 203030105 | E100: Otras Asesorias | F100: 300 | G100: Vicepresidencia Financiera | H100: 345 | I100: Jefatura de Banca Internacional | J100: 771 | K100: Seguimiento Auditoria | L100: Auditoria contrato de Préstamo Bid 3596/Oc-Co. contrato 0001 de 2018 | M100: 2020-12-31 | N100: 179690000
B101: Operaciones | C101: D. Tecnologia | D101: 203050101 | E101: Equipo de Computo, Comunicacion y Multifuncionales | F101: 800 | G101: Vicepresidencia de Operaciones | H101: 810 | I101: Direccion de Tecnologia | J101: 14 | K101: Tercerizacion Servicio Datacenter | L101: Servicio de Datacenter Centurylink | M101: 2020-12-31 | N101: 985289760
B102: Operaciones | C102: D. Tecnologia | D102: 203050906 | E102: Servicio de Conectividad | F102: 800 | G102: Vicepresidencia de Operaciones | H102: 810 | I102: Direccion de Tecnologia | J102: 181 | K102: Conectividad Tercerizacion | L102: Canales de Comunicación (Internet). Centurylink | M102: 2020-12-31 | N102: 294182280
B103: Operaciones | C103: D. Tecnologia | D103: 203050310 | E103: Mantenimiento de Software | F103: 800 | G103: Vicepresidencia de Operaciones | H103: 810 | I103: Direccion de Tecnologia | J103: 122 | K103: Tercerizacion Correo Corporativo Level 3 | L103: Correo Corporativo Centurylink | M103: 2020-12-31 | N103: 536485320
B104: Riesgos | C104: Coordinacion de Riesgos No Financieros | D104: 203030105 | E104: Otras Asesorias | F104: 700 | G104: Vicepresidencia de Credito y Riesgos | H104: 702 | I104: Coordinacion de Riesgos No Financieros | J104: 642 | K104: Otras Asesorias | L104: Contrato de Prestación de Servicios No. 0005 de 2019 que se Suscribió con la Empresa O4It Colombia Sas Cuyo Objeto Es "Servicio Integral de Seguridad Gestionada que Incluya la Recolección, Análisis y Correlación de Eventos de Seguridad y Ciberseguridad, Análisis de Vulnerabilidades, Ethical Hacking, Ingeniería Social, Análisis Forense y Gestión de Eventos e Incidentes de Seguridad y Ciberseguridad de la Información" | M104: 2020-12-31 | N104: 29103106
B105: Operaciones | C105: V. Operaciones | D105: 203030102 | E105: Revisoria Fiscal | F105: 70 | G105: Revisoria Fiscal | H105: 70 | I105: Revisoria Fiscal | J105: 179 | K105: Revisoria Fiscal | L105: Revisoria Fiscal | M105: 2020-12-31 | N105: 175486000
B106: Operaciones | C106: D. Tecnologia | D106: 203050310 | E106: Mantenimiento de Software | F106: 800 | G106: Vicepresidencia de Operaciones | H106: 810 | I106: Direccion de Tecnologia | J106: 126 | K106: Soporte y Mantenimiento Sistema Ax (Erp) | L106: Erp Corporativo Alfapeople (Dynamics Ax). Soporte y Mantenimiento | M106: 2020-12-31 | N106: 698629831
B107: S. General | C107: J. Servicios G | D107: 203050501 | E107: Servicio de Aseo y Cafeteria | F107: 200 | G107: Secretaria General | H107: 245 | I107: Jefatura de Servicios Generales | J107: 187 | K107: Servicio de Aseo. Cafeteria y Mantenimiento | L107: Servicio de aseo y cafeteria | M107: 2020-12-31 | N107: 550310402
B108: S. General | C108: D. Juridica | D108: 203030103 | E108: Asesorias Juridicas | F108: 200 | G108: Secretaria General | H108: 210 | I108: Direccion Juridica | J108: 58 | K108: Contratacion de Abogados y Otros Servicios de Carácter Legal | L108: Prestar el Servicio de Asesoría y Apoyo Integral a Findeter en Todos los Aspectos Contractuales en las Diferentes Etapas, así como en la Estructuración y Revisión de temas Relacionados con el Gobierno Corporativo y el Soporte Jurídico a los Diferentes Asuntos Relacionados con los Seguros Requeridos dentro de la Actividad de Asistencia Técnica - Carlos Ballesteros | M108: 2020-12-31 | N108: 15833333
B109: Operaciones | C109: D. Tecnologia | D109: 203050310 | E109: Mantenimiento de Software | F109: 800 | G109: Vicepresidencia de Operaciones | H109: 810 | I109: Direccion de Tecnologia | J109: 912 | K109: Herramienta Supervision y Contratos de Obra "Cobra" | L109: Gestión de Obras y Casa Digna Vida Digna | M109: 2020-12-31 | N109: 52330954
B110: Comercial | C110: G. Comunicaciones | D110: 203030105 | E110: Otras Asesorias | F110: 400 | G110: Vicepresidencia Comercial | H110: 460 | I110: Gerencia de Comunicaciones, Mercadeo y Responsabilidad Socia | J110: 63 | K110: Asesoria En Comunicaciones | L110: Asesoría y Acompañamiento en Comunicaciones Estratégicas | M110: 2020-12-31 | N110: 54540000
B111: S. General | C111: J. Talento H | D111: 203010604 | E111: Bienestar Social | F111: 200 | G111: Secretaria General | H111: 260 | I111: Jefatura de Talento Humano | J111: 25 | K111: Bienestar Social | L111: Contratación para el Desarrollo de Actividades del Programa Calidad de Vida, Bienestar y Modelo Efr Dirigidas a los Colaboradores de Findeter Relacionadas con Recreación, Deporte, Cultura, Mercadeo Social, Salud, Eventos Sociales, Escenarios e Instalaciones Adecuadas, entre otras. | M111: 2020-12-31 | N111: 20000000
B112: Operaciones | C112: D. Tecnologia | D112: 203050310 | E112: Mantenimiento de Software | F112: 800 | G112: Vicepresidencia de Operaciones | H112: 810 | I112: Direccion de Tecnologia | J112: 119 | K112: Mantenimiento Aplicativo Financianet | L112: Sonda de Colombia Soporte Core Financiero - Soporte, Mantenimiento y Desarrollos, del Aplicativo Financianet. | M112: 2020-12-31 | N112: 144399312
B113: Comercial | C113: G. Comunicaciones | D113: 203050311 | E113: Mantenimiento Pagina Web | F113: 400 | G113: Vicepresidencia Comercial | H113: 460 | I113: Gerencia de Comunicaciones, Mercadeo y Responsabilidad Socia | J113: 935 | K113: Implementacion Proyectos Peti | L113: Ecosistema Digital Mantenimiento Pagina Web | M113: 2020-12-31 | N113: 122238872
B114: Comercial | C114: G. Comunicaciones | D114: 204010110 | E114: Nuevas Funcionalidades | F114: 400 | G114: Vicepresidencia Comercial | H114: 460 | I114: Gerencia de Comunicaciones, Mercadeo y Responsabilidad Socia | J114: 935 | K114: Implementacion Proyectos Peti | L114: Ecosistema Digital | M114: 2020-12-31 | N114: 40746290
B115: Comercial | C115: G. Comunicaciones | D115: 203030105 | E115: Otras Asesorias | F115: 400 | G115: Vicepresidencia Comercial | H115: 460 | I115: Gerencia de Comunicaciones, Mercadeo y Responsabilidad Socia | J115: 642 | K115: Otras Asesorias | L115: Ecosistema Digital otras. Asesorias | M115: 2020-12-31 | N115: 40746290
B116: S. General | C116: J. Servicios G | D116: 203050502 | E116: Servicios de Vigilancia y Sistemas de Seguridad | F116: 200 | G116: Secretaria General | H116: 245 | I116: Jefatura de Servicios Generales | J116: 941 | K116: Sistema Integrado de Seguridad Electronica | L116: Camaras de video Vigilancia, Dispositivos Biometricos de Entrada y Salida, Sensores de Incendio | M116: 2020-12-31 | N116: 929525599
B117: Operaciones | C117: D. Operaciones | D117: 203030104 | E117: Asesorias Financieras | F117: 800 | G117: Vicepresidencia de Operaciones | H117: 820 | I117: Direccion de Operaciones | J117: 731 | K117: Asesoria Financiera | L117: Asesoria Regimen Cambiario (Bolsa de 80 horas a $520.000 +Iva) | M117: 2020-12-31 | N117: 26989200
B118: S. General | C118: J. Talento H | D118: 203030103 | E118: Asesorias Juridicas | F118: 200 | G118: Secretaria General | H118: 260 | I118: Jefatura de Talento Humano | J118: 59 | K118: Contratacion Asesoria Juridica Laboral | L118: Prestar los Servicios Profesionales para Asesorar de Manera Integral a Findeter en Materia Laboral y de Seguridad Social Conforme los Requerimientos Legales Derivados de la Administración del Personal. | M118: 2020-12-31 | N118: 52229279
B119: Operaciones | C119: D. Contabilidad | D119: 203030105 | E119: Otras Asesorias | F119: 800 | G119: Vicepresidencia de Operaciones | H119: 860 | I119: Direccion de Contabilidad | J119: 67 | K119: Asesoria Tributaria Para Findeter | L119: Asesoria Tributaria Integral y Permanente de Findeter | M119: 2020-12-31 | N119: 58706667
B120: S. General | C120: J. Servicios G | D120: 203050709 | E120: Elementos de Aseo y Cafeteria | F120: 200 | G120: Secretaria General | H120: 245 | I120: Jefatura de Servicios Generales | J120: 44 | K120: Elementos de Aseo y Cafeteria | L120: Elementos de aseo y cafeteria | M120: 2020-12-31 | N120: 207482485
B121: Operaciones | C121: D. Tecnologia | D121: 204010108 | E121: Compra de Software | F121: 800 | G121: Vicepresidencia de Operaciones | H121: 810 | I121: Direccion de Tecnologia | J121: 132 | K121: Desarrollos Requeridos datos Abiertos y Automatizacion de Ma | L121: Assista (Herramienta de Asistencia Técnica) Proactivanet Licenciamiento | M121: 2020-12-31 | N121: 22827651
B122: Operaciones | C122: D. Tecnologia | D122: 203030105 | E122: Otras Asesorias | F122: 800 | G122: Vicepresidencia de Operaciones | H122: 810 | I122: Direccion de Tecnologia | J122: 132 | K122: Desarrollos Requeridos datos Abiertos y Automatizacion de Ma | L122: Assista (Herramienta de Asistencia Técnica) Proactivanet Consultoria Especializada | M122: 2020-12-31 | N122: 19164577
B123: Operaciones | C123: D. Tecnologia | D123: 203050310 | E123: Mantenimiento de Software | F123: 800 | G123: Vicepresidencia de Operaciones | H123: 810 | I123: Direccion de Tecnologia | J123: 421 | K123: Herramienta de Servicios de Tecnologia | L123: Assista (Herramienta de Asistencia Técnica) Proactivanet Soporte y Mantenimiento de Aplicativo. | M123: 2020-12-31 | N123: 162597675
B124: Operaciones | C124: D. Tecnologia | D124: 203030105 | E124: Otras Asesorias | F124: 800 | G124: Vicepresidencia de Operaciones | H124: 810 | I124: Direccion de Tecnologia | J124: 935 | K124: Implementacion Proyectos Peti | L124: Proyecto Arquitectura para el Core Técnico y Financiero | M124: 2020-12-31 | N124: 102000030
B125: Operaciones | C125: D. Tecnologia | D125: 204010108 | E125: Compra de Software | F125: 200 | G125: Secretaria General | H125: 245 | I125: Jefatura de Servicios Generales | J125: 115 | K125: Implementacion Software Gestion Documental | L125: Gestión Documental (Correspondencia) | M125: 2020-12-31 | N125: 36375928
B126: Operaciones | C126: D. Tecnologia | D126: 203030105 | E126: Otras Asesorias | F126: 200 | G126: Secretaria General | H126: 245 | I126: Jefatura de Servicios Generales | J126: 115 | K126: Implementacion Software Gestion Documental | L126: Gestión Documental (Correspondencia) | M126: 2020-12-31 | N126: 5114072
B127: Operaciones | C127: D. Tecnologia | D127: 203030105 | E127: Otras Asesorias | F127: 800 | G127: Vicepresidencia de Operaciones | H127: 810 | I127: Direccion de Tecnologia | J127: 935 | K127: Implementacion Proyectos Peti | L127: Proyecto Gobierno de datos (Modelo Gestion y Gobierno) | M127: 2020-12-31 | N127: 71250000
B128: S. General | C128: J. Servicios G | D128: 203050502 | E128: Servicios de Vigilancia y Sistemas de Seguridad | F128: 200 | G128: Secretaria General | H128: 245 | I128: Jefatura de Servicios Generales | J128: 184 | K128: Servicio Vigilancia Sede Central Findeter | L128: Servicio de Vigilancia Personal | M128: 2020-12-31 | N128: 312019728
B129: Operaciones | C129: D. Tecnologia | D129: 203050101 | E129: Equipo de Computo, Comunicacion y Multifuncionales | F129: 800 | G129: Vicepresidencia de Operaciones | H129: 810 | I129: Direccion de Tecnologia | J129: 718 | K129: Suministro Software Findeter | L129: Sistema de Gestión de Talento Humano (Nomina) | M129: 2020-12-31 | N129: 59874750
B130: Operaciones | C130: D. Tecnologia | D130: 203030105 | E130: Otras Asesorias | F130: 800 | G130: Vicepresidencia de Operaciones | H130: 810 | I130: Direccion de Tecnologia | J130: 642 | K130: Otras Asesorias | L130: Sistema de Gestión de Talento Humano (Nomina) | M130: 2020-12-31 | N130: 59158146
B131: S. General | C131: J. Servicios G | D131: 203020103 | E131: Pasajes y Transporte Aereos | F131: 200 | G131: Secretaria General | H131: 245 | I131: Jefatura de Servicios Generales | J131: 148 | K131: Pasajes Findeter General | L131: Compra de Pasajes Aereos | M131: 2020-12-31 | N131: 1800000000
B132: S. General | C132: J. Servicios G | D132: 203050707 | E132: Utiles de Escritorio y Papeleria | F132: 200 | G132: Secretaria General | H132: 245 | I132: Jefatura de Servicios Generales | J132: 202 | K132: Utiles de Escritorio y Papeleria Convenios | L132: Suministro de elementos de Escritorio y Papeleria | M132: 2020-12-31 | N132: 660000000
B133: Planeacion | C133: D. Estudios | D133: 203030105 | E133: Otras Asesorias | F133: 600 | G133: Vicepresidencia de Planeacion | H133: 640 | I133: Direccion de Estudios Economicos | J133: 63 | K133: Asesoria En Comunicaciones | L133: Asesoria para Determinar la TIr Social | M133: 2020-12-31 | N133: 69956715
B134: Comercial | C134: J. Mercadeo | D134: 203030105 | E134: Otras Asesorias | F134: 400 | G134: Vicepresidencia Comercial | H134: 461 | I134: Jefatura de Mercadeo | J134: 642 | K134: Otras Asesorias | L134: Servicio Defensor del Consumidor Financiero | M134: 2020-12-31 | N134: 29808131
B135: Riesgos | C135: Coordinacion de Riesgos No Financieros | D135: 203030105 | E135: Otras Asesorias | F135: 700 | G135: Vicepresidencia de Credito y Riesgos | H135: 702 | I135: Coordinacion de Riesgos No Financieros | J135: 642 | K135: Otras Asesorias | L135: Implementación Modelo Gobierno, Riesgo y Cumplimiento - Grc | M135: 2020-12-31 | N135: 5000000
B136: S. General | C136: J. Servicios G | D136: 203050102 | E136: Locales, Oficinas, Parqueaderos y Otros | F136: 1000 | G136: Vicepresidencia de Desarrollo Territorial | H136: 1000 | I136: Vicepresidencia de Desarrollo Territorial | J136: 6 | K136: Arredamiento Inmuebles | L136: Arrendamiento Cartagena | M136: 2020-12-31 | N136: 40800000
B137: S. General | C137: J. Servicios G | D137: 203050102 | E137: Locales, Oficinas, Parqueaderos y Otros | F137: 200 | G137: Secretaria General | H137: 245 | I137: Jefatura de Servicios Generales | J137: 6 | K137: Arredamiento Inmuebles | L137: Arrendamiento Calle Av 24 Cao Bogota | M137: 2020-12-31 | N137: 49354824
B138: Financiera | C138: G. Banca Inv. | D138: 203070101 | E138: Estructuracion de Proyectos | F138: 300 | G138: Vicepresidencia Financiera | H138: 355 | I138: Gerencia de Banca de Inversion | J138: 934 | K138: Asesoria Estructuracion Proyectos | L138: Intervenotría Colegios Art | M138: 2020-12-31 | N138: 77360671
B139: Financiera | C139: G. Banca Inv. | D139: 203070101 | E139: Estructuracion de Proyectos | F139: 300 | G139: Vicepresidencia Financiera | H139: 355 | I139: Gerencia de Banca de Inversion | J139: 934 | K139: Asesoria Estructuracion Proyectos | L139: Consultoría Colegios Art | M139: 2020-12-31 | N139: 407678471
B140: S. General | C140: J. Servicios G | D140: 203050307 | E140: Mantenimiento de Edificios y Locales | F140: 200 | G140: Secretaria General | H140: 245 | I140: Jefatura de Servicios Generales | J140: 947 | K140: Control de Plagas y Roedores | L140: Mantenimiento de Estacion de Cebado para Control de Plagas y Rodeedores | M140: 2020-12-31 | N140: 1190000
B141: S. General | C141: J. Servicios G | D141: 203050502 | E141: Servicios de Vigilancia y Sistemas de Seguridad | F141: 500 | G141: Vicepresidencia Tecnica | H141: 504 | I141: Sanandres945 | J141: 183 | K141: Servicio Monitoreo de Alarmas | L141: Servicio de Monitoreo de Alarma San Andrés de acuerdo a las Disposiciones de Riesgos | M141: 2020-12-31 | N141: 1104000
B142: S. General | C142: J. Servicios G | D142: 203050102 | E142: Locales, Oficinas, Parqueaderos y Otros | F142: 500 | G142: Vicepresidencia Tecnica | H142: 500 | I142: Vicepresidencia Tecnica | J142: 6 | K142: Arredamiento Inmuebles | L142: Arrendandamiento Piso 6 Ii Calle 104 | M142: 2020-12-31 | N142: =370177040-34321440 -> 335855600
B143: Operaciones | C143: D. Tecnologia | D143: 203050101 | E143: Equipo de Computo, Comunicacion y Multifuncionales | F143: 800 | G143: Vicepresidencia de Operaciones | H143: 810 | I143: Direccion de Tecnologia | J143: 12 | K143: Arrendamiento Computadores de Escritorio | L143: Arrendamiento equipos de Computo (Adicional Colsof) | M143: 2020-12-31 | N143: 151004056
B144: S. General | C144: J. Servicios G | D144: 203050102 | E144: Locales, Oficinas, Parqueaderos y Otros | F144: 500 | G144: Vicepresidencia Tecnica | H144: 500 | I144: Vicepresidencia Tecnica | J144: 6 | K144: Arredamiento Inmuebles | L144: Arrendamiento Piso 6 Calle 104 | M144: 2020-12-31 | N144: 566945316
B145: S. General | C145: J. Servicios G | D145: 203050102 | E145: Locales, Oficinas, Parqueaderos y Otros | F145: 500 | G145: Vicepresidencia Tecnica | H145: 500 | I145: Vicepresidencia Tecnica | J145: 6 | K145: Arredamiento Inmuebles | L145: Arrendandamiento Piso 3 Calle 104 | M145: 2020-12-31 | N145: =464656351-14226998 -> 450429353
B146: S. General | C146: J. Servicios G | D146: 203050102 | E146: Locales, Oficinas, Parqueaderos y Otros | F146: 500 | G146: Vicepresidencia Tecnica | H146: 500 | I146: Vicepresidencia Tecnica | J146: 6 | K146: Arredamiento Inmuebles | L146: Arrendandamiento Piso 3 Calle 104 | M146: 2020-12-31 | N146: 14226998
B147: S. General | C147: J. Servicios G | D147: 203050307 | E147: Mantenimiento de Edificios y Locales | F147: 200 | G147: Secretaria General | H147: 245 | I147: Jefatura de Servicios Generales | J147: 734 | K147: Mantenimiento Edificio | L147: Mantenimiento Muro Verde Fachadas | M147: 2020-12-31 | N147: 7318280
B148: Operaciones | C148: D. Tecnologia | D148: 203050101 | E148: Equipo de Computo, Comunicacion y Multifuncionales | F148: 800 | G148: Vicepresidencia de Operaciones | H148: 810 | I148: Direccion de Tecnologia | J148: 13 | K148: Arrendamiento Computadores Servidores y Multifuncionales | L148: Arrendamiento de Impresoras | M148: 2020-12-31 | N148: 17317927
B149: Operaciones | C149: D. Tecnologia | D149: 203050310 | E149: Mantenimiento de Software | F149: 800 | G149: Vicepresidencia de Operaciones | H149: 810 | I149: Direccion de Tecnologia | J149: 935 | K149: Implementacion Proyectos Peti | L149: Proyecto Analítica de Datos | M149: 2020-12-31 | N149: =43673040+6306960 -> 49980000
B150: S. General | C150: J. Servicios G | D150: 203050102 | E150: Locales, Oficinas, Parqueaderos y Otros | F150: 700 | G150: Vicepresidencia de Credito y Riesgos | H150: 700 | I150: Vicepresidencia de Credito y Riesgos | J150: 6 | K150: Arredamiento Inmuebles | L150: Incremento (Ipc+1.5 Puntos) Pactado en el contrato de Arrendamiento de la Oficina del Piso Fase Ii | M150: 2021-01-01 | N150: 12784308
B151: S. General | C151: J. Servicios G | D151: 203050102 | E151: Locales, Oficinas, Parqueaderos y Otros | F151: 700 | G151: Vicepresidencia de Credito y Riesgos | H151: 700 | I151: Vicepresidencia de Credito y Riesgos | J151: 6 | K151: Arredamiento Inmuebles | L151: Arrendamiento Piso 5 Ii Calle 104 | M151: 2021-01-01 | N151: 411071220
B152: Operaciones | C152: D. Tecnologia | D152: 203050309 | E152: Mantenimiento de Hardware | F152: 800 | G152: Vicepresidencia de Operaciones | H152: 810 | I152: Direccion de Tecnologia | J152: 195 | K152: Cableado Estructurado Adecuacion Oficinas | L152: Mantenimiento de Redes de Comunicación Interna, Cableado Estructural, Prestar el Servicio de Mantenimiento Preventivo, Correctivo y de Mejora, Adecuación de las Redes de datos y Eléctrica de sus Oficinas. | M152: 2021-01-01 | N152: 107283855
B153: S. General | C153: J. Servicios G | D153: 203050307 | E153: Mantenimiento de Edificios y Locales | F153: 400 | G153: Vicepresidencia Comercial | H153: 493 | I153: Regional Caribe | J153: 111 | K153: Mantenimiento Inmuebles | L153: Servicio de Mantenimiento de los Aires Acondicionados de la Oficina de Findeter en Montería | M153: 2021-01-01 | N153: 8140000
B154: S. General | C154: J. Talento H | D154: 203050503 | E154: Servicios Temporales | F154: 200 | G154: Secretaria General | H154: 260 | I154: Jefatura de Talento Humano | J154: 188 | K154: Servicios Temporales Findeter General | L154: Suministro de Trabajadores en Misión para el Nivel Profesional, Técnico, Operativo, Asistencial, Auxiliar o los que Findeter Determine, que se Requieran en la Sede Principal o en las Unidades Regionales, Zonales y Oficinas Satélites o en la Ciudad que Requiera Findeter”. | M154: 2021-01-01 | N154: 38686547076
B155: S. General | C155: J. Talento H | D155: 203020401 | E155: Gastos de Viaje Servicios Temporales | F155: 200 | G155: Secretaria General | H155: 260 | I155: Jefatura de Talento Humano | J155: 423 | K155: Gastos de Viaje Servicios Temporales | L155: Gastos de Viaje Temporales Entidad | M155: 2021-01-01 | N155: 980000000
B156: Operaciones | C156: D. Tecnologia | D156: 203050310 | E156: Mantenimiento de Software | F156: 800 | G156: Vicepresidencia de Operaciones | H156: 810 | I156: Direccion de Tecnologia | J156: 767 | K156: Mantenimiento Software | L156: Corvus - Xbrl Soporte Técnico y Derecho de Actualizaciones - Bolsa de horas 100 Horas | M156: 2021-01-01 | N156: 21604633
B157: S. General | C157: J. Talento H | D157: 203010602 | E157: Capacitacion | F157: 600 | G157: Vicepresidencia de Planeacion | H157: 600 | I157: Vicepresidencia de Planeacion | J157: 26 | K157: Programa de Formacion Findeter | L157: Participación de la Vicepresidenta de Planeación de Findeter en el Programa "Maestria en Administración-Mba". | M157: 2021-01-01 | N157: 5163406
B158: Comercial | C158: J. Mercadeo | D158: 203051001 | E158: Publicidad | F158: 400 | G158: Vicepresidencia Comercial | H158: 461 | I158: Jefatura de Mercadeo | J158: 171 | K158: Publicacion Avisos y Pautas Publicitarias | L158: Publicación Marketing Digital | M158: 2021-01-01 | N158: 50000000
B159: S. General | C159: J. Servicios G | D159: 203051003 | E159: Impresos y Publicaciones | F159: 200 | G159: Secretaria General | H159: 245 | I159: Jefatura de Servicios Generales | J159: 97 | K159: Impresion Papeleria Institucional | L159: Papeleria Institucional | M159: 2021-01-01 | N159: 90000000
B160: Financiera | C160: J. Gestion U | D160: 203030105 | E160: Otras Asesorias | F160: 300 | G160: Vicepresidencia Financiera | H160: 331 | I160: Jefatura de Gestion Urbana Integral | J160: 642 | K160: Otras Asesorias | L160: Contratación Experto Regulación Energía Nama Move | M160: 2021-01-01 | N160: 65600000
B161: Financiera | C161: J. Gestion U | D161: 203030105 | E161: Otras Asesorias | F161: 300 | G161: Vicepresidencia Financiera | H161: 331 | I161: Jefatura de Gestion Urbana Integral | J161: 642 | K161: Otras Asesorias | L161: Consultoría Pmm Bucaramanga (Venta Integral) | M161: 2021-01-01 | N161: 2427644595
B162: Financiera | C162: D. Banca Int. | D162: 203030105 | E162: Otras Asesorias | F162: 300 | G162: Vicepresidencia Financiera | H162: 330 | I162: Direccion Banca Internacional | J162: 771 | K162: Seguimiento Auditoria | L162: Auditoría Cooperación Kfw | M162: 2021-01-01 | N162: 40000000
B163: S. General | C163: J. Servicios G | D163: 204010101 | E163: Compra de Muebles y Enseres | F163: 200 | G163: Secretaria General | H163: 245 | I163: Jefatura de Servicios Generales | J163: 111 | K163: Mantenimiento Inmuebles | L163: Compra Sillas Findeter | M163: 2021-01-01 | N163: 12130558
B164: S. General | C164: J. Servicios G | D164: 203050301 | E164: Mantenimiento de Muebles y Enseres | F164: 200 | G164: Secretaria General | H164: 245 | I164: Jefatura de Servicios Generales | J164: 769 | K164: Mantenimiento Muebles | L164: Mantenimiento Sillas Findeter | M164: 2021-01-01 | N164: 6464410
B165: Comercial | C165: J. Mercadeo | D165: 203051002 | E165: Promocion y Divulgacion | F165: 400 | G165: Vicepresidencia Comercial | H165: 461 | I165: Jefatura de Mercadeo | J165: 165 | K165: Elaboracion de Piezas de Imagen Promocional | L165: Material Informativo Digital o Impreso (Brochures, Comercial,Tarjetas Presentacion) | M165: 2021-01-01 | N165: 40000000
B166: S. General | C166: J. Servicios G | D166: 204010101 | E166: Compra de Muebles y Enseres | F166: 200 | G166: Secretaria General | H166: 245 | I166: Jefatura de Servicios Generales | J166: 948 | K166: Compra de Grandes Superficies | L166: Compra de Grandes Superficies | M166: 2021-01-01 | N166: 20000000
B167: Operaciones | C167: D. Tecnologia | D167: 203050310 | E167: Mantenimiento de Software | F167: 800 | G167: Vicepresidencia de Operaciones | H167: 810 | I167: Direccion de Tecnologia | J167: 120 | K167: Soporte Desarrollo Mantenimiento Para La Pagina Web E Intran | L167: Nexura Soporte y Mantenimiento Página Web e Intranet | M167: 2021-01-01 | N167: 1257499
B168: S. General | C168: J. Talento H | D168: 203030105 | E168: Otras Asesorias | F168: 200 | G168: Secretaria General | H168: 260 | I168: Jefatura de Talento Humano | J168: 76 | K168: Mediciones de Clima Cultura Cazatalentos entre Otras | L168: Prestar el Servicio de Consulta de Antecendetes, Referencias Laborales, Verificación Documental- Hoja de Vida y Visita Domiciliaria para las personas que ingresen a trabajar a Findeter”. | M168: 2021-01-01 | N168: 3750000
B169: S. General | C169: J. Servicios G | D169: 203050102 | E169: Locales, Oficinas, Parqueaderos y Otros | F169: 400 | G169: Vicepresidencia Comercial | H169: 492 | I169: Regional Nororiental | J169: 6 | K169: Arredamiento Inmuebles | L169: Arrendamiento Terrazas Bucaramanga | M169: 2021-01-01 | N169: 2450298
B170: S. General | C170: J. Servicios G | D170: 203050102 | E170: Locales, Oficinas, Parqueaderos y Otros | F170: 400 | G170: Vicepresidencia Comercial | H170: 493 | I170: Regional Caribe | J170: 6 | K170: Arredamiento Inmuebles | L170: Arrendamiento Cartagena | M170: 2021-01-01 | N170: 2291600
B171: S. General | C171: J. Servicios G | D171: 203050102 | E171: Locales, Oficinas, Parqueaderos y Otros | F171: 500 | G171: Vicepresidencia Tecnica | H171: 504 | I171: Sanandres945 | J171: 6 | K171: Arredamiento Inmuebles | L171: Arrendamiento San Andres | M171: 2021-01-01 | N171: 459214
B172: S. General | C172: J. Talento H | D172: 203010602 | E172: Capacitacion | F172: 300 | G172: Vicepresidencia Financiera | H172: 260 | I172: Jefatura de Talento Humano | J172: 26 | K172: Programa de Formacion Findeter | L172: Maestria en Administración - Mba | M172: 2021-01-01 | N172: =55000000-37608505 -> 17391495
B173: S. General | C173: J. Talento H | D173: 203010602 | E173: Capacitacion | F173: 400 | G173: Vicepresidencia Comercial | H173: 260 | I173: Jefatura de Talento Humano | J173: 26 | K173: Programa de Formacion Findeter | L173: Capacitación a los Directivos y Comerciales en Competencias de Ventas o Similares; para Revisar Y/O Reactivar lo que se TIene. | M173: 2021-01-01 | N173: 30000000
B174: S. General | C174: J. Talento H | D174: 203010602 | E174: Capacitacion | F174: 400 | G174: Vicepresidencia Comercial | H174: 260 | I174: Jefatura de Talento Humano | J174: 26 | K174: Programa de Formacion Findeter | L174: Diplomado en Creación de Contenidos Digitales | M174: 2021-01-01 | N174: 14000000
B175: S. General | C175: J. Talento H | D175: 203010602 | E175: Capacitacion | F175: 400 | G175: Vicepresidencia Comercial | H175: 260 | I175: Jefatura de Talento Humano | J175: 26 | K175: Programa de Formacion Findeter | L175: Seminario de Design Thinking | M175: 2021-01-01 | N175: 14859497
B176: S. General | C176: J. Talento H | D176: 203010602 | E176: Capacitacion | F176: 500 | G176: Vicepresidencia Tecnica | H176: 260 | I176: Jefatura de Talento Humano | J176: 26 | K176: Programa de Formacion Findeter | L176: Gesproy y Ocad - Proyectos con Recursos de Regalías | M176: 2021-01-01 | N176: 5000000
B177: S. General | C177: J. Talento H | D177: 203010602 | E177: Capacitacion | F177: 500 | G177: Vicepresidencia Tecnica | H177: 260 | I177: Jefatura de Talento Humano | J177: 26 | K177: Programa de Formacion Findeter | L177: Certificación Retie y Retilap | M177: 2021-01-01 | N177: 5000000
B178: S. General | C178: J. Talento H | D178: 203010602 | E178: Capacitacion | F178: 600 | G178: Vicepresidencia de Planeacion | H178: 260 | I178: Jefatura de Talento Humano | J178: 26 | K178: Programa de Formacion Findeter | L178: Curso Académico para Fortalecer las Capacidades de Proyección y Manejo de Variables Macroeconómicas | M178: 2021-01-01 | N178: 1650000
B179: S. General | C179: J. Talento H | D179: 203010602 | E179: Capacitacion | F179: 600 | G179: Vicepresidencia de Planeacion | H179: 260 | I179: Jefatura de Talento Humano | J179: 26 | K179: Programa de Formacion Findeter | L179: Participación Reunión anual Economistas Jefes Alide | M179: 2021-01-01 | N179: 2590000
B180: S. General | C180: J. Talento H | D180: 203010602 | E180: Capacitacion | F180: 800 | G180: Vicepresidencia de Operaciones | H180: 260 | I180: Jefatura de Talento Humano | J180: 26 | K180: Programa de Formacion Findeter | L180: Capacitación en Gerencia de Crédito, Cartera y Cobranza | M180: 2021-01-01 | N180: 15500000
B181: S. General | C181: J. Talento H | D181: 203010602 | E181: Capacitacion | F181: 800 | G181: Vicepresidencia de Operaciones | H181: 260 | I181: Jefatura de Talento Humano | J181: 26 | K181: Programa de Formacion Findeter | L181: Curso de Excel Avanzado - Universidad Nacional - para 04 Personas | M181: 2021-01-01 | N181: 1200000
B182: S. General | C182: J. Talento H | D182: 203010602 | E182: Capacitacion | F182: 800 | G182: Vicepresidencia de Operaciones | H182: 260 | I182: Jefatura de Talento Humano | J182: 26 | K182: Programa de Formacion Findeter | L182: Curso de Excel Intermedio - Universidad Nacional - para 05 Personas | M182: 2021-01-01 | N182: 1500000
B183: S. General | C183: J. Servicios G | D183: 203050709 | E183: Elementos de Aseo y Cafeteria | F183: 200 | G183: Secretaria General | H183: 245 | I183: Jefatura de Servicios Generales | J183: 44 | K183: Elementos de Aseo y Cafeteria | L183: Elementos de aseo y cafeteria | M183: 2021-01-01 | N183: 8299299
B184: Operaciones | C184: D. Tecnologia | D184: 203050711 | E184: Otros Gastos de Oficina | F184: 800 | G184: Vicepresidencia de Operaciones | H184: 810 | I184: Direccion de Tecnologia | J184: 145 | K184: Firmas Digitales Certicamara Tecnologia | L184: Certificados Portales Web de Findeter. | M184: 2021-01-01 | N184: 11000000
B185: S. General | C185: J. Servicios G | D185: 203050711 | E185: Otros Gastos de Oficina | F185: 200 | G185: Secretaria General | H185: 245 | I185: Jefatura de Servicios Generales | J185: 146 | K185: Otros Gastos de Oficina Findeter General | L185: Suministrar elementos Básicos para Botiquines para Brindar los Primeros Auxilios, y Atención de Cualquier Situación de Emergencia o Acontecimientos Inesperados que se Puedan Presentar en las Instalaciones de Findeter a Nivel Nacional | M185: 2021-01-01 | N185: 3116425
B186: Financiera | C186: D. Banca Int. | D186: 203020201 | E186: Gastos de Viaje A Terceros Nacionales | F186: 300 | G186: Vicepresidencia Financiera | H186: 330 | I186: Direccion Banca Internacional | J186: 48 | K186: Gastos de Viaje Asesorias | L186: Desplazamiento Auditores Externos contrato 0001 de 2018 | M186: 2021-01-01 | N186: 23152500
B187: Tecnica | C187: VP.Tecnica | D187: 203020201 | E187: Gastos de Viaje A Terceros Nacionales | F187: 500 | G187: Vicepresidencia Tecnica | H187: 500 | I187: Vicepresidencia Tecnica | J187: 48 | K187: Gastos de Viaje Asesorias | L187: Gastos de Viaje Contratistas contrato de Prestación de Servicios de la Profesional Guillermo Antonio Herrera Castaño. | M187: 2021-01-01 | N187: 50000000
B188: Tecnica | C188: VP.Tecnica | D188: 203020201 | E188: Gastos de Viaje A Terceros Nacionales | F188: 500 | G188: Vicepresidencia Tecnica | H188: 500 | I188: Vicepresidencia Tecnica | J188: 48 | K188: Gastos de Viaje Asesorias | L188: Gastos de Viaje Contratistas | M188: 2021-01-01 | N188: =278000000-50000000 -> 228000000
B189: S. General | C189: D. Juridica | D189: 203030103 | E189: Asesorias Juridicas | F189: 200 | G189: Secretaria General | H189: 210 | I189: Direccion Juridica | J189: 58 | K189: Contratacion de Abogados y Otros Servicios de Carácter Legal | L189: Conceptos Juridicos que Requiera la Entidad | M189: 2021-01-01 | N189: 45000000
B190: S. General | C190: D. Juridica | D190: 203030103 | E190: Asesorias Juridicas | F190: 200 | G190: Secretaria General | H190: 210 | I190: Direccion Juridica | J190: 58 | K190: Contratacion de Abogados y Otros Servicios de Carácter Legal | L190: Asesoria Juridica en Derecho Administrativo y Contractual, en lo Relacionado con la Actividad Y/O Gestión Misional en Aquellos Aspectos que se Consideren de Especial Complejidad | M190: 2021-01-01 | N190: 200000000
B191: Financiera | C191: D. Banca Int. | D191: 203030105 | E191: Otras Asesorias | F191: 300 | G191: Vicepresidencia Financiera | H191: 330 | I191: Direccion Banca Internacional | J191: 293 | K191: Traduccion de Documentos | L191: Traducción Oficial o no Oficial de documentos de Español a Ingles o de Ingles a Español | M191: 2021-01-01 | N191: 80000000
B192: S. General | C192: J. Servicios G | D192: 203050305 | E192: Mantenimiento de Vehiculos | F192: 200 | G192: Secretaria General | H192: 245 | I192: Jefatura de Servicios Generales | J192: 105 | K192: Suministro Combustible Acpm | L192: Suministro Combustible | M192: 2021-01-01 | N192: 14000000
B193: Comercial | C193: G. Comunicaciones | D193: 203050310 | E193: Mantenimiento de Software | F193: 400 | G193: Vicepresidencia Comercial | H193: 460 | I193: Gerencia de Comunicaciones, Mercadeo y Responsabilidad Socia | J193: 659 | K193: Mantenimiento Software Carteleras Digitales | L193: Mantenimiento de Software Carteleras Digitales | M193: 2021-01-01 | N193: 119097828
B194: Comercial | C194: G. Comunicaciones | D194: 203050705 | E194: Libros, Periodicos y Suscripciones | F194: 400 | G194: Vicepresidencia Comercial | H194: 460 | I194: Gerencia de Comunicaciones, Mercadeo y Responsabilidad Socia | J194: 155 | K194: Actualizacion Banco de Fotos | L194: Suscripción Banco de Fotografías | M194: 2021-01-01 | N194: 20000000
B195: Comercial | C195: G. Comunicaciones | D195: 203051002 | E195: Promocion y Divulgacion | F195: 400 | G195: Vicepresidencia Comercial | H195: 460 | I195: Gerencia de Comunicaciones, Mercadeo y Responsabilidad Socia | J195: 153 | K195: Produccion de Video Clips | L195: Producción de Videos | M195: 2021-01-01 | N195: 80000000
B196: Comercial | C196: J. Mercadeo | D196: 203051002 | E196: Promocion y Divulgacion | F196: 400 | G196: Vicepresidencia Comercial | H196: 461 | I196: Jefatura de Mercadeo | J196: 163 | K196: Servicio de Apoyo Logistico | L196: Servicio Apoyo Logisto en la Organización de Eventos Masivos Organizados por Findeter o en la Participación Cuando se Hace a Través de Stands o Activaciones | M196: 2021-01-01 | N196: 622500000
B197: S. General | C197: J. Servicios G | D197: 203050502 | E197: Servicios de Vigilancia y Sistemas de Seguridad | F197: 200 | G197: Secretaria General | H197: 245 | I197: Jefatura de Servicios Generales | J197: 184 | K197: Servicio Vigilancia Sede Central Findeter | L197: Servicio de Vigilancia Personal | M197: 2021-01-01 | N197: 34860613
B198: S. General | C198: J. Servicios G | D198: 203050501 | E198: Servicio de Aseo y Cafeteria | F198: 200 | G198: Secretaria General | H198: 245 | I198: Jefatura de Servicios Generales | J198: 187 | K198: Servicio de Aseo. Cafeteria y Mantenimiento | L198: Servicio de Instalación Mantenimiento, Desinfección Desincrustación, y Aromatización de Todos los Baños de Finedter en sus Sedes de la Calle 103 y 104 | M198: 2021-01-01 | N198: 11413290
B199: S. General | C199: J. Servicios G | D199: 203050501 | E199: Servicio de Aseo y Cafeteria | F199: 200 | G199: Secretaria General | H199: 245 | I199: Jefatura de Servicios Generales | J199: 187 | K199: Servicio de Aseo. Cafeteria y Mantenimiento | L199: Servicio de aseo y cafeteria | M199: 2021-01-01 | N199: 33018624
B200: S. General | C200: D. Juridica | D200: 203050705 | E200: Libros, Periodicos y Suscripciones | F200: 200 | G200: Secretaria General | H200: 210 | I200: Direccion Juridica | J200: 290 | K200: Suscripcion Consulta Informacion Comercial En Linea | L200: Suscribir Convenio con Legis para el Portafolio Juridico, que Es un Sistema Modular que Consta de Tres Niveles de Informacion | M200: 2021-01-01 | N200: 6000000
B201: Comercial | C201: G. Comunicaciones | D201: 203030105 | E201: Otras Asesorias | F201: 400 | G201: Vicepresidencia Comercial | H201: 460 | I201: Gerencia de Comunicaciones, Mercadeo y Responsabilidad Socia | J201: 642 | K201: Otras Asesorias | L201: Animaciones Digitales para Canales Virtuales | M201: 2021-01-01 | N201: 30000000
B202: Operaciones | C202: D. Tecnologia | D202: 203050309 | E202: Mantenimiento de Hardware | F202: 800 | G202: Vicepresidencia de Operaciones | H202: 810 | I202: Direccion de Tecnologia | J202: 410 | K202: Ups | L202: Mantenimiento y Soporte de Ups | M202: 2021-01-01 | N202: 28414476
B203: Comercial | C203: G. Comunicaciones | D203: 203030105 | E203: Otras Asesorias | F203: 400 | G203: Vicepresidencia Comercial | H203: 460 | I203: Gerencia de Comunicaciones, Mercadeo y Responsabilidad Socia | J203: 642 | K203: Otras Asesorias | L203: Diseño y Diagramación de Productos Editoriales | M203: 2021-01-01 | N203: 137000000
B204: Comercial | C204: D. Ciudades y Competitividad | D204: 203030105 | E204: Otras Asesorias | F204: 400 | G204: Vicepresidencia Comercial | H204: 471 | I204: Direccion de Ciudades y Competitividad | J204: 642 | K204: Otras Asesorias | L204: Abogado Urbano | M204: 2021-01-01 | N204: 60000000
B205: Comercial | C205: D. Ciudades y Competitividad | D205: 203030105 | E205: Otras Asesorias | F205: 400 | G205: Vicepresidencia Comercial | H205: 471 | I205: Direccion de Ciudades y Competitividad | J205: 642 | K205: Otras Asesorias | L205: Experto en Desarrollo Urbano | M205: 2021-01-01 | N205: 120000000
B206: Tecnica | C206: VP.Tecnica | D206: 203030105 | E206: Otras Asesorias | F206: 500 | G206: Vicepresidencia Tecnica | H206: 500 | I206: Vicepresidencia Tecnica | J206: 642 | K206: Otras Asesorias | L206: Contrato de Prestación de Servicios de la Profesional Sandra Ximena Herrera Monge. | M206: 2021-01-01 | N206: 55000000
B207: Tecnica | C207: VP.Tecnica | D207: 203030105 | E207: Otras Asesorias | F207: 500 | G207: Vicepresidencia Tecnica | H207: 500 | I207: Vicepresidencia Tecnica | J207: 642 | K207: Otras Asesorias | L207: Contrato de Prestación de Servicios de la Profesional Guillermo Antonio Herrera Castaño. | M207: 2021-01-01 | N207: 300000000
B208: Tecnica | C208: VP.Tecnica | D208: 203030105 | E208: Otras Asesorias | F208: 500 | G208: Vicepresidencia Tecnica | H208: 510 | I208: Gerencia de Vivienda y Desarrollo Urbano | J208: 642 | K208: Otras Asesorias | L208: Contratos por Prestación de Servicios para Supervisión de Programas de la Vt y Profesionales Especializados para el Diseño y Consultoría de Obras Civiles | M208: 2021-01-01 | N208: =1076000000-55000000-300000000 -> 721000000
B209: Planeacion | C209: D. Estudios | D209: 203030105 | E209: Otras Asesorias | F209: 600 | G209: Vicepresidencia de Planeacion | H209: 640 | I209: Direccion de Estudios Economicos | J209: 642 | K209: Otras Asesorias | L209: Consultoría para Dirección de Estudios Económicos: Medición de Cumplimiento de Ods de Findeter | M209: 2021-01-01 | N209: 80000000
B210: Operaciones | C210: D. Tecnologia | D210: 203030105 | E210: Otras Asesorias | F210: 800 | G210: Vicepresidencia de Operaciones | H210: 810 | I210: Direccion de Tecnologia | J210: 642 | K210: Otras Asesorias | L210: Sistema de Gestión de Talento Humano (Nomina) | M210: 2021-01-01 | N210: 10528254
... 321 more rows

Sheet PETH
C4: PLAN ESTRATÉGICO DE TALENTO HUMANO FINDETER 2021
B13: Conforme lo establecido en la "Guía de gestión estratégica del talento humano GETH" del Departamento Administrativo de la Función Pública, el diseño de la Planeación Estratégica del Talento Humano contempla entre otros, el Plan Anual de Vacantes, El Plan de Previsión de Recursos Humanos, El Plan Institucional de Capacitación, el Plan de Bienestar e Incentivos, el Plan de Seguridad y Salud en el Trabajo. A continuación haga clic sobre el Plan que desee consultar en detalle:

Sheet Plan de Previsión de RRHH
H4: PLAN DE PREVISION DE RECURSOS HUMANOS Y PLAN DE VACANTES FINDETER 2021

Sheet PSST
E4: PLAN DE TRABAJO ANUAL EN SEGURIDAD Y SALUD EN EL TRABAJO - PSST FINDETER 2021
B10: Dependencia | C10: Nombre de la tarea | D10: Descripción | E10: Política de Gestión y Desempeño | F10: Responsable de tarea | G10: Fecha Inicio | H10: Fecha Fin | I10: Fuente de Financiación | J10: Indicador (Si Aplica) | K10: Fórmula | L10: Meta 2021 | M10: Observaciones
B11: Jefatura de Talento Humano | C11: Revisar Política SST | D11: Implementación, mantenimiento y mejoramiento del Sistema de Gestión en Seguridad y Salud en el Trabajo | E11: Talento Humano | F11: Profesional SST | G11: 44228 | H11: 44253 | I11: Findeter
C12: Revisar Objetivos SST | F12: Profesional SST | G12: 44228 | H12: 44253 | I12: Findeter
C13: Elaborar Rendición de cuentas del desarrollo del SG-SST | F13: Profesional SST | G13: 44256 | H13: 44286 | I13: Findeter
C14: Actualizar matriz legal en SST | F14: Profesional SST | G14: 44291 | H14: 44316 | I14: Findeter
C15: Establecer procedimiento de SST en contratación | F15: Profesional SST | G15: 44319 | H15: 44347 | I15: Findeter
C16: Establecer criterios en SST para evaluación y selección de proveedores y contratistas | F16: Profesional SST | G16: 44319 | H16: 44347 | I16: Findeter
C17: Establecer procedimiento de Gestión del cambio en SST | F17: Profesional SST | G17: 44348 | H17: 44377 | I17: Findeter
C18: Actualizar matriz de identificación de peligros | F18: Profesional SST | G18: 44378 | H18: 44407 | I18: Findeter
C19: Definir e implementar indicadores del SG-SST | F19: Profesional SST | G19: 44378 | H19: 44407 | I19: Findeter
C20: Realizar autoevaluación SG-SST 2021 | F20: Profesional SST | G20: 44531 | H20: 44561 | I20: Findeter
C21: Realizar Plan de mejora y Plan Anual 2022 | F21: Profesional SST | G21: 44531 | H21: 44561 | I21: Findeter
C22: Realizar indicadores de ausentismo | D22: Prevención de enfermedades ocupacionales | F22: Profesional SST | G22: 44197 | H22: 44561 | I22: Findeter
C23: Implementar indicadores de incidencia y prevalencia con base en el ausentismo | F23: Profesional SST | G23: 44291 | H23: 44561 | I23: Findeter
C24: Realizar Chequeos ejecutivos a Directivos | F24: Profesional SST | G24: 44228 | H24: 44253 | I24: Findeter
C25: Ejecutar Plan resultante de resultados del PVE realizado | D25: Prevención del riesgo biomecánico | F25: Profesional SST | G25: 44228 | H25: 44561 | I25: Findeter
C26: Realizar plan de acción Riesgo Psicosocial | D26: Prevención de enfermedades generales y ocupacionales derivadas de condiciones intralaborales, estralaborales e individuales | F26: Profesional SST | G26: 44228 | H26: 44561 | I26: Findeter
C27: Reforzar e incentivar uso de Sala amigas de la Familia Lactante | D27: Promoción de hábitos de vida saludables y prevención de enfermedades generales | F27: Profesional SST | G27: 44228 | H27: 44378 | I27: Findeter
C28: Reforzar uso aplicativo Citas Médicas | F28: Profesional SST | G28: 44228 | H28: 44378 | I28: Findeter
C29: Realizar seguimiento a Programa de Riesgo Cardiovascular | F29: Profesional SST | G29: 44228 | H29: 44561 | I29: Findeter
C30: Ejecutar la Semana de la Salud | F30: Profesional SST | G30: 44459 | H30: 44463 | I30: Findeter
C31: Realizar inspecciones de SST | D31: Prevención de accidentes e incidentes laborales | F31: Profesional SST | G31: 44378 | H31: 44561 | I31: Findeter
C32: Reforzar uso aplicativo Canal Seguro | F32: Profesional SST | G32: 44228 | H32: 44378 | I32: Findeter
C33: Realizar investigaciones de accidentes de trabajo | F33: Profesional SST | G33: 44197 | H33: 44227 | I33: Findeter
C34: Ejecutar entrenamiento de trabajo en alturas para el personas del área técnica | F34: Profesional SST | G34: 44291 | H34: 44316 | I34: Findeter
C35: Realizar seguimiento a hallazgos encontrados en estudios de higiene | F35: Profesional SST | G35: 44228 | H35: 44253 | I35: Findeter
C36: Actualizar Plan de Emergencias | D36: Preparación y respuesta ante emergencias en el entorno laboral | F36: Profesional SST | G36: 44348 | H36: 44377 | I36: Findeter
C37: Realizar simulacro SST | F37: Profesional SST | G37: 44494 | H37: 44498 | I37: Findeter
C38: Realizar simulacro ambiental | F38: Profesional SST | G38: 44256 | H38: 44286 | I38: Findeter
C39: Convocatoria Brigadistas nuevos | F39: Profesional SST | G39: 44291 | H39: 44316 | I39: Findeter
C40: Prevención del Covid 19 | D40: Formación en temas de seguridad y salud en el trabajo en aras de prevenir accidentes y enfermedades laborales | F40: Profesional SST | G40: 44242 | H40: 44253 | I40: Findeter
C41: Formación Integral a la Brigada de Emergencia | F41: Profesional SST | G41: 44252 | H41: 44561 | I41: Findeter
C42: Formación a COPASST | F42: Profesional SST | G42: 44270 | H42: 44561 | I42: Findeter
C43: Formación a Comité de Convivencia Laboral | F43: Profesional SST | G43: 29/02/2021 | H43: 44561 | I43: Findeter
C44: Divulgación Plan de emergencias a todo el personal | F44: Profesional SST | G44: 44375 | H44: 44377 | I44: Findeter
C45: Capacitación en Higiene Postural a todo el personal | F45: Profesional SST | G45: 44312 | H45: 44316 | I45: Findeter
C46: Capacitación en Riesgo Público conductores | F46: Profesional SST | G46: 44431 | H46: 44435 | I46: Findeter
C47: Uso y mantenimiento adecuado de EPP - personal Area Técnica | F47: Profesional SST | G47: 44340 | H47: 44347 | I47: Findeter
C48: Capacitación en Riesgo Público personal del Area Técnica | F48: Profesional SST | G48: 44340 | H48: 44347 | I48: Findeter
C49: Capacitación manejo seguro de cargas - Contratistas | F49: Profesional SST | G49: 44494 | H49: 44498 | I49: Findeter
C50: Capacitación Riesgo Químico - Contratistas | F50: Profesional SST | G50: 44494 | H50: 44498 | I50: Findeter
C51: Capacitación Riesgo mecánico - Contratistas | F51: Profesional SST | G51: 44494 | H51: 44498 | I51: Findeter
C52: Uso y mantenimiento adecuado de EPP - Contratistas | F52: Profesional SST | G52: 44494 | H52: 44498 | I52: Findeter
C53: Capacitación en Orden y Limpieza a todo el personal | F53: Profesional SST | G53: 44396 | H53: 44400 | I53: Findeter
C54: Curso Virtual SG - SST | F54: Profesional SST | G54: 44543 | H54: 44547 | I54: Findeter
B235: Dependencia | C235: Política de Gestión y Desempeño | D235: Programa | E235: Descripción | F235: Actividad (Nombre de la Tarea) | G235: Responsables (Responsable de la Tarea) | H235: Fecha de Inicio | I235: Fecha de Fin | J235: Fuente de Financiación
B238: Jefatura de Talento Humano | C238: Talento Humano | D238: SG-SST | E238: Implementación, mantenimiento y mejoramiento del Sistema de Gestión en Seguridad y Salud en el Trabajo | F238: Revisar Política SST | G238: Fabio Cortés / Liliana Tamara / Liliana Zapata | H238: 44230 | I238: 44231 | J238: N/A
F239: Revisar Objetivos SST | G239: Fabio Cortés / Liliana Tamara / Liliana Zapata | H239: 44230 | I239: 44231 | J239: N/A
F240: Elaborar Rendición de cuentas del desarrollo del SG-SST | G240: Fabio Cortés | H240: 44237 | I240: 44241 | J240: N/A
F241: Actualizar matriz legal en SST | G241: Fabio Cortés | H241: 44440 | I241: 44443 | J241: N/A
F242: Establecer procedimiento de SST en contratación | G242: Fabio Cortés | H242: 44244 | I242: 44461 | J242: N/A
F243: Establecer criterios en SST para evaluación y selección de proveedores y contratistas | G243: Fabio Cortés | H243: 44244 | I243: 44461 | J243: N/A
F244: Establecer procedimiento de Gestión del cambio en SST | G244: Fabio Cortés | H244: 44463 | I244: 44467 | J244: N/A
F245: Actualizar matriz de identificación de peligros | G245: Fabio Cortés | H245: 44463 | I245: 44467 | J245: N/A
F246: Definir e implementar indicadores del SG-SST | G246: Fabio Cortés | H246: 44257 | I246: 44261 | J246: N/A
F247: Realizar autoevaluación SG-SST 2021 | G247: Fabio Cortés | H247: 44531 | I247: 44531 | J247: N/A
F248: Realizar Plan de mejora y Plan Anual 2021 | G248: Fabio Cortés | H248: 44523 | I248: 44528 | J248: N/A
F249: Realizar auditoría interna al SG-SST | G249: Fabio Cortés | H249: 44544 | I249: 44549 | J249: N/A
D250: Medicina Preventiva y del Trabajo | E250: Prevención de enfermedades ocupacionales | F250: Definir plan de intervención con base en el diagnóstico de salud | G250: Fabio Cortés | H250: 44257 | I250: 44261 | J250: N/A
F251: Realizar indicadores de ausentismo | G251: Fabio Cortés | H251: 44197 | I251: 44561 | J251: N/A
F252: Realizar Chequeos ejecutivos a Directivos | G252: Fabio Cortés | H252: 44230 | I252: 44234 | J252: Presupuesto Salud Ocupacional
D253: PVE Osteomuscular | E253: Prevención del riesgo biomecánico | F253: Ejecutar Plan resultante de resultados del PVE realizado | G253: Fabio Cortés | H253: 44197 | I253: 44561 | J253: ARL
D254: PVE Psicosocial | E254: Prevención de enfermedades generales y ocupacionales derivadas de condiciones intralaborales, estralaborales e individuales | F254: Realizar grupos de intervención de Riesgo Psicosocial | G254: Fabio Cortés | H254: 44229 | I254: 44288 | J254: Presupuesto Salud Ocupacional
F255: Realizar seguimiento a planes de acción resultantes de la intervención | G255: Fabio Cortés | H255: 44289 | I255: 44561 | J255: Presupuesto Salud Ocupacional
D256: Programa Entorno Laboral Saludable | E256: Promoción de hábitos de vida saludables y prevención de enfermedades generales | F256: Campaña Prevención de consumo de alcohol y tabaco | G256: Fabio Cortés | H256: 44271 | I256: 44271 | J256: ARL
F257: Reforzar e incentivar uso de Sala amigas de la Familia Lactante | G257: Fabio Cortés | H257: 44237 | I257: 44237 | J257: N/A
F258: Reforzar uso aplicativo Citas Médicas | G258: Fabio Cortés | H258: 44237 | I258: 44237 | J258: N/A
F259: Realizar seguimiento a Programa de Riesgo Cardiovascular | G259: Fabio Cortés | H259: 44244 | I259: 44249 | J259: Presupuesto Bienestar
F260: Ejecutar la Semana de la Salud | G260: Fabio Cortés | H260: 44460 | I260: 44464 | J260: ARL - EPS - AFP
D261: Higiene y Seguridad Industrial | E261: Prevención de accidentes e incidentes laborales | F261: Realizar inspecciones de SST | G261: COPASST | H261: 44348 | I261: 44531 | J261: N/A
F262: Reforzar uso aplicativo Canal Seguro | G262: Fabio Cortés | H262: 44238 | I262: 44238 | J262: N/A
F263: Revisar necesidad de EPP al personal aplicable | G263: Fabio Cortés | H263: 44287 | I263: 44288 | J263: Presupuesto Salud Ocupacional
F264: Realizar investigaciones de accidentes de trabajo | G264: COPASST | H264: 44197 | I264: 44561 | J264: N/A
F265: Ejecutar entrenamiento de trabajo en alturas para el personas del área técnica | G265: Fabio Cortés | H265: 44320 | I265: 44324 | J265: Presupuesto Salud Ocupacional
F266: Realizar seguimiento a hallazgos encontrados en estudios de higiene | G266: Fabio Cortés | H266: 44327 | I266: 44331 | J266: N/A
D267: Emergencias | E267: Preparación y respuesta ante emergencias en el entorno laboral | F267: Actualizar Plan de Emergencias | G267: Fabio Cortés | H267: 44334 | I267: 44334 | J267: N/A
F268: Realizar simulacro SST | G268: Brigada de Emergencia | H268: 44491 | I268: 44491 | J268: N/A
F269: Realizar simulacro ambiental | G269: Brigada de Emergencia | H269: 44316 | I269: 44316 | J269: N/A
F270: Convocatoria Brigadistas nuevos | G270: Fabio Cortés | H270: 44349 | I270: 43628 | J270: N/A
D271: Programa de Capacitación en Seguridad y Salud en el Trabajo. | E271: Formación en temas de seguridad y salud en el trabajo en aras de prevenir accidentes y enfermedades laborales | F271: Curso Virtual SG - SST | G271: Fabio Cortés | H271: 44544 | I271: 44548 | J271: N/A
F272: Formación Integral a la Brigada de Emergencia | G272: Fabio Cortés | H272: 44244 | I272: 44523 | J272: ARL
F273: Formación a COPASST | G273: Fabio Cortés | H273: 44244 | I273: 44523 | J273: ARL
F274: Formación a Comité de Convivencia Laboral | G274: Fabio Cortés | H274: 44244 | I274: 44523 | J274: ARL
F275: Divulgación Plan de emergencias a todo el personal | G275: Fabio Cortés | H275: 44390 | I275: 44390 | J275: N/A
F276: Capacitación en Higiene Postural a todo el personal | G276: Fabio Cortés | H276: 44257 | I276: 44527 | J276: ARL
F277: Capacitación en Riesgo Público conductores | G277: Fabio Cortés | H277: 44411 | I277: 44411 | J277: ARL
F278: Uso y mantenimiento adecuado de EPP - personal Area Técnica | G278: Fabio Cortés | H278: 44544 | I278: 44545 | J278: ARL
F279: Capacitación en Riesgo Público personal del Area Técnica | G279: Fabio Cortés | H279: 44544 | I279: 44544 | J279: ARL
F280: Capacitación manejo seguro de cargas - Contratistas | G280: Fabio Cortés | H280: 44460 | I280: 44461 | J280: ARL
F281: Capacitación Riesgo Químico - Contratistas | G281: Fabio Cortés | H281: 44460 | I281: 44460 | J281: ARL
F282: Capacitación Riesgo mecánico - Contratistas | G282: Fabio Cortés | H282: 44460 | I282: 44460 | J282: ARL
F283: Uso y mantenimiento adecuado de EPP - Contratistas | G283: Fabio Cortés | H283: 44460 | I283: 44460 | J283: ARL
F284: Capacitación en Orden y Limpieza a todo el personal | G284: Fabio Cortés | H284: 44474 | I284: 44475 | J284: ARL
B377: Área Organizativa | C377: Nombre de la tarea | D377: Descripción | E377: Categoría / Proyecto (Opcional) | F377: Política de Gestión y Desempeño | G377: Responsable de tarea | H377: Fecha Inicio | I377: Fecha Fin | J377: Fuente de Financiación
B378: GERENCIA DE GESTION HUMANA Y ADMINISTRATIVA | C378: POLÍTICA DEL SG-SST | D378: Actualizar la Política y divulgar a todos los colaboradores de Findeter | E378: Seguridad y Salud en el Trabajo | F378: SGI | G378: Profesional GGHA | H378: 2019-01-14 | I378: 2019-01-18 | J378: N/A
B379: GERENCIA DE GESTION HUMANA Y ADMINISTRATIVA | C379: MATRICES DE IPECRDC | D379: Actualizar matrices de identificación de peligros, evaluación y control de riesgos y determinación de controles | E379: Seguridad y Salud en el Trabajo | F379: SGI | G379: Profesional GGHA | H379: 2019-01-21 | I379: 2019-01-25 | J379: N/A
B380: GERENCIA DE GESTION HUMANA Y ADMINISTRATIVA | C380: CURSO DE SEGURIDAD Y SALUD EN EL TRABAJO | D380: Gestionar el curso de SG-SST del personal faltante | E380: Seguridad y Salud en el Trabajo | F380: SGI | G380: Profesional GGHA | H380: 2019-01-28 | I380: 2019-01-31 | J380: N/A
B381: GERENCIA DE GESTION HUMANA Y ADMINISTRATIVA | C381: CANAL SEGURO | D381: Divulgar y poner en producción aplicativo de reporte de condiciones y actos inseguros | E381: Seguridad y Salud en el Trabajo | F381: SGI | G381: Profesional GGHA | H381: 2019-01-21 | I381: 2019-01-25 | J381: N/A
B382: GERENCIA DE GESTION HUMANA Y ADMINISTRATIVA | C382: SALA AMIGA DE LA FAMILIA LACTANTE | D382: Campaña e implementación de Sala para lactantes | E382: Seguridad y Salud en el Trabajo | F382: SGI | G382: Profesional GGHA | H382: 2019-01-14 | I382: 2019-01-18 | J382: N/A
B383: GERENCIA DE GESTION HUMANA Y ADMINISTRATIVA | C383: CITAS MEDICAS | D383: Divulgar y poner en producción aplicativo de citas médicas | E383: Seguridad y Salud en el Trabajo | F383: SGI | G383: Profesional GGHA | H383: 2019-01-28 | I383: 2019-01-31 | J383: N/A
B384: GERENCIA DE GESTION HUMANA Y ADMINISTRATIVA | C384: PROCEDIMIENTOS SG-SGSST | D384: Actualizar y documentar procedimientos obligatorios de acuerdo a normatividad vigente | E384: Seguridad y Salud en el Trabajo | F384: SGI | G384: Profesional GGHA | H384: 2019-01-28 | I384: 2019-01-31 | J384: N/A
B385: GERENCIA DE GESTION HUMANA Y ADMINISTRATIVA | C385: ACTUALIZACIÓN DE REQUISITOS LEGALES | D385: Actualización matriz de Requisitos legales en SST | E385: Seguridad y Salud en el Trabajo | F385: SGI | G385: Profesional GGHA | H385: 2019-02-01 | I385: 2019-12-08 | J385: ARL POSITIVA
B386: GERENCIA DE GESTION HUMANA Y ADMINISTRATIVA | C386: INSPECCIONES DE SEGURIDAD | D386: Seguimiento hallazgos inspección anterior y ejecución de inspección semestral | E386: Seguridad y Salud en el Trabajo | F386: SGI | G386: Profesional GGHA | H386: 2019-02-01 | I386: 2019-12-15 | J386: N/A
B387: GERENCIA DE GESTION HUMANA Y ADMINISTRATIVA | C387: INSPECCIONES DE SEGURIDAD | D387: Seguimiento hallazgos inspección anterior y ejecución de inspección semestral | E387: Seguridad y Salud en el Trabajo | F387: SGI | G387: Profesional GGHA | H387: 2019-07-02 | I387: 2019-07-12 | J387: N/A
B388: GERENCIA DE GESTION HUMANA Y ADMINISTRATIVA | C388: ELEMENTOS DE PROTECCIÓN PERSONAL | D388: Procedimiento, Inspección y ejecución de matriz de EPP por cargo | E388: Seguridad y Salud en el Trabajo | F388: SGI | G388: Profesional GGHA | H388: 2019-03-04 | I388: 2019-03-08 | J388: ARL POSITIVA
B389: GERENCIA DE GESTION HUMANA Y ADMINISTRATIVA | C389: GESTION PLAN DE EMERGENCIAS | D389: Actualizar Plan de Emergencias, convocar brigadistas | E389: Seguridad y Salud en el Trabajo | F389: SGI | G389: Profesional GGHA | H389: 2019-02-01 | I389: 2019-02-08 | J389: N/A
B390: GERENCIA DE GESTION HUMANA Y ADMINISTRATIVA | C390: GESTION PLAN DE EMERGENCIAS | D390: Programar formación Integral a brigadistas | E390: Seguridad y Salud en el Trabajo | F390: SGI | G390: Profesional GGHA | H390: 2019-02-01 | I390: 2019-12-15 | J390: ARL POSITIVA
B391: GERENCIA DE GESTION HUMANA Y ADMINISTRATIVA | C391: GESTION PLAN DE EMERGENCIAS | D391: Realizar simulacros | E391: Seguridad y Salud en el Trabajo | F391: SGI | G391: Profesional GGHA | H391: 2019-07-16 | I391: 2019-07-16 | J391: N/A
B392: GERENCIA DE GESTION HUMANA Y ADMINISTRATIVA | C392: GESTION PLAN DE EMERGENCIAS | D392: Realizar simulacros | E392: Seguridad y Salud en el Trabajo | F392: SGI | G392: Profesional GGHA | H392: 2019-10-24 | I392: 2019-10-24 | J392: N/A
B393: GERENCIA DE GESTION HUMANA Y ADMINISTRATIVA | C393: GESTION DE ACCIDENTES E INCIDENTES | D393: Realizar Investigación de Accidentes e Incidentes | E393: Seguridad y Salud en el Trabajo | F393: SGI | G393: Profesional GGHA | H393: 2019-02-18 | I393: 2019-02-22 | J393: N/A
B394: GERENCIA DE GESTION HUMANA Y ADMINISTRATIVA | C394: GESTION COPASST | D394: Revisar reuniones mensuales y gestionar reelección de integrantes COPASST | E394: Seguridad y Salud en el Trabajo | F394: SGI | G394: Profesional GGHA | H394: 2019-05-13 | I394: 2019-05-17 | J394: N/A
B395: GERENCIA DE GESTION HUMANA Y ADMINISTRATIVA | C395: EXAMENES MEDICOS OCUPACIONALES | D395: Realizar examenes medicos periodicos a los colaboradores | E395: Seguridad y Salud en el Trabajo | F395: SGI | G395: Profesional GGHA | H395: 2019-02-18 | I395: 2019-02-28 | J395: PRESUPUESTO GGHYA
B396: GERENCIA DE GESTION HUMANA Y ADMINISTRATIVA | C396: PROFESIOGRAMA | D396: Actualizar profesiograma Findeter | E396: Seguridad y Salud en el Trabajo | F396: SGI | G396: Profesional GGHA | H396: 2019-01-21 | I396: 2019-01-21 | J396: ARL POSITIVA
B397: GERENCIA DE GESTION HUMANA Y ADMINISTRATIVA | C397: PROMOCION Y PREVENCION | D397: Ejecutar Programas de Promoción y Prevención de la salud con base en los examenes medicos y el histórico de ausentismo (Prevención consumo de alcohol, tabaco y PSI - Riesgo Cardiovascular - Torneo de futbol - Apoyo PYP Sanitas) | E397: Seguridad y Salud en el Trabajo | F397: SGI | G397: Profesional GGHA | H397: 2019-02-01 | I397: 2019-12-13 | J397: ARL POSITIVA / COLSANITAS
B398: GERENCIA DE GESTION HUMANA Y ADMINISTRATIVA | C398: SEMANA DE LA SALUD | D398: Ejecutar Semana de la salud para todo el personal | E398: Seguridad y Salud en el Trabajo | F398: SGI | G398: Profesional GGHA | H398: 2019-09-23 | I398: 2019-09-27 | J398: ARL POSITIVA / COLSANITAS / OTROS
B399: GERENCIA DE GESTION HUMANA Y ADMINISTRATIVA | C399: PROGRAMAS DE VIGILANCIA EPIDEMIOLOGICA | D399: Ejecutar Programa de Riesgo Biomecánico | E399: Seguridad y Salud en el Trabajo | F399: SGI | G399: Profesional GGHA | H399: 2019-02-01 | I399: 2019-12-13 | J399: ARL POSITIVA
B400: GERENCIA DE GESTION HUMANA Y ADMINISTRATIVA | C400: PROGRAMAS DE VIGILANCIA EPIDEMIOLOGICA | D400: Ejecutar Programa de Riesgo - Psicosocial | E400: Seguridad y Salud en el Trabajo | F400: SGI | G400: Profesional GGHA | H400: 2019-02-01 | I400: 2019-12-13 | J400: PRESUPUESTO GGHYA
B401: GERENCIA DE GESTION HUMANA Y ADMINISTRATIVA | C401: PROGRAMA DE CAPACITACION | D401: Implementar Programa de Capacitación en SST | E401: Seguridad y Salud en el Trabajo | F401: SGI | G401: Profesional GGHA | H401: 2019-02-18 | I401: 2019-12-13 | J401: PRESUPUESTO GGHYA
B402: GERENCIA DE GESTION HUMANA Y ADMINISTRATIVA | C402: PROGRAMA PREVENCION CAIDA DE ALTURAS | D402: Implementar Programa y actualizar cursos de trabajo en alturas | E402: Seguridad y Salud en el Trabajo | F402: SGI | G402: Profesional GGHA | H402: 2019-03-01 | I402: 2019-03-15 | J402: PRESUPUESTO GGHYA
B403: GERENCIA DE GESTION HUMANA Y ADMINISTRATIVA | C403: PRESUPUESTO PARA EL SGSST | D403: Definir presupuesto para el Sistema de Gestión en Seguridad y salud en el Trabajo | E403: Seguridad y Salud en el Trabajo | F403: SGI | G403: Profesional GGHA | H403: 2019-01-21 | I403: 2019-01-25 | J403: N/A
B404: GERENCIA DE GESTION HUMANA Y ADMINISTRATIVA | C404: AUDITORIA SG-SST | D404: Realizar auditoría interna del Sistema de Gestión en Seguridad y Salud en el Trabajo | E404: Seguridad y Salud en el Trabajo | F404: SGI | G404: Profesional GGHA | H404: 2019-04-01 | I404: 2019-04-04 | J404: ARL POSITIVA
B405: GERENCIA DE GESTION HUMANA Y ADMINISTRATIVA | C405: MEDICIONES HIGIENICAS | D405: Estudios de iluminación y confort térmico | E405: Seguridad y Salud en el Trabajo | F405: SGI | G405: Profesional GGHA | H405: 2019-04-01 | I405: 2019-04-04 | J405: ARL POSITIVA
B406: GERENCIA DE GESTION HUMANA Y ADMINISTRATIVA | C406: AUSENTISMO | D406: Registrar y gestionar el ausentismo laboral por incapacidad médica | E406: Seguridad y Salud en el Trabajo | F406: SGI | G406: Profesional GGHA | H406: 2019-01-01 | I406: 2019-12-31 | J406: N/A

Sheet PIC
D3: PLAN INSTITUCIONAL DE CAPACITACIÓN - PIC FINDETER 2021
B11: Dependencia | C11: Nombre de la tarea | D11: Descripción | E11: Política de Gestión y Desempeño | F11: Responsable de tarea | G11: Fecha Inicio | H11: Fecha Fin | I11: Fuente de Financiación
B12: Jefatura de Talento Humano | C12: Inducción y actualización General de Findeter | D12: Integrar a los nuevos trabajadores a la cultura organizacional, enfoque de la misión, visión y objetivos estratégicos, lineamientos como empresa familiarmente responsable, creando sentido de pertenencia hacia la organización. | E12: Talento Humano | F12: Jefatura de Talento Humano | G12: Enero 2021 | H12: Diciembre de 2021 | I12: Findeter
B13: Jefatura de Talento Humano | C13: Capacitacion anual SARO (circular básica y contable de SARO) | D13: Integrar al trabajador a la cultura organizacional en virtud de los cambios producidos en cualquiera de los temas que se definan, fortaleciendo su sentido de pertenencia e identidad frente a la Findeter. | E13: Talento Humano | F13: Coordinacion de Riesgos No Financieros | G13: Octubre de 2021 | H13: Octubre de 2021 | I13: Findeter
B14: Jefatura de Talento Humano | C14: Capacitación de Servicio al Cliente para toda la Entidas SAC | E14: Talento Humano | F14: Jefatura de Mercadeo | G14: Mayo 2021 | H14: Mayo 2021 | I14: Findeter
B15: Jefatura de Talento Humano | C15: Capacitaciones en temas asociados a contratación y demás funciones de la Dirección | D15: Realizar capacitaciones que se enfocan en adquirir, reforzar, o completar los conocimientos o habilidades requeridas para optimizar el desempeño laboral para el logro de los objetivos estratégicos | E15: Talento Humano | F15: Direccion de Contratación | G15: Abril 2021 | H15: Abril 2021 | I15: Findeter
B16: Jefatura de Talento Humano | C16: Capacitación en el idioma inglés para los trabajadores (beneficiarios convención colectiva y directivos) | E16: Talento Humano | F16: Direccion de Contratación | G16: Junio 2021 | H16: Junio 2021 | I16: Findeter
B17: Jefatura de Talento Humano | C17: Capacitaciones en temas asociados a contratación y demás funciones de la Dirección | E17: Talento Humano | F17: Direccion de Contratación | G17: Agosto 2021 | H17: Agosto 2021 | I17: Findeter
B18: Jefatura de Talento Humano | C18: Curso en gestión de Riesgos | D18: Actualizar, ampliar o mejorar el nivel de conocimientos y experiencias de los trabajadores, a fin de potenciar su desempeño de funciones técnicas, profesionales, directivas o de gestión. | E18: Talento Humano | F18: Coordinacion de Riesgos Financieros | G18: Septiembre 2021 | H18: Septiembre 2021 | I18: Findeter
B19: Jefatura de Talento Humano | C19: Gastos Autorregulador del mercado valores | E19: Talento Humano | F19: Vicepresidencia de Riesgos | G19: Enero 2021 | H19: Diciembre de 2021 | I19: Findeter
B20: Jefatura de Talento Humano | C20: Congreso Asobancaria | E20: Talento Humano | F20: Vicepresidencia de Riesgos | G20: Noviembre 2021 | H20: Noviembre 2021 | I20: Findeter
B21: Jefatura de Talento Humano | C21: Congreso ALIDE Riesgo Operacional | E21: Talento Humano | F21: Coordinacion de Riesgos No Financieros | G21: Septiembre 2021 | H21: Septiembre 2021 | I21: Findeter
B22: Jefatura de Talento Humano | C22: Capacitación continuidad del negocio grupos críticos | E22: Talento Humano | F22: Coordinacion de Riesgos No Financieros | G22: Julio 2021 | H22: Julio 2021 | I22: Findeter
B23: Jefatura de Talento Humano | C23: Diplomado Riesgos financieros | E23: Talento Humano | F23: Coordinacion de Riesgos No Financieros | G23: Julio 2021 | H23: Julio 2021 | I23: Findeter
B24: Jefatura de Talento Humano | C24: Compromiso Recursos No Reembolsables de KfW. Programa de Capacitación de Análisis de Riesgos Ambientales y Sociales (ARAS) - Iniciativa Financiera del Programa de las Naciones Unidas para el Medio Ambiente (LATF-UNEP FI por sus siglas en inglés) | E24: Talento Humano | F24: Coordinacion de Riesgos No Financieros | G24: Junio 2021 | H24: Junio 2021 | I24: Findeter
B25: Jefatura de Talento Humano | C25: Compromiso Recursos No Reembolsables de KfW. Programa de Capacitación de Análisis de Riesgos Ambientales y Sociales (ARAS) - Iniciativa Financiera del Programa de las Naciones Unidas para el Medio Ambiente (LATF-UNEP FI por sus siglas en inglés) | E25: Talento Humano | F25: Vicepresidencia de Riesgos | G25: Junio 2021 | H25: Junio 2021 | I25: Findeter
B26: Jefatura de Talento Humano | C26: Compromiso Recursos No Reembolsables de KfW. Diplomado Finanzas Verdes - Pontificia Universidad Javeriana en conjunto con Green Banking Academy – GBAC, IFC y Asobancaria | E26: Talento Humano | F26: Coordinacion de Riesgos No Financieros | G26: Agosto 2021 | H26: Agosto 2021 | I26: Findeter
B27: Jefatura de Talento Humano | C27: Compromiso Recursos No Reembolsables de KfW. XVII Congreso de sostenibilidad medioambiental, cultural, económica y social - Amsterdam (Virtual) | E27: Talento Humano | F27: Coordinacion de Riesgos No Financieros | G27: Febrero 2021 | H27: Febrero 2021 | I27: Findeter
B28: Jefatura de Talento Humano | C28: Congreso de Sostenibilidad Asobancaria | E28: Talento Humano | F28: Coordinacion de Riesgos No Financieros | G28: Abril 2021 | H28: Abril 2021 | I28: Findeter
B29: Jefatura de Talento Humano | C29: Diplomado de Finanzas Básicas para Abogados | E29: Talento Humano | F29: Coordinacion de Riesgos Financieros | G29: Agosto 2021 | H29: Agosto 2021 | I29: Findeter
B30: Jefatura de Talento Humano | C30: Capacitaciones en Ciberseguridad y Ciberdefensa Escuela Superior de Guerra - Cumplimiento requerimiento FURAG | E30: Talento Humano | F30: Coordinacion de Riesgos No Financieros | G30: Julio 2021 | H30: Julio 2021 | I30: Findeter
B31: Jefatura de Talento Humano | C31: Congreso de Prevención del Fraude y Seguridad Asobancaria Septiembre 16 y 17 de 2021 | E31: Talento Humano | F31: Coordinacion de Riesgos No Financieros | G31: Agosto 2021 | H31: Agosto 2021 | I31: Findeter
B32: Jefatura de Talento Humano | C32: Diplomado Presencial "Costos y Presupuestos Estratégicos" - Intensidad: 120 horas (Viernes de 6:00 pm a 9:00 pm y sábados de 7:00 am a 1:00 pm) | E32: Talento Humano | F32: Grupo de Presupuesto | G32: Mayo 2021 | H32: Mayo 2021 | I32: Findeter
B33: Jefatura de Talento Humano | C33: Curso / Seminario de la gestion presupuestal en el sector público | E33: Talento Humano | F33: Grupo de Presupuesto | G33: Junio 2021 | H33: Junio 2021 | I33: Findeter
B34: Jefatura de Talento Humano | C34: Curso académico de Gobernabilidad Economía Mundial | E34: Talento Humano | F34: Direccion de Estudios Económicos | G34: Mayo 2021 | H34: Mayo 2021 | I34: Findeter
B35: Jefatura de Talento Humano | C35: Curso académico para fortalecer las capacidades de proyección y manejo de variables macroeconómicas | E35: Talento Humano | F35: Direccion de Estudios Económicos | G35: Enero 2021 | H35: Enero 2021 | I35: Findeter
B36: Jefatura de Talento Humano | C36: Curso académico para afianzar la Evaluación Financiera y Económica de Proyectos de Inversión que complementaría en conocimiento a los profesionales a cargo de la TIR Social | E36: Talento Humano | F36: Direccion de Estudios Económicos | G36: Julio 2021 | H36: Julio 2021 | I36: Findeter
B37: Jefatura de Talento Humano | C37: Participación reunión anual Economistas Jefes ALIDE | E37: Talento Humano | F37: Direccion de Estudios Económicos | G37: Enero 2021 | H37: Enero 2021 | I37: Findeter
B38: Jefatura de Talento Humano | C38: Diplomado | E38: Talento Humano | F38: Gerencia de Planeación y Gestión | G38: Mayo 2021 | H38: Mayo 2021 | I38: Findeter
B39: Jefatura de Talento Humano | C39: Diplomado | E39: Talento Humano | F39: Centro de Innovación y Conocimiento | G39: Julio 2021 | H39: Julio 2021 | I39: Findeter
B40: Jefatura de Talento Humano | C40: Diplomado | E40: Talento Humano | F40: PMO | G40: Agosto 2021 | H40: Agosto 2021 | I40: Findeter
B41: Jefatura de Talento Humano | C41: Diplomado | E41: Talento Humano | F41: PMO | G41: Septiembre 2021 | H41: Septiembre 2021 | I41: Findeter
B42: Jefatura de Talento Humano | C42: Diplomado | E42: Talento Humano | F42: PMO | G42: Mayo 2021 | H42: Mayo 2021 | I42: Findeter
B43: Jefatura de Talento Humano | C43: Curso en temas de Direccion de Planeación de Negocios Fiduciarios | E43: Talento Humano | F43: Direccion de Planeación de Negocios Fiduciarios | G43: Septiembre 2021 | H43: Septiembre 2021 | I43: Findeter
B44: Jefatura de Talento Humano | C44: Diplomado para la Direccion de Planeación de Negocios Fiduciarios | E44: Talento Humano | F44: Direccion de Planeación de Negocios Fiduciarios | G44: Agosto 2021 | H44: Agosto 2021 | I44: Findeter
B45: Jefatura de Talento Humano | C45: Capacitar profesionales del área en temas de modelaje financiero | E45: Talento Humano | F45: Direccion de Planeación Financiera | G45: Agosto 2021 | H45: Agosto 2021 | I45: Findeter
B46: Jefatura de Talento Humano | C46: Seminario Asobancaria-Mercado de Capitales | E46: Talento Humano | F46: Vicepresidencia de Planeación | G46: Agosto 2021 | H46: Agosto 2021 | I46: Findeter
B47: Jefatura de Talento Humano | C47: Participacion taller internacional ALIDE | E47: Talento Humano | F47: Vicepresidencia de Planeación | G47: Abril 2021 | H47: Abril 2021 | I47: Findeter
B48: Jefatura de Talento Humano | C48: Participación de la Vicepresidenta de Planeación de FINDETER en el programa "Maestria en Administración-MBA". | E48: Talento Humano | F48: Vicepresidencia de Planeación | G48: Enero 2021 | H48: Enero 2021 | I48: Findeter
B49: Jefatura de Talento Humano | C49: Fedesarrollo Participación Seminario Bancas de Desarrollo | E49: Talento Humano | F49: Vicepresidencia de Planeación | G49: Noviembre 2021 | H49: Noviembre 2021 | I49: Findeter
B50: Jefatura de Talento Humano | C50: ANIIF - Seminario | E50: Talento Humano | F50: Vicepresidencia de Planeación | G50: Julio 2021 | H50: Julio 2021 | I50: Findeter
B51: Jefatura de Talento Humano | C51: Project Finance | E51: Talento Humano | F51: Gerencia de Banca de Inversión | G51: Abril 2021 | H51: Abril 2021 | I51: Findeter
B52: Jefatura de Talento Humano | C52: Formulación de proyectos con Metodología General Ajustada | E52: Talento Humano | F52: Gerencia de Banca de Inversión | G52: Febrero 2021 | H52: Febrero 2021 | I52: Findeter
B53: Jefatura de Talento Humano | C53: Diplomado Gerencia de Proyectos | E53: Talento Humano | F53: Gerencia de Banca de Inversión | G53: Julio 2021 | H53: Julio 2021 | I53: Findeter
B54: Jefatura de Talento Humano | C54: Convención Bancaria Asobancaria | E54: Talento Humano | F54: Dirección de tesorería | G54: Agosto 2021 | H54: Agosto 2021 | I54: Findeter
B55: Jefatura de Talento Humano | C55: Simposio Mercado de Capitales y Tesorería | E55: Talento Humano | F55: Dirección de tesorería | G55: Mayo 2021 | H55: Mayo 2021 | I55: Findeter
B56: Jefatura de Talento Humano | C56: Certificaciones ante la AMV | E56: Talento Humano | F56: Dirección de tesorería | G56: Enero 2021 | H56: Diciembre de 2021 | I56: Findeter
B57: Jefatura de Talento Humano | C57: Capacitaciones Derivados | E57: Talento Humano | F57: Dirección de tesorería | G57: Julio 2021 | H57: Julio 2021 | I57: Findeter
B58: Jefatura de Talento Humano | C58: Examen Certificación CFA | E58: Talento Humano | F58: Dirección de tesorería | G58: Abril 2021 | H58: Abril 2021 | I58: Findeter
B59: Jefatura de Talento Humano | C59: Diplomado Finanzas para No Financieros * 2 | E59: Talento Humano | F59: Dirección de Banca Internacional | G59: Marzo 2021 | H59: Marzo 2021 | I59: Findeter
B60: Jefatura de Talento Humano | C60: Curso de Excel Básico e Intermedio *7 | E60: Talento Humano | F60: Dirección de Banca Internacional | G60: Marzo 2021 | H60: Marzo 2021 | I60: Findeter
B61: Jefatura de Talento Humano | C61: Presentaciones Ejecutivas de Alto Impacto | E61: Talento Humano | F61: Dirección de Banca Internacional | G61: Febrero 2021 | H61: Febrero 2021 | I61: Findeter
B62: Jefatura de Talento Humano | C62: Seminario en Contratación Internacional | E62: Talento Humano | F62: Dirección de Banca Internacional | G62: Marzo 2021 | H62: Marzo 2021 | I62: Findeter
B63: Jefatura de Talento Humano | C63: Congreso CCI | E63: Talento Humano | F63: Jefatura Gestión Urbana Integral | G63: Noviembre 2021 | H63: Noviembre 2021 | I63: Findeter
B64: Jefatura de Talento Humano | C64: Capacitación en Gerencia de crédito, cartera y cobranza | E64: Talento Humano | F64: Direccion de Cartera | G64: Enero 2021 | H64: Enero 2021 | I64: Findeter
B65: Jefatura de Talento Humano | C65: Maestria en Administración - MBA | E65: Talento Humano | F65: Vicepresidencia Financiera | G65: Enero 2021 | H65: Enero 2021 | I65: Findeter
B66: Jefatura de Talento Humano | C66: Curso de Excel Intermedio - Universidad Nacional - Para 05 personas | E66: Talento Humano | F66: Coordinacion de Crédito | G66: Enero 2021 | H66: Enero 2021 | I66: Findeter
B67: Jefatura de Talento Humano | C67: Curso de Excel Avanzado - Universidad Nacional - Para 04 personas | E67: Talento Humano | F67: Coordinacion de Crédito | G67: Enero 2021 | H67: Enero 2021 | I67: Findeter
B68: Jefatura de Talento Humano | C68: Certificación RETIE y RETILAP | E68: Talento Humano | F68: Gerencia de Infraestructura | G68: Enero 2021 | H68: Enero 2021 | I68: Findeter
B69: Jefatura de Talento Humano | C69: Gesproy y OCAD - Proyectos con recursos de regalías | E69: Talento Humano | F69: Gerencia de Agua y Saneamiento Básico | G69: Enero 2021 | H69: Enero 2021 | I69: Findeter
B70: Jefatura de Talento Humano | C70: Maestria en Políticas públicas | E70: Talento Humano | F70: Presidencia | G70: Junio 2021 | H70: Junio 2021 | I70: Findeter
B71: Jefatura de Talento Humano | C71: Estudio y análisis del Estatuto General de Contratación de la Administración Pública - Cámara de Comercio de Bogotá - Para 02 personas | E71: Talento Humano | F71: Coordinación de Crédito | G71: Febrero 2021 | H71: Febrero 2021 | I71: Findeter
B72: Jefatura de Talento Humano | C72: Congreso de Tesoreria, Asobancaria | E72: Talento Humano | F72: Dirección de Operaciones | G72: Febrero 2021 | H72: Febrero 2021 | I72: Findeter
B73: Jefatura de Talento Humano | C73: Actualizacion en Normatividad Tributaria | E73: Talento Humano | F73: Dirección de Operaciones | G73: Febrero 2021 | H73: Febrero 2021 | I73: Findeter
B74: Jefatura de Talento Humano | C74: Riego y batería sanitaria | E74: Talento Humano | F74: Gerencia de Agua y Saneamiento Básico | G74: Febrero 2021 | H74: Febrero 2021 | I74: Findeter
B75: Jefatura de Talento Humano | C75: Diplomado Finanzas para no Financieros - Universidad Javeriana - Para 02 personas | E75: Talento Humano | F75: Coordinación de Crédito | G75: Marzo 2021 | H75: Marzo 2021 | I75: Findeter
B76: Jefatura de Talento Humano | C76: Diplomado Finanzas para no Financieros - Universidad Javeriana - Para 02 personas | E76: Talento Humano | F76: Coordinación de Crédito | G76: Julio 2021 | H76: Julio 2021 | I76: Findeter
B77: Jefatura de Talento Humano | C77: Curso de preparación para certificación PMP version actualizada | E77: Talento Humano | F77: Presidencia | G77: Abril 2021 | H77: Abril 2021 | I77: Findeter
B78: Jefatura de Talento Humano | C78: Diplomado Gerencia de crédito, cartera y cobranza - Cámara de Comercio de Bogotá - 02 personas | E78: Talento Humano | F78: Coordinación de Crédito | G78: Abril 2021 | H78: Abril 2021 | I78: Findeter
B79: Jefatura de Talento Humano | C79: Actualización en normatividad sobre seguridad social asisten 2 trabajadores | E79: Talento Humano | F79: Jefatura de Talento Humano | G79: Marzo 2021 | H79: Marzo 2021 | I79: Findeter
B80: Jefatura de Talento Humano | C80: Supervisión de proyectos (proyección, planeación y coordinación | E80: Talento Humano | F80: Gerencia de Infraestructura | G80: Abril 2021 | H80: Abril 2021 | I80: Findeter
B81: Jefatura de Talento Humano | C81: Se requiere la capacitación para todos los abogados de la Dirección Jurídica, Dirección de Contratación, Contratación derivada y Secretaría General en Títulos Valores y garantías | E81: Talento Humano | F81: Dirección Juridica | G81: Mayo 2021 | H81: Mayo 2021 | I81: Findeter
B82: Jefatura de Talento Humano | C82: Curso actualización metodologías SARLAFT (Oficial de Cumplimiento principal). | E82: Talento Humano | F82: Oficial de Cumplimiento | G82: Mayo 2021 | H82: Mayo 2021 | I82: Findeter
B83: Jefatura de Talento Humano | C83: Diplomado en normatividad tributaria para 2 trabajadores | E83: Talento Humano | F83: Jefatura de Talento Humano | G83: Mayo 2021 | H83: Mayo 2021 | I83: Findeter
B84: Jefatura de Talento Humano | C84: Cueso en Herramientas Ofímaticas (Excel) | E84: Talento Humano | F84: Jefatura de Talento Humano | G84: Mayo 2021 | H84: Mayo 2021 | I84: Findeter
B85: Jefatura de Talento Humano | C85: Scrum Product Owner | E85: Talento Humano | F85: Dirección de Tecnología | G85: Mayo 2021 | H85: Mayo 2021 | I85: Findeter
B86: Jefatura de Talento Humano | C86: DevOps | E86: Talento Humano | F86: Dirección de Tecnología | G86: Mayo 2021 | H86: Mayo 2021 | I86: Findeter
B87: Jefatura de Talento Humano | C87: COBIT FUNDATION | E87: Talento Humano | F87: Dirección de Tecnología | G87: Mayo 2021 | H87: Mayo 2021 | I87: Findeter
B88: Jefatura de Talento Humano | C88: Capacitación Miembros de Junta Directiva | E88: Talento Humano | F88: Secretaría General | G88: Junio 2021 | H88: Junio 2021 | I88: Findeter
B89: Jefatura de Talento Humano | C89: Congreso Panamericano de Lavado de Activos y Financiación del Terrorismo (Oficial de Cumplimiento Principal). | E89: Talento Humano | F89: Oficial de Cumplimiento | G89: Julio 2021 | H89: Julio 2021 | I89: Findeter
B90: Jefatura de Talento Humano | C90: Congreso Panamericano de Lavado de Activos y Financiación del Terrorismo (Oficial de Cumplimiento Suplente). | E90: Talento Humano | F90: Oficial de Cumplimiento | G90: Julio 2021 | H90: Julio 2021 | I90: Findeter
B91: Jefatura de Talento Humano | C91: Temas relacionados con efr | E91: Talento Humano | F91: Jefatura de Talento Humano | G91: Julio 2021 | H91: Julio 2021 | I91: Findeter
B92: Jefatura de Talento Humano | C92: ITIL®4 MP Crear, entregar y soportar - CDS + Voucher | E92: Talento Humano | F92: Dirección de Tecnología | G92: Julio 2021 | H92: Julio 2021 | I92: Findeter
B93: Jefatura de Talento Humano | C93: ITIL®4 MP Dirigir Planear y Mejorar - DPI + Voucher | E93: Talento Humano | F93: Dirección de Tecnología | G93: Julio 2021 | H93: Julio 2021 | I93: Findeter
B94: Jefatura de Talento Humano | C94: Diplomado Tributaria | E94: Talento Humano | F94: Dirección de contabilidad | G94: Julio 2021 | H94: Julio 2021 | I94: Findeter
B95: Jefatura de Talento Humano | C95: Project Manager | E95: Talento Humano | F95: Vicepresidencia Técnica | G95: Julio 2021 | H95: Julio 2021 | I95: Findeter
B96: Jefatura de Talento Humano | C96: Capítulos J y K NSR-10 Seguridad Humana | E96: Talento Humano | F96: Gerencia de Infraestructura | G96: Julio 2021 | H96: Julio 2021 | I96: Findeter
B97: Jefatura de Talento Humano | C97: Curso de certificación en Seguridad y Ciberseguridad | E97: Talento Humano | F97: Dirección de Tecnología | G97: Agosto 2021 | H97: Agosto 2021 | I97: Findeter
B98: Jefatura de Talento Humano | C98: Curso de Certificación Adminsitración de Servidores Microsoft | E98: Talento Humano | F98: Dirección de Tecnología | G98: Agosto 2021 | H98: Agosto 2021 | I98: Findeter
B99: Jefatura de Talento Humano | C99: Diplomado de costos y presupuestos | E99: Talento Humano | F99: Vicepresidencia de Operaciones | G99: Agosto 2021 | H99: Agosto 2021 | I99: Findeter
B100: Jefatura de Talento Humano | C100: Diplomado en TI, finanzas | E100: Talento Humano | F100: Vicepresidencia de Operaciones | G100: Agosto 2021 | H100: Agosto 2021 | I100: Findeter
B101: Jefatura de Talento Humano | C101: Diplomado en Normas Internacionales Actualizacion | E101: Talento Humano | F101: Dirección de contabilidad | G101: Agosto 2021 | H101: Agosto 2021 | I101: Findeter
B102: Jefatura de Talento Humano | C102: Diplomado ISO27001 en Seguridad | E102: Talento Humano | F102: Dirección de Tecnología | G102: Septiembre 2021 | H102: Septiembre 2021 | I102: Findeter
B103: Jefatura de Talento Humano | C103: Actualizacion en Norma Internacional NIIF NIC | E103: Talento Humano | F103: Dirección de contabilidad | G103: Septiembre 2021 | H103: Septiembre 2021 | I103: Findeter
B104: Jefatura de Talento Humano | C104: Curso Operación bursatil, Asobursatil | E104: Talento Humano | F104: Dirección de Operaciones | G104: Octubre de 2021 | H104: Octubre de 2021 | I104: Findeter
B105: Jefatura de Talento Humano | C105: Se requiere la capacitación para todos los abogados de la Dirección Jurídica, Dirección de Contratación, Contratación derivada y Secretaría General en Operaciones Fiancieras | E105: Talento Humano | F105: Dirección Juridica | G105: Octubre de 2021 | H105: Octubre de 2021 | I105: Findeter
B106: Jefatura de Talento Humano | C106: Curso actualización metodologías SARLAFT (Oficial de Cumplimiento Suplente). | E106: Talento Humano | F106: Oficial de Cumplimiento | G106: Octubre de 2021 | H106: Octubre de 2021 | I106: Findeter
B107: Jefatura de Talento Humano | C107: Nuevas tecnologías en el sector de agua y saneamiento basico | E107: Talento Humano | F107: Gerencia de Agua y Saneamiento Básico | G107: Noviembre 2021 | H107: Noviembre 2021 | I107: Findeter
B108: Jefatura de Talento Humano | C108: Especializacion Tributaria | E108: Talento Humano | F108: Dirección de contabilidad | G108: Diciembre 2021 | H108: Diciembre 2021 | I108: Findeter
B109: Jefatura de Talento Humano | C109: Normatividad aplicable: HFPA 10, 14, 20 y 72 Sistemas de extinción y detección contra incendios, NTC 4595, NTC 6199 y GIPI, NTC 1500 Código de Fontanería, NTC 2674 Cocinas y preparación de alimentos, Y NTC 2050 subestaciones eléctricas | E109: Talento Humano | F109: Gerencia de Infraestructura | G109: Diciembre 2021 | H109: Diciembre 2021 | I109: Findeter
B110: Jefatura de Talento Humano | C110: Advanced Management Program Intensivo 1 mes España-Vicepresidente Comercial | E110: Talento Humano | F110: Vicepresidencia Comercial | G110: Junio 2021 | H110: Junio 2021 | I110: Findeter
B111: Jefatura de Talento Humano | C111: Capacitación a los directivos y comerciales en competencias de ventas o similares; para revisar y/o reactivar lo que se tiene. | E111: Talento Humano | F111: Vicepresidencia Comercial | G111: Enero 2021 | H111: Enero 2021 | I111: Findeter
B112: Jefatura de Talento Humano | C112: Maestría en Gestión Pública Gerente Regional - U ANDES | E112: Talento Humano | F112: Regional Nororiental | G112: Enero 2021 | H112: Enero 2021 | I112: Findeter
B113: Jefatura de Talento Humano | C113: Capacitación en Derecho Urbano dictado por el Centro Interdisciplinario de Estudios sobre el desarrollo- CIDER de los la universidad de los Andes, 36 horas y 4 sesiones | E113: Talento Humano | F113: Direccion de Ciudades y Competitividad | G113: Abril 2021 | H113: Abril 2021 | I113: Findeter
B114: Jefatura de Talento Humano | C114: Capacitación fuerza Comercial Findeter Suma | E114: Talento Humano | F114: Jefatura de Mercadeo | G114: Febrero 2021 | H114: Febrero 2021 | I114: Findeter
B115: Jefatura de Talento Humano | C115: Capacitación fuerza Comercial Findeter Suma | E115: Talento Humano | F115: Jefatura de Mercadeo | G115: Julio 2021 | H115: Julio 2021 | I115: Findeter
B116: Jefatura de Talento Humano | C116: Capacitación Organización y Gestion de eventos virtuales y presenciales | E116: Talento Humano | F116: Jefatura de Mercadeo | G116: Abril 2021 | H116: Abril 2021 | I116: Findeter
B117: Jefatura de Talento Humano | C117: Capacitación en Marketing Analitics | E117: Talento Humano | F117: Jefatura de Mercadeo | G117: Julio 2021 | H117: Julio 2021 | I117: Findeter
B118: Jefatura de Talento Humano | C118: Maestria en mercadeo Jefe de area | E118: Talento Humano | F118: Jefatura de Mercadeo | G118: Febrero 2021 | H118: Febrero 2021 | I118: Findeter
B119: Jefatura de Talento Humano | C119: Participacion expomarketing | E119: Talento Humano | F119: Jefatura de Mercadeo | G119: Abril 2021 | H119: Abril 2021 | I119: Findeter
B120: Jefatura de Talento Humano | C120: Curso de Indesign - Essential | E120: Talento Humano | F120: Gerencia de Comunicaciones, Mercadeo y Rs | G120: Junio 2021 | H120: Junio 2021 | I120: Findeter
B121: Jefatura de Talento Humano | C121: Diplomado en Creación de Contenidos Digitales | E121: Talento Humano | F121: Gerencia de Comunicaciones, Mercadeo y Rs | G121: Enero 2021 | H121: Enero 2021 | I121: Findeter
B122: Jefatura de Talento Humano | C122: Maestria en mercadeo Jefe de area UANDES | E122: Talento Humano | F122: Grupo de Acción Social | G122: Febrero 2021 | H122: Febrero 2021 | I122: Findeter
B123: Jefatura de Talento Humano | C123: Curso Excel -Avanzado | E123: Talento Humano | F123: Jefatura Inteligencia Del Negocio | G123: Julio 2021 | H123: Julio 2021 | I123: Findeter
B124: Jefatura de Talento Humano | C124: Seminario de Design Thinking | E124: Talento Humano | F124: Gerencia de Desarrollo de Producto | G124: Enero 2021 | H124: Enero 2021 | I124: Findeter
B125: Jefatura de Talento Humano | C125: Curso de actualización en nueva normatividad en SGSST | D125: Capacitar a los trabajadores para brindar o fortalecer el conocimiento integral de la Entidad, con el propósito de lograr su alineación con la estrategia corporativa y la comprension en las directrices de la Financiera. | E125: Talento Humano | F125: Jefatura de Talento Humano | G125: Junio 2021 | H125: Junio 2021 | I125: Findeter
B126: Jefatura de Talento Humano | C126: Capacitación Códigos Etica e Integridad y Gobierno Corporativo | E126: Talento Humano | F126: Jefatura de Talento Humano | G126: Abril 2021 | H126: Abril 2021 | I126: Findeter
B127: Jefatura de Talento Humano | C127: Prevención del Covid 19 | D127: Formación en temas de seguridad y salud en el trabajo en aras de prevenir accidentes y enfermedades laborales | E127: Talento Humano | F127: Jefatura de Talento Humano | G127: Febrero 2021 | H127: Febrero 2021 | I127: Findeter
B128: Jefatura de Talento Humano | C128: Formación Integral a la Brigada de Emergencia | E128: Talento Humano | F128: Jefatura de Talento Humano | G128: Febrero 2021 | H128: Febrero 2021 | I128: Findeter
B129: Jefatura de Talento Humano | C129: Formación a COPASST | E129: Talento Humano | F129: Jefatura de Talento Humano | G129: Marzo 2021 | H129: Marzo 2021 | I129: Findeter
B130: Jefatura de Talento Humano | C130: Formación a Comité de Convivencia Laboral | E130: Talento Humano | F130: Jefatura de Talento Humano | G130: Febrero 2021 | H130: Febrero 2021 | I130: Findeter
B131: Jefatura de Talento Humano | C131: Divulgación Plan de emergencias a todo el personal | E131: Talento Humano | F131: Jefatura de Talento Humano | G131: Junio 2021 | H131: Junio 2021 | I131: Findeter
B132: Jefatura de Talento Humano | C132: Capacitación en Higiene Postural a todo el personal | E132: Talento Humano | F132: Jefatura de Talento Humano | G132: Abril 2021 | H132: Abril 2021 | I132: Findeter
B133: Jefatura de Talento Humano | C133: Capacitación en Riesgo Público conductores | E133: Talento Humano | F133: Jefatura de Talento Humano | G133: Agosto 2021 | H133: Agosto 2021 | I133: Findeter
B134: Jefatura de Talento Humano | C134: Uso y mantenimiento adecuado de EPP - personal Área Técnica | E134: Talento Humano | F134: Jefatura de Talento Humano | G134: Mayo 2021 | H134: Mayo 2021 | I134: Findeter
B135: Jefatura de Talento Humano | C135: Capacitación en Riesgo Público personal del área Técnica | E135: Talento Humano | F135: Jefatura de Talento Humano | G135: Mayo 2021 | H135: Mayo 2021 | I135: Findeter
B136: Jefatura de Talento Humano | C136: Capacitación manejo seguro de cargas - Contratistas | E136: Talento Humano | F136: Jefatura de Talento Humano | G136: Octubre de 2021 | H136: Octubre de 2021 | I136: Findeter
B137: Jefatura de Talento Humano | C137: Capacitación Riesgo Químico - Contratistas | E137: Talento Humano | F137: Jefatura de Talento Humano | G137: Octubre de 2021 | H137: Octubre de 2021 | I137: Findeter
B138: Jefatura de Talento Humano | C138: Capacitación Riesgo mecánico - Contratistas | E138: Talento Humano | F138: Jefatura de Talento Humano | G138: Octubre de 2021 | H138: Octubre de 2021 | I138: Findeter
B139: Jefatura de Talento Humano | C139: Uso y mantenimiento adecuado de EPP - Contratistas | E139: Talento Humano | F139: Jefatura de Talento Humano | G139: Octubre de 2021 | H139: Octubre de 2021 | I139: Findeter
B140: Jefatura de Talento Humano | C140: Capacitación en Orden y Limpieza a todo el personal | E140: Talento Humano | F140: Jefatura de Talento Humano | G140: Julio 2021 | H140: Julio 2021 | I140: Findeter
B141: Jefatura de Talento Humano | C141: Curso Virtual SG - SST | E141: Talento Humano | F141: Jefatura de Talento Humano | G141: Diciembre 2021 | H141: Diciembre 2021 | I141: Findeter
B170: Dependencia | C170: Política de Gestión y Desempeño | D170: Líneas de Capacitación | E170: Actividad (Nombre de la Tarea) | F170: Responsables (Responsable de la Tarea) | G170: Fecha de Inicio | H170: Fecha de Fin | I170: Fuente de Financiación
B173: Jefatura de Talento Humano | C173: Talento Humano | D173: Inducción | E173: Entrega de un mensaje escrito de bienvenida a la entidad, invitándole a afianzarse en la cultura organizacional. | F173: Jefatura de Talento Humano | G173: 2020-01-01 | H173: 2020-12-31 | I173: Findeter
E174: Realización del curso virtual que permite contextualizar al nuevo trabajador en los distintos temas de interés general sobre la Entidad. | F174: Jefatura de Talento Humano | G174: 2020-01-01 | H174: 2020-12-31 | I174: Findeter
E175: Recibimiento al nuevo trabajador reforzando los temas clave para su ingreso. | F175: Jefatura de Talento Humano | G175: 2020-01-01 | H175: 2020-12-31 | I175: Findeter
E176: Induccion especifica al cargo | F176: Jefatura de Talento Humano | G176: 2020-01-01 | H176: 2020-12-31 | I176: Findeter
D177: Reinducción | E177: Capacitación anual sobre el SARLAFT. | F177: Oficial de Cumplimiento | G177: 2020-08-20 | H177: 2020-08-20 | I177: Findeter
E178: Capacitaciones en servicio al cliente para toda la Entidad | F178: Jefatura de Mercadeo | G178: Abril Mayo Agosto | H178: Abril Mayo Agosto | I178: Findeter
D179: Corporativa | E179: Curso de actualización en nueva normatividad en SGSST | F179: Jefatura de Talento Humano | G179: 2020-03-20 | H179: 2020-03-20 | I179: Findeter
E180: Capacitación por intervención en disminución de brechas según resultados de clima organizacional, cultura, riesgo psicosocial y competencias para todos los trabajadores | F180: Jefatura de Talento Humano | G180: 2020-03-20 | H180: 2020-03-20 | I180: Findeter
E181: Capacitación Códigos Etica e Integridad y Gobierno Corporativo | F181: Jefatura de Talento Humano | G181: 2020-04-20 | H181: 2020-04-20 | I181: Findeter
D182: Específica | E182: Congreso de Gerencia de Proyectos del PMI | F182: Dirección PMO | G182: 2020-08-20 | H182: 2020-08-20 | I182: Findeter
E183: Diplomado en gestión ágil de proyectos SCRUM | F183: Dirección PMO | G183: 2020-09-20 | H183: 2020-09-20 | I183: Findeter
E184: Curso y examen de certificación como Project Management Professional 1 persona de la PMO | F184: Dirección PMO | G184: 2020-06-20 | H184: 2020-06-20 | I184: Findeter
E185: Capacitación técnica en Power BI | F185: Dirección de Ciudades y Competitividad | G185: 2020-03-20 | H185: 2020-03-20 | I185: Findeter
E186: Introducción a la evaluación de impacto para la gestión pública | F186: Vicepresidencia Desarrollo Territorial | G186: 2020-10-20 | H186: 2020-10-20 | I186: Findeter
E187: Congreso Panamericano de Lavado de Activos y Financiación del Terrorismo (Oficial de Cumplimiento Principal y su suplente) | F187: Oficial de Cumplimiento | G187: 2020-07-20 | H187: 2020-07-20 | I187: Findeter
E188: Capacitación para todos los abogados de la Dirección Jurídica, Dirección de Contratación y Contratación derivada en Derecho Procesal | F188: Dirección Jurídica | G188: 2020-04-20 | H188: 2020-04-20 | I188: Findeter
E189: capacitación para todos los abogados de la Dirección Jurídica, Dirección de Contratación y Contratación derivada en Derecho Sustancial | F189: Dirección Jurídica | G189: 2020-09-20 | H189: 2020-09-20 | I189: Findeter
E190: Diplomado Presencial en temas presupuestales | F190: Grupo de Presupuesto | G190: 2020-01-20 | H190: 2020-01-20 | I190: Findeter
E191: Curso Presencial en temas presupuestales | F191: Grupo de Presupuesto | G191: 2020-01-20 | H191: 2020-01-20 | I191: Findeter
E192: Curso / Seminario de la gestion presupuestal en el sector público | F192: Grupo de Presupuesto | G192: 2020-06-20 | H192: 2020-06-20 | I192: Findeter
E193: Curso de analisis financiero que permita robustecer las estimaciones financieras de la entidad. | F193: Vicepresidencia de Planeación | G193: 2020-09-20 | H193: 2020-09-20 | I193: Findeter
E194: Maestria en Administración-MBA | F194: Vicepresidencia de Planeación (vicepresidenta de planeación) | G194: 2020-01-20 | H194: 2020-01-20 | I194: Findeter
E195: Seminario Asobancaria-Mercado de Capitales | F195: Vicepresidencia de Planeación | G195: 2020-08-20 | H195: 2020-08-20 | I195: Findeter
F196: Dirección de Tesorería | G196: 2020-08-20 | H196: 2020-08-20 | I196: Findeter
E197: Certificacion ante AMV | F197: Vicepresidencia de Planeación | G197: 2020-01-20 | H197: 2020-01-20 | I197: Findeter
G198: 2020-07-20 | H198: 2020-07-20 | I198: Findeter
F199: Dirección de Tesorería | G199: 2020-01-20 | H199: 2020-01-20 | I199: Findeter
E200: Participacion taller internacional ALIDE | F200: Vicepresidencia de Planeación | G200: 2020-03-20 | H200: 2020-03-20 | I200: Findeter
G201: 2020-07-20 | H201: 2020-07-20 | I201: Findeter
E202: Congreso de Calidad | F202: Gerencia de Planeación y Gestión | G202: 2020-08-20 | H202: 2020-08-20 | I202: Findeter
E203: Diplomado en Gestión de procesos de Procesos | F203: Gerencia de Planeación y Gestión | G203: 2020-04-20 | H203: 2020-04-20 | I203: Findeter
E204: Diplomados para el equipo de estrategia en temas de prospectiva estratégica, nuevas tendencias de planeación estratégica, esquemas de compensación variable | F204: Gerencia de Planeación y Gestión | G204: 2020-02-20 | H204: 2020-02-20 | I204: Findeter
E205: Capacitacion en aspectos de negocios fiduciarios | F205: Dirección de Planeación de Negocios Fiduciarios | G205: 2020-02-20 | H205: 2020-02-20 | I205: Findeter
E206: Curso en aspectos relevantes en contratacion | F206: Dirección de Planeación de Negocios Fiduciarios | G206: 2020-01-20 | H206: 2020-01-20 | I206: Findeter
E207: Diplomado NIIF-NIC | F207: Dirección de Planeación de Negocios Fiduciarios | G207: 2020-03-20 | H207: 2020-03-20 | I207: Findeter
E208: Diplomado en Finanzas para no financieros | F208: Dirección de Planeación de Negocios Fiduciarios | G208: 2020-07-20 | H208: 2020-07-20 | I208: Findeter
E209: Actualización en normatividad sobre seguridad social asisten 2 trabajadores | F209: Jefatura de Talento Humano | G209: 2020-03-20 | H209: 2020-03-20 | I209: Findeter
E210: Diplomado en normatividad tributaria para 2 trabajadores | F210: Jefatura de Talento Humano | G210: 2020-05-20 | H210: 2020-05-20 | I210: Findeter
E211: Congreso talento humano 2020 | F211: Jefatura de Talento Humano | G211: 2020-06-20 | H211: 2020-06-20 | I211: Findeter
E212: Foros relacionados con la actualización en temas de Bienestar y calidad de vida | F212: Jefatura de Talento Humano | G212: 2020-04-20 | H212: 2020-04-20 | I212: Findeter
G213: 2020-07-20 | H213: 2020-07-20 | I213: Findeter
G214: 2020-09-20 | H214: 2020-09-20 | I214: Findeter
E215: Actualización en temas relacionados con selección de personal | F215: Jefatura de Talento Humano | G215: 2020-05-20 | H215: 2020-05-20 | I215: Findeter
E216: Capacitacion anual SARO (circular básica y contable de SARO) | F216: Coordinación de Riesgos No Financieros | G216: 2020-08-20 | H216: 2020-08-20 | I216: Findeter
E217: Congreso de Prevención del Fraude y Seguridad. | F217: Coordinación de Riesgos No Financieros | G217: 2020-10-20 | H217: 2020-10-20 | I217: Findeter
E218: Diplomado en riesgo financiero para personal de riesgo no financiero | F218: Coordinación de Riesgos No Financieros | G218: 2020-08-20 | H218: 2020-08-20 | I218: Findeter
E219: Curso en gesión de Riesgos | F219: Coordinación de Riesgos Financieros | G219: 2020-08-20 | H219: 2020-08-20 | I219: Findeter
G220: 2020-10-20 | H220: 2020-10-20 | I220: Findeter
E221: Diplomado de Finanzas Básicas para Abogados | F221: Coordinación de Riesgos Financieros | G221: 2020-08-20 | H221: 2020-08-20 | I221: Findeter
E222: Diplomado en contratación, tecnologías de la información o finanzas básicas para no financieros | F222: Vicepresidencia de Operaciones | G222: 2020-06-20 | H222: 2020-06-20 | I222: Findeter
E223: Diplomado en costos y presupuestos estrategicos | F223: Vicepresidencia de Operaciones | G223: 2020-08-20 | H223: 2020-08-20 | I223: Findeter
E224: Dplomado de Bolsa, BVC | F224: Dirección de Operaciones | G224: 2020-01-20 | H224: 2020-01-20 | I224: Findeter
E225: Diplomado Mercado de Capitales. | F225: Dirección de Operaciones | G225: 2020-01-20 | H225: 2020-01-20 | I225: Findeter
E226: Seminario Internacional - Banca | F226: Dirección de Operaciones | G226: 2020-07-20 | H226: 2020-07-20 | I226: Findeter
E227: Actualización en normas internacionales de contabilidad, que servirán de base para la actualización y presentación de los estados financieros de Findeter de acuerdo a modificaciones que se puedan presentar a estas normas | F227: Dirección de Contabilidad | G227: 2020-05-30 | H227: 2020-05-30 | I227: Findeter
G228: 2020-09-20 | H228: 2020-09-20 | I228: Findeter
E229: Capacitación Scrum Master | F229: Dirección de Tecnología | G229: 2020-03-20 | H229: 2020-03-20 | I229: Findeter
E230: Capacitación Itil Fundamentos V4 | F230: Dirección de Tecnología | G230: 2020-07-20 | H230: 2020-07-20 | I230: Findeter
E231: Diplomado en Transformacion Digital | F231: Dirección de Tecnología | G231: 2020-03-20 | H231: 2020-03-20 | I231: Findeter
E232: Certificacion ITIL V4 Foundation | F232: Dirección de Tecnología | G232: 2020-02-20 | H232: 2020-02-20 | I232: Findeter
E233: COBIT | F233: Dirección de Tecnología | G233: 2020-08-20 | H233: 2020-08-20 | I233: Findeter
E234: Curso CEH - Ethical Hacking | F234: Dirección de Tecnología | G234: 2020-01-20 | H234: 2020-01-20 | I234: Findeter
E235: Resolución 1063 MVCT | F235: Gerencia de Agua y Saneamiento Básico | G235: 2020-03-20 | H235: 2020-03-20 | I235: Findeter
E236: Resolución 0330 RAS 2017: Diseño de redes de acueducto, alcantarillado PTAR y PTAP | F236: Gerencia de Agua y Saneamiento Básico | G236: 2020-05-20 | H236: 2020-05-20 | I236: Findeter
E237: Capacitación en formulación con MGA | F237: Gerencia de Banca de Inversión | G237: 2020-02-20 | H237: 2020-02-20 | I237: Findeter
E238: Congreso CCI | F238: Gerencia de Banca de Inversión | G238: 2020-11-20 | H238: 2020-11-20 | I238: Findeter
E239: Curso Estructuración y Formulación de Proyectos | F239: Gerencia de Banca de Inversión | G239: 2020-02-20 | H239: 2020-02-20 | I239: Findeter
... 120 more rows

Sheet Plan de Incentivos
D4: PLAN DE INCENTIVOS INSTITUCIONALES FINDETER 2021

Sheet Plan MIPG
P2: v
F4: PLAN DEL MODELO INTEGRADO DE PLANEACIÓN Y GESTION - MIPG FINDETER 2021
C10: Perspectiva | D10: Subtema (Dimensión MIPG) | E10: Política | F10: Objetivo | G10: Iniciativa | H10: Categoría | I10: Actividad (Nombre de la Tarea) | J10: Descripción de la Tarea y Entregable | K10: Area Responsable en Findeter | L10: Persona Responsable de documentar acciones | M10: Fecha Inicial | N10: Fecha Final | O10: Fuente de Financiación
C11: Gestión Misional | D11: Direccionamiento Estratégico y Planeación | E11: Planeación Institucional | F11: N/A | G11: N/A | H11: Planeación Institucional | I11: Llevar a cabo Reuniones de Análisis Estratégico - RAE | J11: Las reuniones de análisis estratégico - RAE corporativas y por dependencia, permiten realizar el seguimiento de la estratégia para la toma de decisiones oportuna. Se programan dos reuniones por dependencia y tres corporativas | K11: Gerencia de Planeación y Gestión - Planeación Estratégica | L11: Lida Imelda Giraldo Leiton / Clara Mabel Ruiz Sierra (Planeación Estratégica) | M11: 44228 | N11: 44561 | O11: Findeter
C12: Gestión de Capacidades Institucionales | D12: Gestión con Valores para el Resultado (Ventanilla hacia adentro) | E12: Defensa Jurídica | F12: Promover la adecuada administración de los recursos físicos, financieros y la defensa técnica de las Entidades del Sector Hacienda. | G12: Desarrollar mecanismos para un adecuado ejercicio de defensa jurídica de las Entidades del Sector Hacienda. | H12: Defensa Juridica | I12: Participar en las mesas sectoriales de la política de Defensa Jurídica del Sector Hacienda | J12: Participar en las reuniones programadas por el líder sectorial de la política de Defensa Jurídica del MHCP y entregar la información requerida para el fortalecimiento y documentación de estas políticas. | K12: Dirección Jurídica | L12: Susan Echeverry | M12: 44197 | N12: 44286 | O12: Findeter
C13: Gestión de Capacidades Institucionales | D13: Gestión de Capacidades Institucionales (Ventanilla hacia adentro) | E13: Defensa Jurídica | F13: Promover la adecuada administración de los recursos físicos, financieros y la defensa técnica de las Entidades del Sector Hacienda. | G13: Desarrollar mecanismos para un adecuado ejercicio de defensa jurídica de las Entidades del Sector Hacienda. | H13: Defensa Juridica | I13: Participar en las sesiones programadas por la ANDJE dentro de la iniciativa de Comunidad jurídica del conocimiento. | J13: Participar mínimo en seis (6) de las sesiones programadas para la vigencia 2021 por la ANDJE dentro de la iniciativa de Comunidad jurídica del conocimiento, ya sea en forma presencial o virtual la participación es sin mínimo número determinado de apoderados judiciales de la entidad. Se busca que los apoderados reciban las capacitaciones que ofrece la ANDJE toda vez que con ello se fortaleza la defensa judicial y extrajudiciales de las entidades que integran el Sector Hacienda Entregable. Certificación emitida por la ANDJE | K13: Dirección Jurídica | L13: Susan Echeverry | M13: 44200 | N13: 44550 | O13: Findeter
C14: Gestión de Capacidades Institucionales | D14: Gestión de Capacidades Institucionales (Ventanilla hacia adentro) | E14: Gestión Presupuestal y Eficiencia del Gasto Público | F14: Promover la adecuada administración de los recursos físicos, financieros y la defensa técnica de las Entidades del Sector Hacienda. | G14: Implementar buenas practicas para la administración de recursos financieros en las Entidades del Sector Hacienda | H14: Gestión Presupuestal | I14: Implementar buenas practicas para la administración presupuestal de Findeter | J14: Establecimiento de reuniones mensuales para el seguimiento a la ejecución del presupuesto de la Entidad | K14: Grupo de Presupuesto - Vicepresidencia de Planeación | L14: Francisco José Ledesma Pérez / Diana Marcela Gómez Aguilar | M14: 44198 | N14: 44561 | O14: Findeter
C15: Gestión de Capacidades Institucionales | D15: Gestión del Conocimiento y la Innovación | E15: Gestión del Conocimiento y la Innovación | F15: Fortalecer las capacidades de Gestión de Conocimiento y la innovación en las entidades del Sector Hacienda | G15: Fortalecer la implementación de la política de Gestión de Conocimiento e Innovación en las Entidades del Sector | H15: Innovacion y Conocimiento | I15: Analizar los resultados de la política de Gestión del Conocimiento y la Innovación en la medición del Furag de la vigencia 2020. | J15: De acuerdo con los resultados obtenidos en la medición del FURAG de la gestión 2020, que realiza el DAFP en la vigencia 2021. Cada entidad del Sector Hacienda, analizará sus resultados y ajustará cuando lo considere pertinente, los planes con el propósito de generar acciones que permitan cerrar brecha, en relación con la política de Gestión del Conocimiento y la Innovación. Entregable. Documento que soporte el análisis de los resultados del Furag o planes ajustados. | K15: Gerencia de Planeación y Gestión - CIC | L15: Andrea Rojas Avila (Equipo CIC) | M15: 44348 | N15: 44561 | O15: Findeter
C16: Gestión de Capacidades Institucionales | D16: Gestión del Conocimiento y la Innovación | E16: Gestión del Conocimiento y la Innovación | F16: Fortalecer las capacidades de Gestión de Conocimiento y la innovación en las entidades del Sector Hacienda | G16: Fortalecer la implementación de la política de Gestión de Conocimiento e Innovación en las Entidades del Sector | H16: Innovacion y Conocimiento | I16: Participar en las mesas de trabajo sectoriales de la política de Gestión del Conocimiento e innovación | J16: Participar en dos mesas de trabajo sectoriales de la política de Gestión del conocimiento e innovación. 1 cada semestre. | K16: Gerencia de Planeación y Gestión - CIC | L16: Andrea Rojas Avila (Equipo CIC) | M16: 44228 | N16: 44561 | O16: Findeter
C17: Gestión de Capacidades Institucionales | D17: Gestión del Conocimiento y la Innovación | E17: Gestión del Conocimiento y la Innovación | F17: Fortalecer las capacidades de Gestión de Conocimiento y la innovación en las entidades del Sector Hacienda | G17: Fortalecer la implementación de la política de Gestión de Conocimiento e Innovación en las Entidades del Sector | H17: Innovacion y Conocimiento | I17: Realizar dos publicaciones de innovación y conocimiento | J17: Publicaciones que contengan información sobre lo realizado por el Centro de Innovación y Conocimiento | K17: Gerencia de Planeación y Gestión - CIC | L17: Andrea Rojas Avila (Equipo CIC) | M17: 44198 | N17: 44561 | O17: Findeter
C18: Gestión de Capacidades Institucionales | D18: Gestión del Conocimiento y la Innovación | E18: Gestión del Conocimiento y la Innovación | F18: Fortalecer las capacidades de Gestión de Conocimiento y la innovación en las entidades del Sector Hacienda | G18: Fortalecer la implementación de la política de Gestión de Conocimiento e Innovación en las Entidades del Sector | H18: Innovacion y Conocimiento | I18: Solucionar 2 retos de la entidad. | J18: Retos identificados con su respectiva solución y plan de implementación. | K18: Gerencia de Planeación y Gestión - CIC | L18: Andrea Rojas Avila (Equipo CIC) | M18: 44287 | N18: 44561 | O18: Findeter
C19: Gestión de Capacidades Institucionales | D19: Talento Humano | E19: Integridad | F19: Fortalecer las capacidades institucionales de las entidades del sector hacienda | G19: Fortalecer la implementación de la política de integridad en las Entidades del Sector | H19: Integridad | I19: Realizar las actividades conducentes a la interiorización de los instrumentos del Gobierno Corporativo de la Entidad. | J19: Se realizarán las actividades encaminadas a la interiorización de los códigoe de ética e Integridad, así como de Buen Goberno de la Entidad. | K19: Jefatura de Talento Humano | L19: Ana Sheyla Ordoñez | M19: 44198 | N19: 44561 | O19: Findeter
C20: Gestión de Capacidades Institucionales | D20: Talento Humano | E20: Integridad | F20: Fortalecer las capacidades institucionales de las entidades del sector hacienda | G20: Fortalecer la implementación de la política de integridad en las Entidades del Sector | H20: Integridad | I20: Formular el plan estratégico de gestión de conflictos de intereses dentro del marco de la Política de Talento Humano | J20: Establecer las acciones que contribuyan a la gestión de los conflictos de interés en la Entidad | K20: Jefatura de Talento Humano | L20: Grupo de Implementación | M20: 44136 | N20: 44561 | O20: Findeter
C21: Gestión de Capacidades Institucionales | D21: Talento Humano | E21: Talento Humano | F21: Fortalecer las capacidades del Talento Humano y la Innovación en las entidades del Sector Hacienda | G21: Fortalecer la implementación de la política del Talento Humano en las Entidades del Sector Hacienda | H21: Talento Humano | I21: Analizar los resultados de la política de Talento Humano en la medición del Furag de la vigencia 2021. | J21: De acuerdo con los resultados obtenidos en la medición del FURAG de la gestión 2020, que realiza el DAFP en la vigencia 2021. Cada entidad del Sector Hacienda, analizará sus resultados y ajustará cuando lo considere pertinente, los planes con el propósito de generar acciones que permitan cerrar brecha, en relación con la política de Talento Humano y de integridad. Entregable. Documento que soporte el análisis de los resultados del Furag o planes ajustados. | K21: Jefatura de Talento Humano | L21: Ana Sheyla Ordoñez | M21: 44317 | N21: 44469 | O21: Findeter
C22: Gestión de Capacidades Institucionales | D22: Talento Humano | E22: Talento Humano | F22: Fortalecer las capacidades del Talento Humano y la Innovación en las entidades del Sector Hacienda | G22: Fortalecer la implementación de la política del Talento Humano en las Entidades del Sector Hacienda | H22: Talento Humano | I22: Participar en las capacitaciones sectoriales de la política de Talento Humano | J22: Participar en las capacitaciones sectoriales de la política de Talento Humano de conformidad con las posibilidades y apoyo de las demás Entidades del Sector según el caso. | K22: Jefatura de Talento Humano | L22: Ana Sheyla Ordoñez | M22: 44200 | N22: 44561 | O22: Findeter
C23: Gestión de Capacidades Institucionales | D23: Talento Humano | E23: Talento Humano | F23: Fortalecer las capacidades del Talento Humano y la Innovación en las entidades del Sector Hacienda | G23: Fortalecer la implementación de la política del Talento Humano en las Entidades del Sector Hacienda | H23: Talento Humano | I23: Participar en las mesas sectoriales de la dimensión de Talento Humano. | J23: Participar en las reuniones programadas por el líder sectorial de la política de Talento Humano e Integridad del MHCP y entregar la información requerida para el fortalecimiento y documentación de estas políticas. | K23: Jefatura de Talento Humano | L23: Ana Sheyla Ordoñez | M23: 44200 | N23: 44561 | O23: Findeter
C24: Gestión de Capacidades Institucionales | D24: Talento Humano | E24: Talento Humano | F24: Fortalecer las capacidades del Talento Humano y la Innovación en las entidades del Sector Hacienda | G24: Fortalecer la implementación de la política del Talento Humano en las Entidades del Sector Hacienda | H24: Talento Humano | I24: Realizar las acciones que conforman el plan de trabajo de la Gestión Estratégica del Talento Humano en Finfdeter | J24: Se realizarán acciones que hacen parte del modelo efr (alineado con las Rutas de Creación de Valor) con énfasis en los siguientes aspectos: Desarrollo Profesional; Flexibilidad Temporal o Espacial; Calidad en el Empleo; Apoyo a las Familias; Igualdad de Oportunidades | K24: Jefatura de Talento Humano | L24: Ana Sheyla Ordoñez | M24: 44198 | N24: 44561 | O24: Findeter
C25: Gestión para el Resultado | D25: Gestión para el Resultado (Ventanilla hacia adentro) | E25: Fortalecimiento Organizacional y Simplificación de Procesos | F25: Fortalecer la gestión organizacional y por procesos de las entidades del Sector Haciendada | G25: Desarrollar acciones encaminadas a fortalecer la gestión organizacional y por procesos de la entidades del Sector Hacienda | H25: Fortalecimiento Organizacional y Simplificación de Procesos | I25: Diseñar, mejorar o actualizar la cadena de valor de FINDETER (Fase I y Fase II | J25: Realizar el diseño, mejora y actualización de la cadena de valor de Findeter teniendo en cuenta los cambios de la estructura organizacional y el modelo de negocio. El alcance incluye la actualización de la cadena de valor de Findeter, priorización de los procesos a intervenir, estructuración de los proyectos asociados a los procesos a intervenir, pruebas de uso, divulgación y sensibilización | K25: Gerencia de Planeación y Gestión - Mejoramiento de Procesos | L25: Claudia Viviana Rojas Salcedo / Luisa Fernanda Oviedo / Samanta Armesto Ruedas (Mejoramiento de Procesos) | M25: 44197 | N25: 44286 | O25: Findeter
C26: Gestión para el Resultado | D26: Gestión para el Resultado (Ventanilla hacia adentro) | E26: Gobierno Digital: Seguridad de la información | F26: Fortalecer la Gestión TIC y de la Información en las entidades del Sector Hacienda | G26: Fortalecer el Gobierno Digital en las entidades del SH | H26: Gobierno en Línea - Seguridad de la Informacion | I26: Atender los hallagos de las auditorias de seguridad de la información y ciberseguridad | J26: Ejecutar y cerrar los planes de acciión que se establecieron para los hallagos de las auditorias de contorl interno y revisoria fiscal en seguridad de la información y ciberseguridad realizadas en el 2020 | K26: Vicepresidencia de Riesgos - (Seguridad y Privacidad de la Información) | L26: Carlos Alberto Guzman | M26: 44197 | N26: 44561 | O26: Findeter
C27: Gestión para el Resultado | D27: Gestión para el Resultado (Ventanilla hacia adentro) | E27: Gobierno Digital: Seguridad de la información | F27: Fortalecer la Gestión TIC y de la Información en las entidades del Sector Hacienda | G27: Fortalecer el Gobierno Digital en las entidades del SH | H27: Gobierno en Línea - Seguridad de la Informacion | I27: Ejecutar plan de seguridad de la informacion y ciberseguridad | J27: Cumplir las actividades establecidas en el plan de seguridad de la informacion y ciberseguridad 2021 | K27: Vicepresidencia de Riesgos - (Seguridad y Privacidad de la Información) | L27: Carlos Alberto Guzman | M27: 44197 | N27: 44561 | O27: Findeter
C28: Gestión para el Resultado | D28: Gestión para el Resultado (Ventanilla hacia adentro) | E28: Gobierno Digital: Seguridad de la información | F28: Fortalecer la Gestión TIC y de la Información en las entidades del Sector Hacienda | G28: Fortalecer el Gobierno Digital en las entidades del SH | H28: Gobierno en Línea - Seguridad de la Informacion | I28: Ejecutar plan de tratamiento de riesgos de seguridad de la informaciión | J28: Cumplir las actividades establecidas en el plan de tratameinto de riesgos de seguridad de la informacion 2021 | K28: Vicepresidencia de Riesgos - (Seguridad y Privacidad de la Información) | L28: Carlos Alberto Guzman | M28: 44197 | N28: 44561 | O28: Findeter
C29: Gestión para el Resultado | D29: Gestión para el Resultado (Ventanilla hacia adentro) | E29: Gobierno Digital: TIC para la Gestión | F29: Fortalecer la Gestión TIC y de la Información en las entidades del Sector Hacienda | G29: Fortalecer el Gobierno Digital en las entidades del SH | H29: Gobierno Digital | I29: Estrategía Uso y Apropíación | J29: Ejecutar acciones de mejora a partir de los resultados obtenido a través de los indicadores de uso y apropiación. Desde el sistema de control interno efectuar su verificación.1- Análisis y Planeación de los resultados obtenidos y plan de mejoras. 2-Ejecutar plan de mejoras de por lo menos 1 herramienta por trimestre | K29: Dirección de Tecnología | L29: Miguel Orlando Ricaurte | M29: 44197 | N29: 44561 | O29: Findeter
C30: Gestión para el Resultado | D30: Gestión para el Resultado (Ventanilla hacia adentro) | E30: Gobierno Digital: TIC para la Gestión | F30: Fortalecer la Gestión TIC y de la Información en las entidades del Sector Hacienda | G30: Fortalecer el Gobierno Digital en las entidades del SH | H30: Gobierno Digital | I30: Estrategía Uso y Apropíación | J30: Fortalecer la estrategia de uso y apropiación para todos los proyectos de TI teniendo en cuenta estrategias de gestión del cambio para mejorar el uso y apropiación de las tecnologías en la entidad. | K30: Dirección de Tecnología | L30: Miguel Orlando Ricaurte | M30: 44197 | N30: 44561 | O30: Findeter
C31: Gestión para el Resultado | D31: Gestión para el Resultado (Ventanilla hacia adentro) | E31: Gobierno Digital: TIC para la Gestión | F31: Fortalecer la Gestión TIC y de la Información en las entidades del Sector Hacienda | G31: Fortalecer el Gobierno Digital en las entidades del SH | H31: Gobierno Digital | I31: Manuales usuario y técnicos de sistemas | J31: Contar con los manuales de usuarios y manuales técnicos y de operación debidamente actualizado, para 20 sistemas de información para optimizar la planeación y gestión de los sistemas de información en la entidad. | K31: Dirección de Tecnología | L31: Sandra Paola Becerra | M31: 44228 | N31: 44560 | O31: Findeter
C32: Gestión para el Resultado | D32: Gestión para el Resultado (Ventanilla hacia adentro) | E32: Gobierno Digital: TIC para la Gestión | F32: Fortalecer la Gestión TIC y de la Información en las entidades del Sector Hacienda | G32: Fortalecer el Gobierno Digital en las entidades del SH | H32: Gobierno Digital | I32: Consolidar y monitorear el Plan de eficienacia administrativa y Cero Papel | J32: Ejecutar Plan de Eficiencia Administrativa y cero Papel para la vigencia 2021 | K32: Dirección de Tecnología /Gerencia de Planeación y Gestión - Mejoramiento de Procesos | L32: Ana Maria Barriga / Claudia Viviana Rojas | M32: 44228 | N32: 44560 | O32: Findeter
C33: Gestión para el Resultado | D33: Gestión para el Resultado (Ventanilla hacia adentro) | E33: Seguridad Digital | F33: Fortalecer la Gestión TIC y de la Información en las Entidades del Sector Hacienda | G33: Fortalecer la Seguridad Digital en las entidades del SH | H33: Seguridad Digital | I33: Fomentar la participación en las convocatorias para el fortalecimiento de capacidades en Seguridad digital | J33: Mantener de debida actualizacion y publicación de siguientes de instrumentos de gestión de la información pública: - Registro de Activos de Información. - Indice de Información Clasificada y reservada. | K33: Vicepresidencia de Riegos y Jefatura de Servicios Generales | L33: Jefatura de Servicios Generales y Vicepresidencia de Riesgos; Claudia Yovanna Moreno / Carlos Alberto Guzman | M33: 44197 | N33: 44561 | O33: Findeter
C34: Gestión para el Resultado | D34: Gestión para el Resultado (Ventanilla hacia adentro) | E34: Seguridad Digital | F34: Fortalecer la Gestión TIC y de la Información en las Entidades del Sector Hacienda | G34: Fortalecer la Seguridad Digital en las entidades del SH | H34: Seguridad Digital | I34: Fomentar la participación a las convocatorias para el fortalecimiento de capacidades en Seguridad digital realizadas por el Gobierno Nacional | J34: Fomentar la participación de los colaboradores que conforman la Unidad de Gestión de Riesgos de Seguridad de la información y ciberseguridad a las convocatorias que realice el Gobierno Nacional para forlalecimiento de capacidades en Seguridad Digital | K34: Vicepresidencia de Riesgos - (Seguridad y Privacidad de la Información) | L34: Jefatura de Talento Humano y Vicepresidencia de Riesgos; Carlos Alberto Guzman / Angela Shirley | M34: 44197 | N34: 44561 | O34: Findeter
C35: Gestión para el Resultado | D35: Gestión para el Resultado (Ventanilla hacia adentro) | E35: Seguridad Digital | F35: Fortalecer la Gestión TIC y de la Información en las Entidades del Sector Hacienda | G35: Fortalecer la Seguridad Digital en las entidades del SH | H35: Seguridad Digital | I35: Fomentar la participación en las convocatorias para el fortalecimiento de capacidades en Seguridad digital | J35: Fomentar la participación de los colaboradores que conforman la Unidad de Gestión de Riesgos de Seguridad de la información y ciberseguridad en las convocatorias para el fortalecimiento de capacidades en Seguridad digital realizadas por el Gobierno Nacional tales como el Desarrollo del Talento TI - Talento Digital- | K35: Vicepresidencia de Riesgos - (Seguridad y Privacidad de la Información) | L35: Jefatura de Talento Humano y Vicepresidencia de Riesgos; Carlos Alberto Guzman / Angela Shirley | M35: 44197 | N35: 44561 | O35: Findeter
C36: Gestión para el Resultado | D36: Gestión para el Resultado (Ventanilla hacia adentro) | E36: Seguridad Digital | F36: Fortalecer la Gestión TIC y de la Información en las Entidades del Sector Hacienda | G36: Fortalecer la Seguridad Digital en las entidades del SH | H36: Seguridad Digital | I36: Fomentar la participación en las convocatorias para el fortalecimiento de capacidades en Seguridad digital realizadas por el Gobierno Nacional | J36: Fomentar la participación de los colaboradores que conforman la Unidad de Gestión de Riesgos de Seguridad de la información y ciberseguridad en las convocatorias para el fortalecimiento de capacidades en Seguridad digital realizadas por el Gobierno Nacional. | K36: Vicepresidencia de Riesgos - (Seguridad y Privacidad de la Información) | L36: Jefatura de Talento Humano y Vicepresidencia de Riesgos; Carlos Alberto Guzman / Angela Shirley | M36: 44197 | N36: 44561 | O36: Findeter
C37: Gestión para el Resultado | D37: Gestión con valores para el resultado (Ventanilla hacia afuera) | E37: Participación Ciudadana en la Gestión Pública | F37: Fortalecer las relaciones de las entidades del Sector Hacienda con sus grupos de valor | G37: Promover el seguimiento y mejora continua de las acciones que se realizan para fortalecer las relaciones con los grupos de valor en las entidades del Sector Hacienda | H37: Participación Ciudadana | I37: Implementar acciones de participación ciudadana en desarrollo de los programas de planificación Territorial en las regiones | J37: El programa de planificación tiene como objetivo validar, identificar y priorizar acciones para promover la sostenibilidad de Colombia y liderar su transformación, con la participación de las autoridades locales (electas), sector privado y público, academia y ciudadanía, quienes apoyan la identificación de la problemática y necesidades de inversión de las ciudades | K37: Dirección de Ciudades y Competitividad | L37: Martha Helena Arango / Alejandra de la Espriella | M37: 44197 | N37: 44561 | O37: Findeter
C38: Gestión para el Resultado | D38: Gestión con valores para el resultado (Ventanilla hacia afuera) | E38: Participación Ciudadana en la Gestión Pública | F38: Fortalecer las relaciones de las entidades del Sector Hacienda con sus grupos de valor | G38: Promover el seguimiento y mejora continua de las acciones que se realizan para fortalecer las relaciones con los grupos de valor en las entidades del Sector Hacienda | H38: Participación Ciudadana | I38: Identificar oportunidades de mejora como resultado de los ejeicios de participación ciudadana realizados | J38: Identificar oportunidades de mejora como resultado de los ejeicios de participación ciudadana realizados | K38: Gerencia de Comunicaciones, Mercadeo y Responsabilidad Social | L38: Angelica Aruza / Dora Sofia Velilla | M38: 44287 | N38: 44561 | O38: Findeter
C39: Gestión para el Resultado | D39: Gestión con valores para el resultado (Ventanilla hacia afuera) | E39: Participación Ciudadana en la Gestión Pública | F39: Fortalecer las relaciones de las entidades del Sector Hacienda con sus grupos de valor | G39: Promover el seguimiento y mejora continua de las acciones que se realizan para fortalecer las relaciones con los grupos de valor en las entidades del Sector Hacienda | H39: Participación Ciudadana Servicio al Ciudadano | I39: Integracion de Documentos requeridos por ley de Transparencia | J39: La ley de Transparencia requiere la publicación de 2 instrumentos Plan de Participáción Ciudadana y Plan de Servicio al Ciudadano. Se verificará las caracteristicas y requisitos de cada uno de ellos y se integrarán en un solo documento denominado "Plan de participación y servicio al ciudadano" | K39: Gerencia de Comunicaciones, Mercadeo y Responsabilidad Social | L39: Angelica Aruza / Dora Sofia Velilla | M39: 44197 | N39: 44377 | O39: Findeter
C40: Gestión para el Resultado | D40: Gestión con valores para el resultado (Ventanilla hacia afuera) | E40: Participación Ciudadana en la Gestión Pública | F40: Fortalecer las relaciones de las entidades del Sector Hacienda con sus grupos de valor | G40: Promover el seguimiento y mejora continua de las acciones que se realizan para fortalecer las relaciones con los grupos de valor en las entidades del Sector Hacienda | H40: Participación Ciudadana | I40: Realizar Acompañamiento social a las comunidades del área de influencia de los proyectos que ejecuta, estructura Findeter | J40: Acompañamiento social (comunicación, acompañamiento, respuesta a consultas, seguimiento,apropiación, empoderamiento)a las comunidades del área de influencia de los proyectos que ejecuta, estructura Findeter | K40: Gerencia de Comunicaciones, Mercadeo y Responsabilidad Social | L40: RSE - Maria Claudia Valencia | M40: 44197 | N40: 44561 | O40: Findeter
C41: Gestión para el Resultado | D41: Gestión con valores para el resultado (Ventanilla hacia afuera) | E41: Participación Ciudadana en la Gestión Pública | F41: Fortalecer las relaciones de las entidades del Sector Hacienda con sus grupos de valor | G41: Promover el seguimiento y mejora continua de las acciones que se realizan para fortalecer las relaciones con los grupos de valor en las entidades del Sector Hacienda | H41: Participación Ciudadana | I41: Realizar el estudio de satisfacción e incluir la base de comunidades | J41: Resultado estudio de Sastisfaccion- sólo enfocado a la gestión social y el acompañamiento a Comunidades | K41: Gerencia de Comunicaciones, Mercadeo y Responsabilidad Social | L41: RSE - Maria Claudia Valencia | M41: 44287 | N41: 44561 | O41: Findeter
C42: Gestión para el Resultado | D42: Gestión con valores para el resultado (Ventanilla hacia afuera) | E42: Participación Ciudadana en la Gestión Pública Transparencia, acceso a la información pública y lucha contra la corrupción | F42: Fortalecer las relaciones de las entidades del Sector Hacienda con sus grupos de valor | G42: Promover el seguimiento y mejora continua de las acciones que se realizan para fortalecer las relaciones con los grupos de valor en las entidades del Sector Hacienda | H42: Participación Ciudadana Transparencia y Acceso a la Información Pública | I42: Participar en dos mesas de trabajo lideradas por el MHCP relacionadas con la política de participación ciudadana y transparencia | J42: Participar en las mesas de trabajo lideradas por el MHCP, para identificar acciones que permitan fortalecer las políticas de participación ciudadana y transparencia. | K42: Gerencia de Comunicaciones, Mercadeo y Responsabilidad Social | L42: Angelica Aruza / Dora Sofia Velilla | M42: 44228 | N42: 44561 | O42: Findeter
C43: Gestión para el Resultado | D43: Gestión con valores para el resultado (Ventanilla hacia afuera) | E43: Servicio al ciudadano | F43: Fortalecer las relaciones de las entidades del Sector Hacienda con sus grupos de valor | G43: Promover el seguimiento y mejora continua de las acciones que se realizan para fortalecer las relaciones con los grupos de valor en las entidades del Sector Hacienda. | H43: Servicio al Ciudadano | I43: Caracterización | J43: Identificar y definir las caracteristicas demograficas y psicograficas de: Beneficiarios línea de crédito directo PPSPD. Ciudadanos de los diferentes canales con que cuenta la Entidad. | K43: Gerencia de Comunicaciones, Mercadeo y Responsabilidad Social | L43: Angelica Aruza / Dora Sofia Velilla | M43: 44228 | N43: 44561 | O43: Findeter
C44: Gestión para el Resultado | D44: Gestión con valores para el resultado (Ventanilla hacia afuera) | E44: Servicio al ciudadano | F44: Fortalecer las relaciones de las entidades del Sector Hacienda con sus grupos de valor | G44: Promover el seguimiento y mejora continua de las acciones que se realizan para fortalecer las relaciones con los grupos de valor en las entidades del Sector Hacienda. | H44: Servicio al Ciudadano | I44: Caracterización Grupos de Interés | J44: Caracterización de ciudadanos, usuarios o grupos de interes. | K44: Gerencia de Comunicaciones, Mercadeo y Responsabilidad Social | L44: Angelica Aruza / Dora Sofia Velilla | M44: 44228 | N44: 44561 | O44: Findeter
C45: Gestión para el Resultado | D45: Gestión con valores para el resultado (Ventanilla hacia afuera) | E45: Servicio al ciudadano | F45: Fortalecer las relaciones de las entidades del Sector Hacienda con sus grupos de valor | G45: Promover el seguimiento y mejora continua de las acciones que se realizan para fortalecer las relaciones con los grupos de valor en las entidades del Sector Hacienda. | H45: Servicio al Ciudadano | I45: Participar en las mesas sectoriales de la política de servicio al ciudadano | J45: Participar en las mesas sectoriales de la política de servicio al ciudadano. Entregable. Registros de asistencia | K45: Gerencia de Comunicaciones, Mercadeo y Responsabilidad Social | L45: Angelica Aruza / Dora Sofia Velilla | M45: 44228 | N45: 44561 | O45: Findeter
C46: Gestión para el Resultado | D46: Información y Comunicación | E46: Gestión Documental | F46: Fortalecer la Gestión TIC y de la Información en las Entidades del Sector Hacienda | G46: Fortalecer la Gestión Documental en las entidades del SH | H46: Gestión Documental | I46: Definir el modelo de requisitos de documentos electronicos | J46: Definir los requisitos mínimos técnicos que deben conformar los documentos electrónicos. | K46: Jefatura de Servicios Generales | L46: Claudia Yovanna Moreno | M46: 44440 | N46: 44560 | O46: Findeter
C47: Gestión para el Resultado | D47: Información y Comunicación | E47: Gestión Documental | F47: Fortalecer la Gestión TIC y de la Información en las Entidades del Sector Hacienda | G47: Fortalecer la Gestión Documental en las entidades del SH | H47: Gestión Documental | I47: Implentar guia elaboración e implementación del SIC. Guía Elaboración e Implementación del SIC – Componente Plan de Preservación Digital | J47: Diseñar una metodología para elaborar el Plan de Preservación Digital, la cual facilite la elaboración de este componente del SIC por parte de las entidades del sector hacienda que no cuentan con el mismo, contribuyendo con la salvaguarda del patrimonio documental de las entidades y la Nación. | K47: Jefatura de Servicios Generales | L47: Claudia Yovanna Moreno | M47: 44197 | N47: 44469 | O47: Findeter
C48: Gestión para el Resultado | D48: Información y Comunicación | E48: Gestión Documental | F48: Fortalecer la Gestión TIC y de la Información en las Entidades del Sector Hacienda | G48: Fortalecer la Gestión Documental en las entidades del SH | H48: Gestión Documental | I48: Mantener actualizados y publicados los instrumentos propios de la gestión documental de Findeter. | J48: Los instrumentos propios de la gestión documental de Findeter corresponden a: (Programa de Gestión Documental, Plan Institucional de Archivos, Tablas de retención documental, cuadro de Clasificación documental, Sistema Integrado de Conservación, Registro de Activos de Información, Índice de Información Clasificada y Reservada ) | K48: Jefatura de Servicios Generales | L48: Claudia Yovanna Moreno | M48: 44228 | N48: 44560 | O48: Findeter
C49: Gestión para el Resultado | D49: Información y Comunicación | E49: Gestión Documental | F49: Fortalecer la Gestión TIC y de la Información en las Entidades del Sector Hacienda | G49: Fortalecer la Gestión Documental en las entidades del SH | H49: Gestión Documental | I49: Participar en las mesas sectoriales de la política de gestión documental | J49: Participar en las mesas sectoriales de la política de gestión documental, coordinadas por el MHCP. Entregable. Registros de asistencia | K49: Jefatura de Servicios Generales | L49: Claudia Yovanna Moreno | M49: 44197 | N49: 44561 | O49: Findeter
C50: Gestión para el Resultado | D50: Información y Comunicación | E50: Gestión Documental | F50: Fortalecer la Gestión TIC y de la Información en las Entidades del Sector Hacienda | G50: Fortalecer la Gestión Documental en las entidades del SH | H50: Gestión Documental | I50: Realizar el diagnostico Documentos Electrónicos manejados por Findeter | J50: El diagnostico de documentos electrónicos: identificación de documentos electronicos producidos por Findeter y preparacion del diagnóstico | K50: Jefatura de Servicios Generales | L50: Claudia Yovanna Moreno | M50: 44287 | N50: 44438 | O50: Findeter
C51: Gestión para el Resultado | D51: Información y Comunicación | E51: Transparencia, acceso a la información pública y lucha contra la corrupción | F51: Fortalecer las relaciones de las entidades del Sector Hacienda con sus grupos de valor | G51: Fortalecer los mecanismos de transparencia, acceso a la información pública y lucha contra la corrupción | H51: Transparencia, acceso a la información y lucha contra la corrupción | I51: Diligenciar la Matriz ITA 2021 | J51: Dar respuesta al requerimiento que sobre la Matriz ITA 2021, genere la Procuraduria General de la Nación, para el cumplimiento a la sección de Transparencia de la página web institucional a la luz de la Ley 1712 de 2014 | K51: Gerencia de Planeación y Gestión - GDI | L51: Jorge Luis Giraldo Gonzalez | M51: 44440 | N51: 44561 | O51: Findeter
C52: Gestión para el Resultado | D52: Información y Comunicación | E52: Transparencia, acceso a la información pública y lucha contra la corrupción | F52: Fortalecer las relaciones de las entidades del Sector Hacienda con sus grupos de valor | G52: Contribuir a la obtención de niveles de excelencia en el ejercicio de la función disciplinaria | H52: Transparencia, acceso a la información y lucha contra la corrupción | I52: Asistir a la siones del Colectivo Disciplinario | J52: Se asistirá y participará en las reuniones programadas por el Colectivo Disciplinario. | K52: Secretaria General | L52: Norma Bibiana Soto. | M52: 44197 | N52: 12/31/2021 | O52: Findeter
C53: Gestión para el Resultado | D53: Información y Comunicación | E53: Transparencia, acceso a la información pública y lucha contra la corrupción | F53: Fortalecer las relaciones de las entidades del Sector Hacienda con sus grupos de valor | G53: Contribuir a la obtención de niveles de excelencia en el ejercicio de la función disciplinaria | H53: Transparencia, acceso a la información y lucha contra la corrupción | I53: Atender los compromisos derivados de los comites del Colectivo Disciplinario | J53: Cumplir con las tareas asignadas a la entidad en desarrollo de los comites | K53: Secretaria General | L53: Norma Bibiana Soto. | M53: 44197 | N53: 12/31/2021 | O53: Findeter
C54: Gestión para el Resultado | D54: Gestión con valores para el resultado (Ventanilla hacia afuera) | E54: Transparencia, acceso a la información pública y lucha contra la corrupción | F54: Fortalecer las relaciones de las entidades del Sector Hacienda con sus grupos de valor | G54: Fortalecer los mecanismos de transparencia, acceso a la información pública y lucha contra la corrupción | H54: Transparencia, acceso a la información y lucha contra la corrupción | I54: Revisar discriminación de las políticas adoptadas por Findeter dentro del normograma institucional. | J54: De acuerdo con la ley de transparencia los sujetos obligados deben publicar el contenido de toda decisión y/o política que haya adoptado y afecte al público. Dentro del normograma buscar la forma de visualizar facilmente esas politicas. | K54: Dirección Jurídica | L54: Carlos Andres Quintero / Susan Echeverry. | M54: 44197 | N54: 44377 | O54: Findeter
C55: Control Interno | D55: Control Interno | E55: Control Interno | F55: Fortalecer el Control Interno del Sector | G55: Control Interno | H55: Control Interno | I55: Validación en auditoría | J55: Dentro de la auditoría interna al Sistema de atención al consumidor financiero del segundo semestre de 2020 y en 2021, se incluirán la validación de los requisitos de la Norma Técnica Colombiana NTC5854. | K55: Control Interno | L55: Rubiela Hernandez | M55: 44197 | N55: 44286 | O55: Findeter
C56: Control Interno | D56: Control Interno | E56: Control Interno | F56: Fortalecer el Control Interno del Sector | G56: Control Interno | H56: Control Interno | I56: Validación en auditoría | J56: En las auditorías de Regionales donde se incluye la sede central 103, que se realizaran en el 2021, se validarán los requisitos de la Norma Técnica Colombiana NTC 6047 de infraestructura | K56: Control Interno | L56: Rubiela Hernandez | M56: 44197 | N56: 44286 | O56: Findeter

Sheet Plan de Vacantes (hidden)
D8: Plan Anual de Vacantes
B10: Área Organizativa | C10: Nombre de la tarea | D10: Descripción | E10: Categoría / Proyecto (Opcional) | F10: Política de Gestión y Desempeño | G10: Responsable de tarea | H10: Fecha Inicio | I10: Fecha Fin | J10: Fuente de Financiación
B11: Subdirección de Talento Humano | C11: Formulación y adopción del Plan | D11: Estructuración del Plan y publicación en la página web | F11: Talento humano | G11: Patricia Caiza Rosero | H11: 2018-01-01 | I11: 2018-07-31 | J11: Funcionamiento

Sheet Hoja1 (hidden)

Sheet PAAC consolidado
E2: PLAN ANTICORRUPCIÓN Y DE ATENCIÓN AL CIUDADANO FINDETER 2021
B9: PLAN ANTICORRUPCIÓN Y DE ATENCIÓN AL CIUDADANO
B10: Entidad: | C10: FINANCIERA DE DESARROLLO TERRITORIAL S.A.
B11: Vigencia: | C11: Año 2021
B12: Fecha de Publicación: | C12: 44227
B13: Objetivo General: | C13: Hacer del plan anticorrupción y de atención al ciudadano, una herramienta de gestión que fomente la participación y el mejoramiento de los mecanismos de atención al ciudadano, la transparencia y eficiencia en el uso de los recursos, en busca de prevenir la corrupción y favorecer mayor calidad y accesibilidad a los servicios e información del quehacer misional de la Entidad.
B14: Objetivos Específicos: | C14: 1. Mediante la construcción de la Matriz de Riesgos de Corrupción (MRC), disponer de una herramienta que facilite la gestión de prevención de los riesgos de corrupción, a través de acciones que permitan su adecuado monitoreo y seguimiento.
C15: 2. Establecer los aspectos a mejorar en los servicios registrados por la Entidad ante el SUIT, conducentes a facilitar al cliente ciudadano el acceso a los servicios y productos que brinda Findeter, cuyas acciones de tipo normativo, administrativo ó tecnológico conformarán la estrategia de racionalización a realizar en la presente vigencia.
C16: 3. Propiciar acciones de diálogo, entrega de información e incentivos, que le permitan a Findeter hacer un proceso de rendición de cuentas institucional dinámico y de doble vía.
C17: 4. Hacer de la gestión del servicio al ciudadano en Findeter una labor integral, mediante la formulación de acciones que coadyuven a que el servicio prestado por la Entidad responda de manera adecuada a las necesidades y expectativas de los clientes ciudadanos y grupos de interés en general.
C18: 5. Establecer acciones encaminadas a disponer de manera adecuada los mecanismos de acceso a la información a los clientes ciudadanos y grupos de interés en general, con criterios de calidad, veracidad, accesibilidad y oportunidad, en atención a los lineamientos de la Ley 1712 de 2014.
B19: Componente 1 | C19: Gestión del Riesgo de Corrupción - Mapa de Riesgos de Corrupción
B20: Subcomponente / procesos | C20: Actividades | F20: Meta o producto | G20: Responsable | H20: Fecha programada 2021 | L20: Indicador (Si Aplica) | M20: Fórmula | N20: Meta 2020 | O20: Observaciones | P20: Seguimiento Trimestre 1 | Q20: Seguimiento Trimestre 2 | R20: Seguimiento Trimestre 3 | S20: Seguimiento Trimestre 4 | T20: Meta Trimestre 1 | U20: Meta Trimestre 2 | V20: Meta Trimestre 3 | W20: Meta Trimestre 4 | X20: Ejecución - Trimestre 1 | Y20: Ejecución - Trimestre 2 | Z20: Ejecución - Trimestre 3 | AA20: Ejecución - Trimestre 4
H21: Ene - Mar | I21: Abr -Jun | J21: Jul-Sept | K21: Oct - Dic
B22: Subcomponente / proceso 1 Política de Administración de Riesgos | C22: 1.1 | D22: Actualizar documento del Programa Antifraude y Corrupción, si se presentan modificaciones durante la vigencia. | F22: Documento Programa Antifraude y Corrupción revisado y actualizado. | G22: Vicepresidencia de Riesgos - Oficial de Cumplimiento | H22: Enero | L22: NA | M22: Monitoreos realizados/Monitoreos requeridos | N22: 100% Programa Antifraude y Corrupción revisado y actualizado. | O22: Las actualizaciones se realizarán según necesidad identificada. | U22: =(1/2)*100% -> 0.5 | W22: =(2/2)*100% -> 1
B23: Subcomponente / proceso 2 Construcción del Mapa de Riesgos de Corrupción | C23: 2.1 | D23: Revisar integralmente la matriz de riesgo: riesgos asociados a eventos, redacción de eventos, medición del riesgo residual, atributos de controles y generación de los riesgos en el mapa. | F23: Matriz de riesgos revisada y publicada. | H23: Enero | L23: NA | M23: Revisión realizada/Revisión requerida | N23: 100 Matriz de riesgos revisada y publicada. | O23: La revisión se realizará de acuerdo con la normatividad establecida, y se harán adicionales de ser necesario . | T23: =(1/1)*100% -> 1
B24: Subcomponente / proceso 3 Consulta y divulgación | C24: 3.1 | D24: Realizar jornadas de sensibilización sobre Fraude y Corrupción: Capacitación 1, campaña 1 y publicaciones 4. | F24: Jornadas finalizadas. | H24: Enero a Diciembre | L24: NA | M24: Actividades realizadas/Actividades programadas requerida | N24: 100% Actividades finalizadas. | O24: Publicaciones : 1 por trimestre. Capacitación: 1 trimestre cuatro. Campaña: 1 trimestre 3. | T24: =1/6 -> 0.1666666667 | U24: =2/6 -> 0.3333333333 | V24: =4/6 -> 0.6666666667 | W24: =6/6 -> 1
B25: Subcomponente / proceso 4 Monitoreo y revisión | C25: 4.1 | D25: Efectuar y documentar las pruebas de recorrido de los controles. | F25: Prueba de recorrido de controles realizada | J25: Julio a Diciembre | L25: NA | M25: Procesos revisados / procesos a revisar | N25: 100% Prueba de recorrido de controles realizada | O25: Procesos a aplicar prueba de recorrido: 4. Dos en tercer trimestre y dos en cuarto trimestre. | V25: =2/4 -> 0.5 | W25: =4/4 -> 1
B26: Subcomponente / proceso 5 Seguimiento | C26: 5.1 | D26: Análisis de causas, riesgos corrupción y efectividad de controles | F26: Informe seguimiento | G26: Oficina de Control Interno de Gestión | H26: Ene-Dic | L26: NA
B27: Componente 2 | C27: Racionalización de Trámites (Herramienta SUIT)
B28: Findeter no contará en el año 2021 con una estrategia de racionalización de trámites, toda vez que de acuerdo con lo establecido en la Directiva Presidencial No. 2 "SIMPLIFICACIÓN DE LA INTERACCIÓN DIGITAL ENTRE LOS CIUDADANOS Y EL ESTADO y de acuerdo con concepto de la Función Pública con respecto a los "Otros Procedimientos Administrativos - OPAS" que la Entidad tiene registrados en el aplicativo SUIT: ".....no se aplica en lo ateniente a trámites o servicios porque no conllevan para el ciudadano el acceso a un derecho o el ejercicio de una actividad u obligación prevista o autorizada por la ley, por tratarse de negocios jurídicos de contenido económico, sujetos al cumplimiento de unas condiciones específicas por parte de unas personas jurídicas, las cuales no son masivas....."; En consideración a lo anterior, a través del Plan de Integración - PIN con gov.co, se solicitó la eliminación de dichos OPAS del SUIT.
B29: Componente 3 | C29: Rendición de Cuentas
B30: Subcomponente / procesos | C30: Actividades | F30: Meta o producto | G30: Responsable | H30: Fecha programada 2021 | L30: Indicador (Si Aplica) | M30: Fórmula | N30: Meta 2020 | O30: Observaciones | P30: Seguimiento Trimestre 1 | Q30: Seguimiento Trimestre 2 | R30: Seguimiento Trimestre 3 | S30: Seguimiento Trimestre 4 | T30: Meta Trimestre 1 | U30: Meta Trimestre 2 | V30: Meta Trimestre 3 | W30: Meta Trimestre 4 | X30: Ejecución - Trimestre 1 | Y30: Ejecución - Trimestre 2 | Z30: Ejecución - Trimestre 3 | AA30: Ejecución - Trimestre 4
H31: Ene - Mar | I31: Abr -Jun | J31: Jul-Sept | K31: Oct - Dic
B32: Subcomponente 1 Información de calidad y en lenguaje comprensible | C32: 1.1 | D32: Participar en eventos en donde se socialice la gestión realizada por la Entidad a los diferentes Grupos de interes (Foros, Cumbres, Conversatorios, etc). | F32: Participar por lo menos en cuatro (4) eventos | G32: Dirección de Comunicaciones, Mercadeo y RS | H32: Enero a junio y de julio a Diciembre
C33: 1.2 | D33: Divulgar la Rendición de Cuentas Sectorial a la ciudadanía en general (según directrices del Ministerio de Hacienda), antes, durante y después, mediante los diferentes canales y medios de comunicación (Redes Sociales, Página Web y otros). | F33: Rendición de Cuentas Sectorial Divulgada | K33: Oct - Dic
B34: Subcomponente 2 Diálogo de doble vía con la ciudadanía y sus organizciones | C34: 2.1 | D34: Realizar evento de rendición de cuentas institucional | F34: 2 eventos | H34: Febrero - Diciembre
C35: 2.2 | D35: Organizar y ejecutar eventos en donde se socialice la gestión realizada por la Entidad a los diferentes Grupos de interes (Foros, Seminarios, Asambleas, Conversatorios, Talleres, etc). | F35: 4 eventos. | H35: Enero a junio y de julio a Diciembre
C36: 2.3 | D36: Participar en la Rendición de Cuentas Sectorial liderada por el Ministerio de Hacienda y Crédito Público. | F36: Evento Rendición de Cuentas Sectorial realizada | K36: Oct - Dic
B37: Subcomponente 3 Incentivos para motivar la cultura de la rendición y petición de cuentas | C37: 3.1 | D37: Realizar Planes de Relacionamiento (PR) (Grupos de interés y Medios de Comunicación) | F37: Por lo menos cuatro (4) PR | H37: Enero a junio y de julio a Diciembre
B38: Subcomponente 4 Evaluación y retroalimentación a la gestión institucional | C38: 4.1 | D38: Desarrollar encuesta en el chat de la entidad de Findeter que permita determinar elementos de mejora para el mismo | F38: Informe estado de PQR´S (*) | H38: Enero- Marzo | I38: Abril -Junio | J38: Julio- Sepbre | K38: Oct-Dic
C39: 4.2 | D39: Realizar evaluación de la estrategia de rendición de cuentas institucional, dada la participación de Findeter en la Rendición de Cuentas Sectorial. | F39: Informe Evaluación RC | G39: Oficina de Control Interno de Gestión | K39: Dic
B40: Participación Ciudadana en la etapa de formulación de los programas liderados desde la Dirección de Competitividad y Desarrollo | C40: 5.1 | D40: Fase de planeación: 1. Recolectar información de la ciudadanía (autoridades locales, sector privado, academia, entidades sin animo de lucro; gremios, lideres locales y comunidad) para la identificación de los principales problemas de la ciudad, a través de la realización de talleres, reuniones, foros, mesas de trabajo, grupos focales u otros. | F40: Información recolectada de los principales problemas de la ciudad | G40: Dirección de Ciudades y Competitividad | H40: Enero | L40: NO | N40: 1
D41: Fase de planeación: 2. Levantar indicadores en las dimensioanes: económica, social, ambiental y fiscal y Clasificar los temas identificados de la ciudad aplicando semaforización de acuerdo a la situación que present cada uno de ellos al momento del estudio: verde: temas en donde el desemepño de la ciudad esté en buena situación; Amarillo: temas donde la ciudad podría mejorar con algo de esfuerzo; Rojo: temas fente a los cuales es urgente actuar porque reflejan una situación preocupante . (Depende de 1, 2 y 3) | F41: Indicadores dimensiones: económica, social, ambiental y fiscal y semaforización | H41: Enero | L41: NO | N41: 1
B42: Participación Ciudadana en la etapa de formulación de los programas liderados desde la Dirección de Competitividad y Desarrollo | C42: 5.2 | D42: Fase análisis diagnóstico: 3. Elaborar el diagnóstico de las dimensiones: económica, social, ambiental y fiscal. | F42: Diagnóstico elaborado | H42: febrero-abril | L42: NO | N42: 1
D43: Fase de Priorización: 4. Elaborar filtro ambientaly económico. Así mismo, reailizar ejercicio de análisis y priorización problemática de ciudades, basados en la información recopilada, indicadores, diagnósticos y filtros para determinar sectores y temas prioritarios oara sostenibilidad de ciudades, basados ne us problemática, pr lo que éstos temas representan para la ciudadanía. | F43: Filtro elaborado | I43: abril-mayo | L43: NO | N43: 1
B44: Promoción del control social en los programas liderados por la Dirección de Competitividad y Desarrollo | C44: 5.3 | D44: Fase estructuración del Plan de Acción: 5. Definir la plaenación estratégica; formular los Ejes Estratégicos y Planes de acción para cada ciudad y la visión de las ciudades que garanticen actuar en sus temas relevantes. | F44: Plan de Acción formulado | J44: jul-Sept | L44: NO | N44: 1
B45: Componente 4 | C45: Atención al Ciudadano
B46: Subcomponente / procesos | C46: Actividades | F46: Meta o producto | G46: Responsable | H46: Fecha programada 2020
H47: Ene - Mar | I47: Abr -Jun | J47: Jul-Sept | K47: Oct - Dic
B48: Subcomponente 1 Estructura administrativa y Direccionamiento estratégico | C48: 1.1 | D48: Realizar una capacitación en servicio al cliente | F48: 1 capacitación | G48: Dirección de Comunicaciones, Mercadeo y RS | K48: Oct-Dic
B49: Subcomponente 2 Fortalecimiento de los canales de atención | C49: 2.1 | D49: Realizar seguimiento al Indicador de Oportunidad de Respuesta de Servicio al cliente- Inquietudes y Sugerencias | F49: Medición del Indicador | H49: Enero- Dic
B50: Subcomponente 3 Talento Humano | C50: 3.1 | D50: Fortalecer la nueva estrategia de servicio al cliente de la Entidad, realizando acuerdos de servicio en la Entidad | F50: 1 Acuerdo | K50: Oct-Dic
B51: Subcomponente 4 Normativo y procedimental | C51: 4.1 | D51: Actualizar el procedimiento "Atención de Derechos de Petición, Quejas y Reclamos - GC-PR-005" del Sistema de Gestión Integrado -SGI, si se presentan modificaciones durante la vigencia. | F51: Procedimiento Actualizado
B52: Subcomponente 5 Relacionamiento con el ciudadano | C52: 5.1 | D52: Realizar medición de percepción de los ciudadanos respecto a la calidad y accesibilidad de la oferta institucional y el servicio recibido. | F52: Encuesta Satisfacción Clientes
C53: 5.2 | D53: Elaborar informe trimestral del estado de PQR'S. | F53: Informe estado de PQR´S (*)
B54: Componente 5 | C54: Transparencia y Acceso a la Información
B55: Subcomponente / procesos | C55: Actividades | E55: Meta o producto | F55: Entregable | H55: Fecha programada 2020
G56: Responsable | H56: Ene - Marxo | I56: Abr -Jun | J56: Jul-Sept | K56: Oct - Dic
B57: Subcomponente 1 Lineamientos de Transparencia Activa | C57: 1.1 | D57: Validar la actualización de los aspectos publicados en la página web de Findeter, de acuerdo con los ajustes e información remitida por los responsables de cada contenido. Ecosistema digital | F57: Página web actualizada | G57: Dirección de Comunicaciones, Mercadeo y RS | I57: Informe semestral | K57: Informe semestral
C58: 1.2 | D58: Elaborar informe de todas las solicitudes, denuncias y los tiempos de respuesta de Findeter, sobre las PQRD. (enlace https://www.findeter.gov.co/documentos/202066/informe-de-inquietud-o-sugerencias/) | F58: Informe estado de PQR´S (*) | H58: Informe trimestral | I58: Informe trimestral | J58: Informe trimestral | K58: Informe trimestral
B59: Subcomponente 2 Lineamientos de Transparencia Pasiva | C59: 2.1 | D59: Gestionar las solicitudes de información siguiendo los lineamientos del Programa Nacional de Servicio al Ciudadano. | F59: Informe estado de PQR´S (*) | H59: Informe trimestral | I59: Informe trimestral | J59: Informe trimestral | K59: Informe trimestral
B60: Subcomponente 3 Elaboración de los Instrumentos de Gestión de la Información | C60: 3.1 | D60: Ajustar y/o mantener la publicación de siguientes de instrumentos de gestión de la información pública: Registro de Activos de Información. Indice de Información Clasificada y reservada. | F60: Instrumentos de gestión de la información pública actualizados y publicados | G60: Vicepresidencia de Riegos y Jefatura de Servicios Generales | H60: En dado caso que se requiera la actualización de estos instrumentos alineados a las tablas de retención documental se realizara la respectiva actualización en el portal web de la entidad y en el portal de datos abiertos. | K60: Oct-Dic
C61: 3.2 | D61: Fortalecer programa de formación de usuarios en gestión documental, incluyendo aspectos relacionados con la seguridad de la información y el derecho de acceso a la información pública. | F61: 'Servidores capacitados | G61: Jefatura de Servicios Generales | H61: Ene-Mar | I61: Abr-Jun | J61: Jul-Sep | K61: Oct-Dic
C62: 3.3 | D62: Actualizar y publicar anualmente para conocimiento de los ciudadanos el registro o inventario de activos de información documentales de Findeter, de acuerdo con los lineamientos del Programa de Gestión Documental de la Entidad. | F62: Inventario de activos de información documentales actualizado y publicado. (Inventario Documental) | G62: Vicepresidencia de Riegos y Jefatura de Servicios Generales | H62: En dado caso que se requiera la actualización de estos instrumentos alineados a las tablas de retención documental se realizara la respectiva actualización en el portal web de la entidad y en el portal de datos abiertos. | K62: Oct-Dic
C63: 3.4 | D63: Actualizar y publicar en la eventualidad que se requiera para conocimiento de los ciudadanos , los inventarios de activos documentales, que serán descartados del fondo en custodia en el siguiente periodo fiscal. | F63: 'Inventario de activos de información documentales para descarte (Inventario Documental y Actas de eliminación) | H63: En la eventualidad que se presente el trámite de descarte documental se realizará la respectiva publicación de los inventarios a descarte. | K63: Oct-Dic
C64: 3.5 | D64: Mantener actualizados y publicados los instrumentos propios de la gestión documental de la entidad (Programa de Gestión Documental, Plan Institucional de Archivos, Tablas de retención documental, cuadro de Clasificación documental, Sistema Integrado de Conservación, Matriz de Acceso e inventarios documentales) (enlace https://www.findeter.gov.co/publicaciones/gestion_documental_pub). | F64: ''Programa de Gestión Documental, Plan Institucional de Archivos, Tablas de retención documental, cuadro de Clasificación documental, Sistema Integrado de Conservación, Matriz de Acceso e inventarios documentales, actualizados y publicados | H64: Ene-Mar | I64: Abr-Jun | J64: Jul-Sep | K64: Oct-Dic
B65: Subcomponente 4 Criterio Diferencial de Accesibilidad | C65: 4.1 | D65: Accesibilidad en medios electrónicos para la población en situación de discapacidad de acuerdo con el cumplimiento de la norma técnica NTC5854, para nivel AA. | F65: Cumplimiento de la Norma Usabilidad y Accesibidad para la página web | G65: Dirección de Comunicaciones, Mercadeo y RS | K65: Dic
B66: Subcomponente 5 Monitoreo del Acceso a la Información Pública | C66: 5.1 | D66: Elaborar informe de solicitudes de acceso a información pública conforme los requerimientos del Decreto 1081/2015 Artículo 2.1.1.6.2. (enlace http://www.findeter.gov.co/documentos.php?id=202066 | F66: Informe estado de PQR´S (*) | H66: Informe trimestral | I66: Informe trimestral | J66: Informe trimestral | K66: Informe trimestral
B67: Componente 6 | C67: Iniciativas Adicionales
B68: Subcomponente / procesos | C68: Actividades | F68: Meta o producto | G68: Responsable | H68: Fecha programada 2021 | L68: Indicador (Si Aplica) | M68: Fórmula | N68: Meta 2020 | O68: Observaciones | P68: Seguimiento Trimestre 1 | Q68: Seguimiento Trimestre 2 | R68: Seguimiento Trimestre 3 | S68: Seguimiento Trimestre 4 | T68: Meta Trimestre 1 | U68: Meta Trimestre 2 | V68: Meta Trimestre 3 | W68: Meta Trimestre 4 | X68: Ejecución - Trimestre 1 | Y68: Ejecución - Trimestre 2 | Z68: Ejecución - Trimestre 3 | AA68: Ejecución - Trimestre 4
H69: Ene - Mar | I69: Abr -Jun | J69: Jul-Sept | K69: Oct - Dic
B70: Subcomponente / proceso: Prevención de la Corrupción | C70: 1.1 | D70: Ejecutar las acciones contempladas en el Plan de Gestión Estratégica de Conflicto de Interés de la vigencia. | F70: Plan de Gestión de Estratégica de Conflicto de Interés Ejecutado. | G70: Equipo Interdisciplinario | H70: Enero - Diciembre | L70: NA | M70: Monitoreos realizados/Monitoreos requeridos | N70: 100% Programa Antifraude y Corrupción revisado y actualizado. | O70: Las actualizaciones se realizarán según necesidad identificada. | U70: =(1/2)*100% -> 0.5 | W70: =(2/2)*100% -> 1
B71: Consolidación del Documento | C71: Cargo: Gerencia de Planeación y Gestión
C72: Nombre: Jorge Luis Giraldo González
B73: Seguimiento PAAC | C73: Jefe de Control Interno de Gestión
C74: Nombre: Rubiela de Jesús Hernández Velasco
B75: * Informe Consolidado de PQR'S: Con este informe se atenderán los requerimientos de cada componente del PAAC relacionados con este aspecto.
B76: Seguimiento: La Oficina de Control Interno de Gestión de FINDETER realizará seguimiento a la ejecución del Plan Anticorrupción en los siguientes cortes: Abril 30; Agosto 31; y Diciembre 31 de 2021

Sheet Pan Antitramite
E2: PLAN ANTITRAMITE FINDETER 2021
C9: Racionalización de Trámites (Herramienta SUIT)
B10: Findeter no contará en el año 2021 con una estrategia de racionalización de trámites, toda vez que de acuerdo con lo establecido en la Directiva Presidencial No. 2 "SIMPLIFICACIÓN DE LA INTERACCIÓN DIGITAL ENTRE LOS CIUDADANOS Y EL ESTADO y de acuerdo con concepto de la Función Pública con respecto a los "Otros Procedimientos Administrativos - OPAS" que la Entidad tiene registrados en el aplicativo SUIT: ".....no se aplica en lo ateniente a trámites o servicios porque no conllevan para el ciudadano el acceso a un derecho o el ejercicio de una actividad u obligación prevista o autorizada por la ley, por tratarse de negocios jurídicos de contenido económico, sujetos al cumplimiento de unas condiciones específicas por parte de unas personas jurídicas, las cuales no son masivas....."; En consideración a lo anterior, a través del Plan de Integración - PIN con gov.co, se solicitó la eliminación de dichos OPAS del SUIT.

Sheet PETI
D2: PLAN ESTRATÉGICO DE TECNOLOGÍAS DE LA INFORMACIÓN PETI 2021
B10: Dependencia | C10: Nombre de la tarea | D10: Descripción | E10: Política de Gestión y Desempeño | F10: Responsable de tarea | G10: Fecha Inicio | H10: Fecha Fin | I10: Fuente de Financiación | J10: Indicador (Si Aplica) | K10: Fórmula | L10: Meta 2020
B11: Gerencia de Mercadeo, Comunicaciones y Responsabilidad Social | C11: Desarrollar el Ecosistema digital | D11: Continuar con la implementación y fortalecimiento del ecosistema digital. | E11: Gobierno Digital | F11: Alvaro Muñoz | G11: 2021-01-01 | H11: 2021-11-30 | I11: Findeter | J11: % de cumplimiento de la planeación | K11: Actividades ejecutadas/Actividades Planeadas | L11: 1
B12: Vice Comercial | C12: Fortalecer Estrategia de analítica de datos | D12: Implementar el primer ejercicio de analitica de datos en Findeter | E12: Gobierno Digital | F12: Jaime Luis | G12: 2021-02-01 | H12: 2021-12-30 | I12: Findeter | J12: % de cumplimiento de la planeación | K12: Actividades ejecutadas/Actividades Planeadas | L12: 1
B13: Dirección de Tecnología | C13: Fortalecer Estrategía de Uso y apropiación | D13: Fortalecer la estrategia de uso y apropiación para los proyectos de TI y/o el catálogo de servicios de TI, teniendo en cuenta estrategias de gestión del cambio. | E13: Gobierno Digital | F13: Miguel Ricaurte | G13: 2021-02-01 | H13: 2021-12-30 | I13: Findeter | J13: % de cumplimiento de la planeación | K13: Actividades ejecutadas/Actividades Planeadas | L13: 1
B14: Dirección de Tecnología | C14: Optimización capacidades TI | D14: Fortalecer la gestión y admon de roles y perfiles, realizar migración a la nube, y fortalecer el ambiente de pruebas | E14: Gobierno Digital | F14: Jhon Gregory Sierra | G14: 2021-02-01 | H14: 2021-12-30 | I14: Findeter | J14: % de cumplimiento de la planeación | K14: Actividades ejecutadas/Actividades Planeadas | L14: 1
B15: Dirección de Tecnología | C15: RPA | D15: Implementar uan herramienta que permitirá la automatizacion robotica de procesos o tareas manuales. | E15: Gobierno Digital | F15: Javier David | G15: 2021-02-01 | H15: 2021-12-30 | I15: Findeter | J15: % de cumplimiento de la planeación | K15: Actividades ejecutadas/Actividades Planeadas | L15: 1
B16: Dirección de Tecnología | C16: Core Técnico | D16: Seleccionar e implementar una solución tecnologica que apalanque o apoye transversalmente los procesos relacionados al core técnico | E16: Gobierno Digital | F16: Hugo Henao | G16: 2021-02-01 | H16: 2021-12-30 | I16: Findeter | J16: % de cumplimiento de la planeación | K16: Actividades ejecutadas/Actividades Planeadas | L16: 1

Sheet Plan de Transformación Digital
D2: PLAN DE TRANSFORMACION DIGITAL FINDETER 2021
B10: Dependencia | C10: Nombre de la tarea | D10: Descripción | E10: Política de Gestión y Desempeño | F10: Responsable de tarea | G10: Fecha Inicio | H10: Fecha Fin | I10: Fuente de Financiación | J10: Indicador (Si Aplica) | K10: Fórmula | L10: Meta 2020 | M10: Observaciones
B11: Gerencia de Planeación y Gestión - Centro de Innovación y Conocimiento - Jefatura Talento Humano | C11: Cultura digital y gestión del cambio (Transformación digital) | D11: Generar habilidades, capacidades y entregar herramientas para gestionar el cambio de manera adecuada, frente a las variaciones rápidas y constantes asociadas a las nuevas tecnologías, lo que permitirá capitalizar las oportunidades de negocio del mundo digital. Fomentar una cultura enfocada al agilísimo y centrada en lo digital. | E11: Gobierno digital | F11: Andrea Rojas | G11: 44287 | H11: 44561 | I11: Propios | J11: Índice de adopción de habilidades y capacidades | K11: Índice de adopción de habilidades y capacidades ∑ (Cantidad de usuarios que apropiaron las habilidades y capacidades* / Cantidad de usuarios que participaron en las actividades definidas para el fomento de la cultura) | L11: 0.8 | M11: La meta se mantendrá sobre el 80% en cada corte de medición
B12: Gerencia de Planeación y Gestión - Centro de Innovación y Conocimiento | C12: Sandbox de Innovación | D12: Realizar pilotos de Innovación en tecnologías emergentes en espacios controlados que permitan hacer mejoras e identificar la viabilidad y factibilidad de lo propuesto | E12: Gobierno digital | F12: Andrea Rojas | G12: 44348 | H12: 44561 | I12: Propios | J12: SPI | K12: Cumplimiento del cronograma del proyecto medido por la PMO | L12: 0,93 | M12: La meta se mantendrá sobre el 0,93 en cada corte de medición
B13: Presidencia - Equipo de gobierno de datos | C13: Gobierno de Datos Fase IV | D13: Consolidar el gobierno de datos en Findeter mediante la documentación de componentes de información, la ejecución de ejercicios de calidad, la administración de los datos maestros de la entidad y el uso y apropiación por parte de la Entidad del Gobierno de los Datos. | E13: Gobierno digital | F13: Luz Amparo Gutierrez | G13: 44287 | H13: 44561 | I13: Propios | J13: SPI | K13: Cumplimiento del cronograma del proyecto medido por la PMO | L13: 0,93 | M13: La meta se mantendrá sobre el 0,93 en cada corte de medición
B14: Vicepresidencia comercial -Gerencia de nuevos productos - Gerencia de Planeación y Gestión | C14: Experiencia de usuario | D14: Realizar un análisis de la experiencia de usuario para un producto de financiación con el objetivo de identificar los puntos de dolor del usuario, de tal manera que se pueda diseñar y mejorar la experiencia en la interacción en todo el ciclo de vida. | E14: Gobierno digital | F14: Andrea Rojas | G14: 44348 | H14: 44561 | I14: Propios | J14: SPI | K14: Cumplimiento del cronograma del proyecto medido por la PMO | L14: 0,95 | M14: La meta se mantendrá sobre el 0,95 en cada corte de medición
B15: Gerencia de Planeación y Gestión - Centro de Innovación y Conocimiento | C15: Optimización y automatización de procesos | D15: Orientar y rediseñar los procesos claves a entornos completamente digitales, incluyendo elementos como autenticación, firmas electrónica y digital, flujo, gestión, archivo y transferencia de documentos creados desde digital. | E15: Gobierno digital | F15: Andrea Rojas | G15: 44228 | H15: 44561 | I15: Propios | J15: SPI | K15: Cumplimiento del cronograma del proyecto medido por la PMO | L15: 0,93 | M15: La meta se mantendrá sobre el 0,93 en cada corte de medición

Sheet Plan de Eficiencia Admin
D2: PLAN DE EFICIENCIA ADMINISTRATIVA FINDETER 2021
B10: No. | C10: Nombre iniciativa | D10: Descripción iniciativa | E10: Actividades que se llevan a cabo para desarrollar la iniciativa | F10: Responsable | G10: Áreas involucradas | H10: Fecha Inicio | I10: Fecha fin | J10: Fuente de Recursos
B11: 1 | C11: CORRESPONDENCIA ELECTRÓNICA | D11: Fortalecer los mecanismos de intercambio de correspondencia entre entidades de forma electrónica | E11: Diagnóstico de herramientas para intercambio de correspondencia con otras entidades | F11: Claudia Moreno | G11: Jefatura de Servicios Generales Vicepresidencia Técnica | H11: 2021-02-01 | I11: 2021-03-30 | J11: Findeter
E12: Levantamiento de informacion que se intercambia con otras entidades en medio fisico y electrónico | F12: Claudia Moreno | G12: Gerencia de Planeación y Gestión Grupo Gobierno de datos Vicepresidencia de Riesgos Jefatura de Servicios Generales Vicepresidencia Técnica | H12: 2021-04-01 | I12: 2021-05-31 | J12: Findeter
E13: Elaborar Plan de Mejora | F13: Claudia Moreno | G13: Gerencia de Planeación y Gestión Grupo Gobierno de datos Vicepresidencia de Riesgos Jefatura de Servicios Generales Vicepresidencia Técnica | H13: 2021-06-01 | I13: 2021-06-30 | J13: Findeter
E14: Implentar el Plan de Mejora | F14: Claudia Moreno | G14: Gerencia de Planeación y Gestión Grupo Gobierno de datos Vicepresidencia de Riesgos Jefatura de Servicios Generales Vicepresidencia Técnica | H14: 2021-07-01 | I14: 2021-12-31 | J14: Findeter
B15: 2 | C15: PROGRAMA USO EFICIENTE DE PAPEL | D15: Estrategias para implementar y promover el uso eficiente y ahorro de papel | E15: Identificar las necesidades de consumo de papel en las diferentes dependencias, en especial la Vicepresidencia Técnica para establecer que se puede colocar en medios electrónicos | F15: Samanta Armesto | G15: Gerencia de Planeación y Gestión Grupo SGI | H15: 2021-02-01 | I15: 2021-12-31 | J15: Findeter
E16: Capacitar y sensibilizar a los colaboradores y contratistas de la Entidad sobre la importancia del uso eficiente y ahorro de papel mediante piezas inforamtivas y campañas | F16: Samanta Armesto | G16: Gerencia de Planeación y Gestión Grupo SGI | H16: 2021-02-01 | I16: 2021-12-31 | J16: Findeter
E17: Elaborar reportes del consumo de papel de impresiones y copias generadas y comunicar a los jefes para aplicar acciones de mejora | F17: Samanta Armesto | G17: Gerencia de Planeación y Gestión Grupo SGI | H17: 2021-02-01 | I17: 2021-12-31 | J17: Findeter
E18: Realizar seguimiento mensual con gráficos para tener un análisis de datos de que áreas consumen más papel | F18: Samanta Armesto | G18: Gerencia de Planeación y Gestión Grupo SGI | H18: 2021-02-01 | I18: 2021-12-31 | J18: Findeter
B19: 3 | C19: ARQUITECTURA EMPRESARIAL | D19: Arquitectura Empresarial core tecnico y financiero | E19: Entregar el resultado del ejercicio de Arquitectura | F19: Javier Danilo David | G19: Dirección de Tecnologia | H19: 2021-02-01 | I19: 2021-04-30 | J19: Findeter
E20: Aprobar el Mapa de Ruta | F20: Javier Danilo David | G20: Dirección de Tecnologia Vicepresidencia Técnica | H20: 2021-05-01 | I20: 2021-05-31 | J20: Findeter
E21: Implementar la solucion | F21: Hugo Henao | G21: Dirección de Tecnologia Vicepresidencia Técnica | H21: 2021-06-01 | I21: 2021-12-31 | J21: Findeter
B22: 4 | C22: TRABAJO DIGITAL | D22: Nuevas formas de trabajo en digital | E22: Seleccionar las dependencias para fortalecer las formas de trabajo digital | F22: Laura Reyes | G22: Dirección de Tecnologia Vicepresidencia de Riesgos Dependencias seleccionadas | H22: 2021-02-01 | I22: 2021-02-28 | J22: Findeter
E23: Elaborar Plan de Fortalecimioiento de trabajo digital | F23: Laura Reyes | G23: Dirección de Tecnologia Vicepresidencia de Riesgos Dependencias seleccionadas | H23: 2021-03-01 | I23: 2021-04-30 | J23: Findeter
E24: Implementar el Plan de fortalecimiento | F24: Laura Reyes | G24: Dirección de Tecnologia Vicepresidencia de Riesgos Dependencias seleccionadas | H24: 2021-05-01 | I24: 2021-12-31 | J24: Findeter
B25: 5 | C25: AUTOMATIZACION | D25: Optimizacion y automatizacion de procesos | E25: Diagnostico nivel de madurez de los procesos | F25: Jorge Giraldo | G25: Gerencia de Planeación y Gestión Dirección de Tecnología | H25: 2021-02-01 | I25: 2021-04-30 | J25: Findeter
E26: Priorizar procesos a intervenir | F26: Jorge Giraldo | G26: Gerencia de Planeación y Gestión Dirección de Tecnología Dependencias involucradas | H26: 2021-05-01 | I26: 2021-05-31 | J26: Findeter
E27: Elaborar Plan de Trabajo | F27: Jorge Giraldo | G27: Gerencia de Planeación y Gestión Dirección de Tecnología Dependencia involucradas | H27: 2021-06-01 | I27: 2021-06-30 | J27: Findeter

Sheet Plan Conflicto de Interés
D2: PLAN DE GESTION DE CONFLICTO DE INTERES FINDETER 2021
B10: Objetivo: | C10: Desarrollar mecanismos para prevenir y controlar la aparición de conflictos de intereses en la Entidad con el objeto de evitar la afectación del servicio y el interés general.
B12: Componente | C12: Categoría | D12: Actividades de Gestión | E12: Responsables | F12: Año 2021 | J12: Fuente
F13: Ene - Mar | G13: Abr -Jun | H13: Jul-Sept | I13: Oct - Dic
B14: Planeación | C14: Diseño de la estrategia para la gestión de conflictos de intereses | D14: Incorporar a la Gestión de Riesgos - Mapas de Riesgos de Corrupción del Plan Anticorrupción y Atención al Ciudadano - PAAC, la identificación de riesgos y controles frente a conflictos de intereses identificando los proceso ó dependencias críticas . | E14: Oficial de Cumplimiento y Vicepresidencia de Riesgos | F14: Ene - Mar | G14: Abr - Jun | H14: Jul-Sept | I14: Oct-Dic | J14: Findeter
B15: Condiciones institucionales | C15: Comité de Gestión y Desempeño | D15: Incluir en los comités de gestión y desempeño institucional, el seguimiento al plan de acción de la estrategia de gestión de conflicto de intereses realizado por la Oficina de Control Interno de Gestión. | E15: Gerencia de Planeación y Gestión - Grupo de Gestión y Desempeño | F15: Ene - Mar | G15: Abr - Jun | H15: Jul-Sept | I15: Oct-Dic | J15: Findeter
D16: Orientar ó asesorar legal o técnicamente a los servidores, contratistas, supervisores, coordinadores o jefes inmediatos, en la declaración de conflictos de intereses o decisión de impedimentos, recusaciones, inhabilidades o incompatibilidades. | E16: Dirección Jurídica | F16: Ene - Mar | G16: Abr - Jun | H16: Jul-Sept | I16: Oct-Dic | J16: Findeter
C17: Procesos y procedimientos | D17: Revisar y Ajustar la documentación de los procesos ó dependencias identificados con riesgo de posibles conflictos de intereses. | E17: Dependencias o procesos identificadas / Oficial de Cumplimiento / Vicepresidencia de Riesgos / Gerencia de Planeación (Grupo Mejoramiento de Procesos) | F17: Ene - Mar | G17: Abr - Jun | H17: Jul-Sept | I17: Oct-Dic | J17: Findeter
D18: Organizar, implementar y documentar un canal de comunicación interna (correo, buzón, intranet) para recibir los impedimentos o recusaciones. | E18: Gerencia de Comunicaciones / Secretaria General | F18: Ene - Mar | J18: Findeter
D19: Ajustar el manual de contratación de la entidad con orientaciones para que los servidores y contratistas realicen su declaración de conflictos de intereses | E19: Dirección de Contratación / Dirección Jurídica | F19: Ene - Jun | J19: Findeter
D20: Establecer y/o Ajustar el procedimiento interno para el manejo y declaración de conflictos de intereses de conformidad con el artículo 12 de la Ley 1437 de 2011. | E20: Dirección Jurídica / Dirección de Contratación / Secretaria General / Gerencia de Planeación y Gestión ( Grupo Mejoramiento de Procesos) | F20: Ene - Jun | J20: Findeter
B21: Pedagogía | C21: Sensibilización y capacitación | D21: Realizar estrategias de comunicación (por diferentes medios) y sensibilización relacionadas con los temas de código de Integridad y conflicto de intereses. | E21: Jefatura de Talento Humano / Equipo Apoyo al Comité de Gobierno Corporativo / Gerencia de Comunicaciones | F21: Ene - Mar | G21: Abr - Jun | H21: Jul-Sept | I21: Oct-Dic | J21: Findeter
D22: Implementar acciones de capacitación sobre la gestión de conflictos de intereses, su declaración proactiva, el cumplimiento de la Ley 2013 de 2019 y el trámite de los impedimentos y recusaciones de acuerdo al artículo 12 de la Ley 1437 de 2011 a través del plan de capacitación institucional. | E22: Jefatura de Talento Humano | F22: Ene - Mar | G22: Abr - Jun | H22: Jul-Sept | I22: Oct-Dic | J22: Findeter
C23: Realización del curso de integridad, transparencia y lucha contra la corrupción | D23: Vincular a los servidores y contratistas de la entidad al curso de integridad, transparencia y lucha contra la corrupción establecido por Función Pública para dar cumplimiento a la Ley 2016 de 2020. | E23: Jefatura de Talento Humano | F23: Ene - Mar | G23: Abr - Jun | H23: Jul-Sept | I23: Oct-Dic | J23: Findeter
B24: Seguimiento y evaluación | C24: Declaración de bienes, rentas y conflictos de intereses Ley 2013 de 2019 | D24: Garantizar que los servidores públicos y contratistas de la entidad obligados por la Ley 2013 de 2019 publiquen la declaración de bienes, rentas y conflicto de intereses en el aplicativo establecido por Función Pública. | E24: Jefatura de Talento Humano / Dirección de Contratación | F24: Ene - Mar | G24: Abr - Jun | H24: Jul-Sept | I24: Oct-Dic | J24: Findeter
C25: Registro de las declaraciones de conflictos de intereses | D25: Realizar seguimiento y monitoreo al registro de conflictos de intereses que han surtido tramite | E25: Secretaria General / Jefatura de Talento Humano / Dirección de Contratación | F25: Ene - Mar | G25: Abr - Jun | H25: Jul-Sept | I25: Oct-Dic | J25: Findeter
D26: Realizar el seguimiento y control a la implementación de las estrategias de gestión preventiva del conflicto de intereses formuladas en la planeación institucional y a la publicación de la declaración de bienes, rentas y conflictos de intereses de los servidores públicos y contratistas que se encuentran obligados por la ley 2013 de 2019, a través de las dependencias de control interno. | E26: Oficina de Control Interno de Gestión | F26: Ene - Mar | G26: Abr - Jun | H26: Jul-Sept | I26: Oct-Dic | J26: Findeter

Sheet PTRSPI
D2: PLAN DE TRATAMIENTO DE RIESGOS DE SEGURIDAD Y PRIVACIDAD DE LA INFORMACIÓN FINDETER 2021
B7: Dependencia | C7: Nombre de la tarea | D7: Descripción | E7: Política de Gestión y Desempeño | F7: Responsable de tarea | G7: Fecha Inicio | H7: Fecha Fin | I7: Fuente de Financiación | J7: Indicador (Si Aplica) | K7: Fórmula | L7: Meta 2020 | M7: Observaciones | N7: Seguimiento Trimestre 1 | O7: Seguimiento Trimestre 2 | P7: Seguimiento Trimestre 3 | Q7: Seguimiento Trimestre 4 | R7: Meta Trimestre 1 | S7: Meta Trimestre 2 | T7: Meta Trimestre 3 | U7: Meta Trimestre 4 | V7: Ejecución - Trimestre 1 | W7: Ejecución - Trimestre 2 | X7: Ejecución - Trimestre 3 | Y7: Ejecución - Trimestre 4
B8: Vicepresidencia de Riesgos | C8: Identificación de riesgos | D8: La identificación de riesgos, que es una tarea permanente, se realiza según lo dispuestos en las metodologias establecidas en el manual SARO aprobado por la Junta Directiva | E8: Seguridad Digital | F8: Lideres de Proceso | G8: 44197 | H8: 44561 | I8: Findeter
B9: Vicepresidencia de Riesgos | C9: Medición de riesgos | D9: La medición de riesgos, que es una tarea permanente, se realiza según lo dispuestos en las metodologias establecidas en el manual SARO aprobado por la Junta Directiva, para establecer el perfil se riesgos inherente de la entidad | E9: Seguridad Digital | F9: Lideres de Proceso | G9: 44197 | H9: 44561 | I9: Findeter
B10: Vicepresidencia de Riesgos | C10: Control de riesgos | D10: El contro de riesgos, que es una tarea permanente, se realiza según lo dispuestos en las metodologias establecidas en el manual SARO aprobado por la Junta Directiva, para establecer el perfil se riesgos residual de la entidad | E10: Seguridad Digital | F10: Lideres de Proceso | G10: 44197 | H10: 44561 | I10: Findeter
B11: Vicepresidencia de Riesgos | C11: Monitoreo de riesgos | D11: El monitoreo de riesgos, que es una tarea permanente, se realiza según lo dispuestos en las metodologias establecidas en el manual SARO aprobado por la Junta Directiva, para establecer la efectividad de los controles establecios e informar a la alta dirección y a la junta directiva sobre su desempeño | E11: Seguridad Digital | F11: Vicepresidencia de riesgos | G11: 44197 | H11: 44561 | I11: Findeter
B12: Vicepresidencia de Riesgos | C12: Gestionar los eventos y/o incidentes de seguridad | D12: Gestionar los evento y/o incidentes de seguridad de la información y ciberseguridad de acuerdo a la respectiva valoración de riesgos | E12: Seguridad Digital | F12: Vicepresidencia de riesgos | G12: 44197 | H12: 44561 | I12: Findeter
B13: Dirección de Tecnología | C13: Gestión de los riesgos asociados a la nueva página web de la entidad | D13: Gestión de los riesgos inherentes asociados a la nueva página web de la entidad | E13: Seguridad Digital | F13: Dirección de Tecnología | G13: 44197 | H13: 44285 | I13: Findeter
B14: Dirección de Tecnología | C14: Mitigación resultados prueba de Hacking Etico 2020 | D14: Mitigar las vulnerabiidades y/o debilidades de seguridad encontradas en la prueba de Hacking Etico realizada en el cuarto trimestre de 2020 de acuerdo a la respectiva valoración de riesgos | E14: Seguridad Digital | F14: Dirección de Tecnología | G14: 44197 | H14: 44377 | I14: Findeter
B15: Dirección de Tecnología | C15: Mitigación vulnerabilidades encontrados en la primera prueba de vulnerabilidade Q1 | D15: Mitigar las vulnerabilidades identificadas en la primera prueba de vulnerabilidades (Q1) de acuerdo a la respectiva valoración de riesgos | E15: Seguridad Digital | F15: Dirección de Tecnología | G15: 44256 | H15: 44377 | I15: Findeter
B16: Dirección de Tecnología | C16: Mitigación vulnerabilidades encontrados en la segunda prueba de vulnerabilidade Q2 | D16: Mitigar las vulnerabilidades identificadas en la segunda prueba de vulnerabilidades (Q2) de acuerdo a la respectiva valoración de riesgos | E16: Seguridad Digital | F16: Dirección de Tecnología | G16: 44470 | H16: 44561 | I16: Findeter
B17: Vicepresidencia de Riesgos | C17: Capacitación anual en los sistema de gestión de riesgo que incluye los de seguridad digital | D17: Realizar la capacitación anual de los sistema de gestión de riesgos que incluye los riesgos de seguridad de la información, ciberseguridad y seguridad digital | E17: Seguridad Digital | F17: Vicepresidencia de riesgos | G17: 44470 | H17: 44561 | I17: Findeter
B18: Vicepresidencia de Riesgos | C18: Generar informe de gestión integral de riesgos segundo semestre de 2020 | D18: De acuerdo a lo establecido en las normas aplicables semestralmente se presente informe de gestión de riesgos a la Junta Directiva y al comité de auditoria | E18: Seguridad Digital | F18: Vicepresidencia de riesgos | G18: 44197 | H18: 44285 | I18: Findeter
B19: Vicepresidencia de Riesgos | C19: Generar informe de gestión integral de riesgos primer semestre de 2021 | D19: De acuerdo a lo establecido en las normas aplicables semestralmente se presente informe de gestión de riesgos a la Junta Directiva y al comité de auditoria | E19: Seguridad Digital | F19: Vicepresidencia de riesgos | G19: 44348 | H19: 44469 | I19: Findeter

Sheet PSPI
D3: PLAN DE SEGURIDAD Y PRIVACIDAD DE LA INFORMACIÓN FINDETER 2021
B11: Dependencia | C11: Nombre de la tarea | D11: Descripción | E11: Política de Gestión y Desempeño | F11: Responsable de tarea | G11: Fecha Inicio | H11: Fecha Fin | I11: Fuente de Financiación | J11: Indicador (Si Aplica) | K11: Fórmula | L11: Meta 2020 | M11: Observaciones | N11: Seguimiento Trimestre 1 | O11: Seguimiento Trimestre 2 | P11: Seguimiento Trimestre 3 | Q11: Seguimiento Trimestre 4 | R11: Meta Trimestre 1 | S11: Meta Trimestre 2 | T11: Meta Trimestre 3 | U11: Meta Trimestre 4 | V11: Ejecución - Trimestre 1 | W11: Ejecución - Trimestre 2 | X11: Ejecución - Trimestre 3 | Y11: Ejecución - Trimestre 4
B12: Vicepresidencia de Riesgos | C12: Sensibilización y socialización temas de seguridad de la información y ciberseguridad al interior de la entidad | D12: Realizar actividades y/o publicar de forma periodica temas relacionados con seguridad de la información y/o ciberseguridad con el objetivo de fortalecer la cultura de seguridad en la entidad | E12: Seguridad Digital | F12: Carlos Alberto Guzmán Silva Juan Manuel Gutierrez | G12: 44197 | H12: 44561 | I12: Findeter
B13: Vicepresidencia de Riesgos | C13: Ejecución campañas seguridad de la información y ciberseguridad para clientes exernos | D13: Realizar de campañas de seguridad seguridad de la información y/o ciberseguridad para clientes externo | E13: Seguridad Digital | F13: Carlos Alberto Guzmán Silva Juan Manuel Gutierrez | G13: 44197 | H13: 44377 | I13: Findeter
B14: Vicepresidencia de Riesgos | C14: Análisis GAP ISO 27001 | D14: Realiizar un análisis GAP del nivel de cumplimiento de la norma ISO 27001 e identificar las brechas de cumplimiento | E14: Seguridad Digital | F14: Carlos Alberto Guzmán Silva Juan Manuel Gutierrez | G14: 44197 | H14: 44285 | I14: Findeter
B15: Vicepresidencia de Riesgos | C15: Contratar servicios de seguridad gestionada soportados en un SOC | D15: Realizar el proceso de contratación de los servicios de seguridad gestionada soportados en un SOC | E15: Seguridad Digital | F15: Carlos Alberto Guzmán Silva Juan Manuel Gutierrez | G15: 44256 | H15: 44377 | I15: Findeter
B16: Vicepresidencia de Riesgos | C16: Fortalecer monitoreo de amenzas | D16: Fortalecer el monitoreo y correlación de eventos de seguridad de la información y ciberamenazas | E16: Seguridad Digital | F16: Carlos Alberto Guzmán Silva Juan Manuel Gutierrez | G16: 44197 | H16: 44561 | I16: Findeter
B17: Vicepresidencia de Riesgos | C17: Fortalecer gestión de incidentes de seguridad de la información | D17: Fortalecer el proceso de identificación y gestión de los incidentes de seguridad de la información y alinación con los eventos de riesgos | E17: Seguridad Digital | F17: Carlos Alberto Guzmán Silva Juan Manuel Gutierrez | G17: 44197 | H17: 44316 | I17: Findeter
B18: Vicepresidencia de Riesgos | C18: Cumplimiento circular 033 de 2020 SFC | D18: Dar cumlimiento a los requerimientos establecidos por la SFC en la CE 033 de 2020 | E18: Seguridad Digital | F18: Carlos Alberto Guzmán Silva Juan Manuel Gutierrez | G18: 44197 | H18: 44316 | I18: Findeter
B19: Vicepresidencia de Riesgos | C19: Ejecución analísis de vulnerabilidades primera prueba anual (Q1) | D19: Ejecutar la primera prueba anual de analisis vulnerabilidades sobre la infraestructura tecnologica de la entidad | E19: Seguridad Digital | F19: Carlos Alberto Guzmán Silva Juan Manuel Gutierrez | G19: 44211 | H19: 44285 | I19: Findeter
B20: Dirección de Tecnología | C20: Mitigación de vulnerabilidades primera prueba (Q1) | D20: Mitigar las vulnerabilidades identificadas en la primera prueba de vulnerabilidades | E20: Seguridad Digital | F20: Dirección de Tecnología | G20: 44287 | H20: 44377 | I20: Findeter
B21: Vicepresidencia de Riesgos | C21: Ejecución analísis de vulnerabilidades primera prueba anual (Q2) | D21: Ejecutar la segundo prueba anual de analisis vulnerabilidades sobre la infraestructura tecnologica de la entidad | E21: Seguridad Digital | F21: Carlos Alberto Guzmán Silva Juan Manuel Gutierrez | G21: 44378 | H21: 44469 | I21: Findeter
B22: Dirección de Tecnología | C22: Mitigación de vulnerabilidades primera prueba (Q2) | D22: Mitigar las vulnerabilidades identificadas en la segunda prueba de vulnerabilidades | E22: Seguridad Digital | F22: Dirección de Tecnología | G22: 44470 | H22: 44561 | I22: Findeter
B23: Dirección de Tecnología | C23: Mitigación resultados prueba de Hacking Etico 2020 | D23: Mitigar las vulnerabiidades y/o debilidades de seguridad encontradas en la prueba de Hacking Etico realizada en el cuarto trimestre de 2020 | E23: Seguridad Digital | F23: Dirección de Tecnología | G23: 44197 | H23: 44377 | I23: Findeter
B24: Vicepresidencia de Riesgos | C24: Ejecución Prueba de Hacking Etico | D24: Ejecutar la prueba anual de Hacking Etico | E24: Seguridad Digital | F24: Carlos Alberto Guzmán Silva Juan Manuel Gutierrez | G24: 44378 | H24: 44561 | I24: Findeter
B25: Vicepresidencia de Riesgos | C25: Ejecución Prueba de Ingeneria Social | D25: Ejecutar prueba anual de ingeneria social | E25: Seguridad Digital | F25: Carlos Alberto Guzmán Silva Juan Manuel Gutierrez | G25: 44378 | H25: 44561 | I25: Findeter

Sheet Consolidado (hidden)
D1: PLAN ANTICORRUPCIÓN Y DE ANTENCIÓN AL CIUDADANO
B5: Plan | C5: Fuente de Financiación | D5: Componente Plan Anticorrupción y Atención al Ciudadano | E5: Categoría | F5: Nombre de la tarea | G5: Descripción | H5: Responsable de tarea | I5: Fecha Inicio | J5: Fecha Fin | K5: Proceso | L5: Área Organizativa | M5: Política de Gestión y Desempeño
B6: PAA.2018.OAP | C6: 'Fuente de recursos: Funcionamiento | D6: 1. Riesgos de Corrupción | E6: 1.2 Construcción del mapa de riesgos de corrupción | F6: Publicar periódicamente en la página web el mapa de riesgos de corrupción. | G6: Para asegurar la publicación en la página web del mapa de riesgos de corrupción vigente, se realizarán publicaciones periódicas, de acuerdo con los ajustes que se realicen al mapa. | H6: Sergio Esteban Varela Guzman | I6: 2018-02-01 | J6: 2018-12-31 | K6: Est.1.4 | L6: Oficina Asesora de Planeación | M6: Política de Transparencia, acceso a la información pública y lucha contra la corrupción
B7: PAA.2018.OAP | C7: 'Fuente de recursos: Funcionamiento | D7: 1. Riesgos de Corrupción | E7: 1.4 Monitoreo y revisión | F7: Realizar el seguimiento al estado de los riesgos de corrupción | G7: Realizar seguimiento a las modificaciones, creaciones o eliminaciones de los riesgos de corrupción. Adicionalmente, verificar la documentación del monitoreo para este tipo de riesgos. Este seguimiento se realiza cada cuatro meses, durante mayo, septiembre y enero. Producto: documentación periódica en el SMGI del estado de los riesgos de corrupción | H7: Daissy Tatiana Santos Yate | I7: 2018-05-02 | J7: 2018-12-31 | K7: Est.1.4 | L7: Oficina Asesora de Planeación | M7: Política de Transparencia, acceso a la información pública y lucha contra la corrupción
B8: PAA.2018.OAP | C8: 'Fuente de recursos: Funcionamiento | D8: 1. Riesgos de Corrupción | E8: 1.3 Consulta y divulgación | F8: Realizar la consulta y divulgación del mapa de riesgos de corrupción | G8: Disponer de los mecanismos necesarios para que todos los servidores de la Entidad y partes interesadas, se hagan participes en la construcción del mapa de riesgos de corrupción. Presentar a los servidores de la Entidad, la actualización realizada al mapa de riesgos institucional, mediante los diferentes canales de comunicación disponibles. Externamente, se realizará la publicación del mapa de riesgos actualizado en la pagina web. Producto: evidencias de consulta y divulgación del mapa | H8: Daissy Tatiana Santos Yate | I8: 2018-03-01 | J8: 2018-05-21 | K8: Est.1.4 | L8: Oficina Asesora de Planeación | M8: Política de Transparencia, acceso a la información pública y lucha contra la corrupción
B9: PAA.2018.OAP | C9: 'Fuente de recursos: Funcionamiento | D9: 1. Riesgos de Corrupción | E9: 1.1 Política de administración de riesgos | F9: Divulgar de los ajustes realizados a la guía de riesgos | G9: Socializar los ajustes realizados frente a la administración de los riesgos de corrupción. Producto: evidencias de actividades de socialización por diferentes canales de comunicación. | H9: Daissy Tatiana Santos Yate | I9: 2018-04-01 | J9: 2018-05-21 | K9: Est.1.4 | L9: Oficina Asesora de Planeación | M9: Política de Transparencia, acceso a la información pública y lucha contra la corrupción
B10: PAA.2018.OAP | C10: 'Fuente de recursos: Funcionamiento | D10: 1. Riesgos de Corrupción | E10: 1.1 Política de administración de riesgos | F10: Actualizar la guía de riesgos institucional | G10: Actualización de la guía de riesgos, de acuerdo con los ajustes realizados en 2017 en el SMGI | H10: Daissy Tatiana Santos Yate | I10: 2018-02-01 | J10: 2018-05-04 | K10: Est.1.4 | L10: Oficina Asesora de Planeación | M10: Política de Transparencia, acceso a la información pública y lucha contra la corrupción
B11: PAA.2018.OAP | C11: 'Fuente de recursos: Funcionamiento | D11: 2. Racionalización de Trámites | E11: 2.3 Racionalización de trámites | F11: Elaborar la Estrategia de Racionalización de Trámites 2018 | G11: Coordinar con las áreas responsables de los tramites del Ministerio, inscritos en SUIT, la estrategia de racionalización para 2018 y registrar las acciones definidas en el SUIT | H11: Fernando Jose Velasquez Avila | I11: 2018-01-30 | J11: 2018-02-28 | K11: Est.1.1 | L11: Oficina Asesora de Planeación | M11: Política de Racionalización de trámites
B12: PAA.2018.OAP | C12: 'Fuente de recursos: Funcionamiento | D12: 2. Racionalización de Trámites | E12: 2.3 Racionalización de trámites | F12: Realizar seguimiento en SUIT al registro de avances de la Estrategia de Racionalización | G12: Realizar seguimiento y apoyo para el registro de los avances de la Estrategia de racionalización en el SUIT para cada cuatrimestre. | H12: Fernando Jose Velasquez Avila | I12: 2018-05-01 | J12: 2018-12-31 | K12: Est.1.1 | L12: Oficina Asesora de Planeación | M12: Política de Racionalización de trámites
B13: Ini.2015.EA1.001 Fortalecer el análisis, toma de decisiones y divulgación de la información del Sistema General de Regalías (SGR) | C13: 'Fuente de recursos: Funcionamiento | D13: 3. Rendición de Cuentas | E13: 3.1 Información de calidad y en lenguaje comprensible | F13: Mejorar el diseño del subsitio SGR en el portal del MHCP | G13: Realizar el levantamiento de requerimientos para mejorar el diseño del subsitio SGR en el portal www.minhacienda.gov.co Producto: Propuesta de diseño del subsitio SGR (fase 1) finalizada. | H13: Erika Viviana Mancipe Moncada | I13: 2018-09-01 | J13: 2018-12-31 | K13: Mis.4.9 | L13: Despacho del Viceministro General | M13: Política de Transparencia, acceso a la información pública y lucha contra la corrupción - Política de Participación Ciudadana en la Gestión Pública
B14: Ini.2015.EA1.002 Fortalecer la divulgación del mensaje estratégico del Ministerio de Hacienda y Crédito Público | C14: Fuente de recursos: Funcionamiento | D14: 3. Rendición de Cuentas | E14: 3.2 Dialogo de doble vía con la ciudadanía y sus organizaciones | F14: Visitar universidades | G14: El Ministerio de Hacienda y Crédito Público, busca propiciar espacios de interacción con la comunidad estudiantil con el fin de contar los avances de los diferentes temas a cargo de la entidad y atender las inquietudes que en el desarrollo del ejercicio se puedan presentar con el fin de afianzar el intercambio de información con los estudiantes. Producto: tres visitas a universidades | H14: Olga Ximena Novoa Gonzalez | I14: 2018-03-01 | J14: 2018-12-31 | K14: Est.1.3 | L14: Comunicaciones | M14: Política de Participación Ciudadana en la Gestión Pública
B15: Ini.2015.EA1.002 Fortalecer la divulgación del mensaje estratégico del Ministerio de Hacienda y Crédito Público | C15: 'Fuente de recursos: Funcionamiento | D15: 3. Rendición de Cuentas | E15: 3.1 Información de calidad y en lenguaje comprensible | F15: Fortalecer los espacios de comunicación interna | G15: La sección digital La Pizarra en la intranet tiene como propósito generar información de interés para los servidores públicos que permita conocer las actividades que realiza el Ministerio tanto interna como externamente y comunicarlas. A través de éste canal se realizarán campañas de sensibilización en lo correspondiente al componente rendición de cuentas. Producto: cuatro publicaciones | H15: Olga Ximena Novoa Gonzalez | I15: 2018-03-01 | J15: 2018-12-31 | K15: Est.1.3 | L15: Comunicaciones | M15: Política de Transparencia, acceso a la información pública y lucha contra la corrupción
B16: Ini.2015.EA1.002 Fortalecer la divulgación del mensaje estratégico del Ministerio de Hacienda y Crédito Público | C16: 'Fuente de recursos: Funcionamiento | D16: 3. Rendición de Cuentas | E16: 3.3 Incentivos para motivar la cultura de la rendición y petición de cuentas | F16: Realizar conversatorios ciudadanos | G16: Fortalecer las relaciones entre el Ministerio de Hacienda y Crédito Público con los ciudadanos, en especial con el sector académico conformado por: investigadores, estudiantes y docentes; mediante la realización de conversatorios que tendrán como eje central los temas de actual coyuntura económica en el país; y en los que además se presentará la gestión que desarrollada para poder a disposición de los ciudadanos la Biblioteca ?José María del Castillo y Rada?, junto con sus servicios y colecciones disponibles. Producto: un conversatorio | H16: Carlos Andres Gil Santamaria | I16: 2018-07-01 | J16: 2018-12-31 | K16: Esp.1.1 | L16: Comunicaciones | M16: Política de Transparencia, acceso a la información pública y lucha contra la corrupción - Política de Participación Ciudadana en la Gestión Pública
B17: Ini.2015.EA1.002 Fortalecer la divulgación del mensaje estratégico del Ministerio de Hacienda y Crédito Público | C17: 'Fuente de recursos: Funcionamiento | D17: 3. Rendición de Cuentas | E17: 3.4 Evaluación y retroalimentación a la gestión institucional | F17: Realizar el ejercicio de Audiencia Pública de Rendición de Cuentas | G17: La Audiencia Pública es un encuentro de explicación y reflexión sobre los resultados de la gestión del periodo agosto de 2017 ? julio 2018 donde se informa y aclaran dudas sobre temas cruciales para la interlocución y deliberación colectiva con la ciudadanía. Producto: un ejercicio de audiencia | H17: Olga Ximena Novoa Gonzalez | I17: 2018-06-01 | J17: 2018-12-31 | K17: Est.1.3 | L17: Comunicaciones | M17: Política de Transparencia, acceso a la información pública y lucha contra la corrupción - Política de Participación Ciudadana en la Gestión Pública
B18: Ini.2015.EA1.002 Fortalecer la divulgación del mensaje estratégico del Ministerio de Hacienda y Crédito Público | C18: 'Fuente de recursos: Funcionamiento | D18: 3. Rendición de Cuentas | E18: 3.2 Dialogo de doble vía con la ciudadanía y sus organizaciones | F18: Participar en Ferias Ciudadanas | G18: El Programa Feria Nacional de Servicio al Ciudadano (FNSC) nos comparte el cronograma de los municipios donde se hará presencia, la programación está sujeta a los ajustes que realice el Departamento Nacional de Planeación (DNP) como líder de dichas ferias. El Ministerio acompaña estos ejercicios y de una manera clara entrega información de interés a la ciudadanía. Producto: participación en dos ferias | H18: Olga Ximena Novoa Gonzalez | I18: 2018-03-01 | J18: 2018-12-31 | K18: Est.1.3 | L18: Comunicaciones | M18: Política de Participación Ciudadana en la Gestión Pública
B19: Ini.2015.EA1.002 Fortalecer la divulgación del mensaje estratégico del Ministerio de Hacienda y Crédito Público | C19: 'Fuente de recursos: Funcionamiento | D19: 3. Rendición de Cuentas | E19: 3.4 Evaluación y retroalimentación a la gestión institucional | F19: Realizar el ejercicio de Audiencia Pública de Rendición de Cuentas. | G19: A través de la Audiencia Pública se abordarán los temas de recursos relacionados con el Ocad Paz derivado del Acuerdo Final para la Terminación del Conflicto y la Construcción de una Paz Estable y Duradera. Producto: un ejercicio de audiencia | H19: Olga Ximena Novoa Gonzalez | I19: 2018-02-01 | J19: 2018-06-30 | K19: Est.1.3 | L19: Comunicaciones | M19: Política de Transparencia, acceso a la información pública y lucha contra la corrupción - Política de Participación Ciudadana en la Gestión Pública
B20: PAA.2018.DA | C20: 'Fuente de recursos: Funcionamiento | D20: 4. Mecanismos para mejorar la atención al ciudadano | E20: 4.4 Normativo y procedimental | F20: Socializar a funcionarios y Lideres de Procesos con responsabilidades en atención y respuesta a solicitudes de acceso a la información. | G20: Realizar piezas publicitarias, dando a conocer las características a tener en cuenta en la atención a las solicitudes de acceso a la información, derechos de petición de interés general, derecho de petición de interés particular, derecho de petición de consulta, petición entre autoridades y socializarlas por los canales internos de comunicación del Ministerio de Hacienda y Crédito Público. | H20: Carlos Andres Gil Santamaria | I20: 2018-02-02 | J20: 2018-12-31 | K20: Esp.1.1 | L20: Dirección Administrativa | M20: Política de Servicio al ciudadano
B21: PAA.2018.DA | C21: 'Fuente de recursos: Funcionamiento | D21: 4. Mecanismos para mejorar la atención al ciudadano | E21: 4.4 Normativo y procedimental | F21: Actualizar los instrumentos de Gestión de la Información | G21: Actualizar según la TRD aprobada por el Archivo General de la Nación el inventario de activos de información e índice de información clasificada y reservada. | H21: Carlos Andres Gil Santamaria | I21: 2018-08-03 | J21: 2018-12-31 | K21: Apo.4.3 | L21: Dirección Administrativa | M21: Política de Servicio al ciudadano
B22: PAA.2018.DA | C22: 'Fuente de recursos: Funcionamiento | D22: 4. Mecanismos para mejorar la atención al ciudadano | E22: 4.4 Normativo y procedimental | F22: Revisar y actualizar de la caracterización grupos de valor del Ministerio de Hacienda y Crédito Público. | G22: Adelantar la actualización de la caracterización de grupos de valor que interactúan con los servicios que brinda el Ministerio de Hacienda y Crédito Público, realizando mesas de trabajo con las áreas involucradas. Entregable: Caracterización de usuarios MHCP | H22: Carlos Andres Gil Santamaria | I22: 2018-02-02 | J22: 2018-12-31 | K22: Esp.1.1 | L22: Dirección Administrativa | M22: Política de Servicio al ciudadano
B23: Ini.2015.EA1.003 Implementar el portal central de transparencia fiscal | C23: Fuente de recursos: Cooperación Suiza y Funcionamiento | D23: 5. Mecanismos para la transparencia y acceso a la información | E23: 5.1 Lineamientos de transparencia activa | F23: Publicar tres diferentes reportes de la ejecución física del Presupuesto General de la Nación en inversión y funcionamiento. | G23: Publicar a junio 30 de 2018 tres diferentes reportes que den cuenta de la ejecución física del Presupuesto General de la Nación, no solo para la inversión sino también para el funcionamiento. | H23: Claudia Marcela Numa Paez | I23: 2018-01-01 | J23: 2018-06-30 | K23: Mis.2.2 | L23: Dirección General de Presupuesto Público Nacional | M23: Política de Transparencia, acceso a la información pública y lucha contra la corrupción
B24: Ini.2015.EA1.003 Implementar el portal central de transparencia fiscal | C24: Fuente de recursos: Cooperación Suiza y Funcionamiento | D24: 5. Mecanismos para la transparencia y acceso a la información | E24: 5.1 Lineamientos de transparencia activa | F24: Diseñar, dar a conocer y poner en práctica la estrategia de divulgación del Portal a la ciudadanía. | G24: Diseñar, dar a conocer y poner en práctica antes del 31 de diciembre de 2018 la estrategia de divulgación del Portal a la ciudadanía con el fin de colaborar en los ya establecidos procesos de veedurías ciudadanas a los recursos públicos. | H24: Claudia Marcela Numa Paez | I24: 2018-01-01 | J24: 2018-12-31 | K24: Mis.2.2 | L24: Dirección General de Presupuesto Público Nacional | M24: Política de Transparencia, acceso a la información pública y lucha contra la corrupción
B25: PAA.2018.DA | C25: 'Fuente de recursos: Funcionamiento | D25: 5. Mecanismos para la transparencia y acceso a la información | E25: 5.1 Lineamientos de transparencia activa | F25: Gestionar los procesos de contratación a través de SECOP II. | G25: Realizar continuamente por parte de los abogados la publicación de cada una de las etapas de contratación en la plataforma del sistema electrónico de la contratación publica, portal único de Contratación ? SECOP II, con el fin de que lo puedan observar y participar los interesados, y a su vez lo conozcan los entes de control, las veedurías y terceros, en cumplimiento de Ley 80 de 1993, Ley 1150 de 2007 y Decreto 1082 de 2015. | H25: Sonia Milena Hernandez Nariño | I25: 2018-01-01 | J25: 2018-12-31 | K25: Apo.4.1 | L25: Dirección Administrativa | M25: Política de Transparencia, acceso a la información pública y lucha contra la corrupción
B26: PAA.2018.DA | C26: 'Fuente de recursos: Funcionamiento | D26: 5. Mecanismos para la transparencia y acceso a la información | E26: 5.4 Criterio diferencial de accesibilidad | F26: Validar los requisitos para asegurar el acceso de la información en los diferentes canales del Ministerio a los grupos indígenas, étnicos, culturales y personas con discapacidad. | G26: Realizar mesas de trabajo, para establecer los requisitos necesarios que permita asegurar el acceso a la información a estos grupos. Entregable: Documento requisitos. | H26: Carlos Andres Gil Santamaria | I26: 2018-02-02 | J26: 2018-12-29 | K26: Esp.1.1 | L26: Dirección Administrativa | M26: Política de Transparencia, acceso a la información pública y lucha contra la corrupción
B27: Ini.2015.RI1.001 Fortalecer el clima organizacional de la Entidad | C27: 'Fuente de recursos: Funcionamiento | D27: 6. Otras Iniciativas | E27: Rutas de Creación de Valor | F27: Desarrollar actividades encaminadas a la sensibilización y apropiación del Código de Integridad. | G27: Realizar actividades enfocadas a la sensibilización y apropiación del Código de Integridad del servidor público, como parte del Plan Institucional de Capacitación 2018. | H27: Vilma Patricia Ferreira Lugo | I27: 2018-03-01 | J27: 2018-12-31 | K27: Apo.2.2 | L27: Dirección Administrativa | M27: Política de Gestión Estratégica del Talento Humano - Política de Integridad
